Directorate,Department,Expenditure Type,Ref.Doc.1,Vendor Name,Expenditure Amount (exc VAT),Payment Date
Assurance,Assurance,Rents,60103250,HADLEY DISABLED SPORTS ASSOCIATION,300.00,01/05/2018
Assurance,Assurance,Printing-Contract,60104406,ELECTORAL REFORM SERVICES,"48,838.59",18/05/2018
Assurance,Assurance,Printing-Contract,60104530,ELECTORAL REFORM SERVICES,322.00,21/05/2018
Assurance,Assurance,Printing-Contract,60104542,ELECTORAL REFORM SERVICES,"4,900.23",23/05/2018
Assurance,Assurance,Printing-Contract,60104551,ELECTORAL REFORM SERVICES,"2,889.53",21/05/2018
Assurance,Assurance,Postage,60103435,ROYAL MAIL GROUP LIMITED,"1,328.60",01/05/2018
Assurance,Assurance,Postage,60103511,ROYAL MAIL GROUP LIMITED,504.62,01/05/2018
Assurance,Assurance,Postage,60104799,ROYAL MAIL GROUP LIMITED,"2,964.96",24/05/2018
Assurance,Assurance,Ttl IT & Comms,60105108,DEMOCRACY COUNTS LIMITED,"14,500.00",30/05/2018
Assurance,Assurance,Rents,60103671,HOPE CORNER COMMUNITY CENTRE,500.00,03/05/2018
Assurance,Assurance,Rents,60105112,THE ANNUNCIATION CHURCH,660.00,30/05/2018
Assurance,Assurance,Rents,60105135,TRINITY CHURCH MILL HILL,643.00,30/05/2018
Assurance,Assurance,Rents,80017143,BARNET BOROUGH DISTRICT SCOUT,850.00,15/05/2018
Assurance,Assurance,Rents,80017257,EDGWARE SYNAGOGUE,"1,901.20",15/05/2018
Assurance,Assurance,Rents,80017293,FINCHLEY METHODIST CHURCH,725.00,15/05/2018
Assurance,Assurance,Rents,80017599,OMNI SECURITY SERVICE LTD,448.50,24/05/2018
Assurance,Assurance,Rents,60104517,PORTAKABIN LTD,"24,628.00",21/05/2018
Assurance,Assurance,Rents,60105141,SARACENS LTD,"28,398.00",30/05/2018
Assurance,Assurance,Equipment and Materials Purcha,60103480,CITY FURNITURE HIRE LIMITED,485.52,24/05/2018
Assurance,Assurance,Equipment and Materials Purcha,60105062,CITY FURNITURE HIRE LIMITED,"1,326.00",30/05/2018
Assurance,Assurance,Equipment and Materials Purcha,60105085,CITY FURNITURE HIRE LIMITED,"1,489.77",30/05/2018
Assurance,Assurance,Equipment and Materials Purcha,60104277,LONDON SITE SERVICES LTD,"12,974.50",29/05/2018
Assurance,Assurance,Equipment and Materials Purcha,60102903,PAKFLATT (UK) LIMITED,"1,040.00",10/05/2018
Assurance,Assurance,Equipment and Materials Purcha,60103356,S W BRUCE & CO LTD,"1,850.00",23/05/2018
Assurance,Assurance,Printing-Contract,60104448,ELECTORAL REFORM SERVICES,"82,290.29",18/05/2018
Assurance,Assurance,Stationery,60105169,PAKFLATT (UK) LIMITED,920.00,30/05/2018
Assurance,Assurance,General Office Expenses,40002826,OFFICE DEPOT UK LTD,137.16,17/05/2018
Assurance,Assurance,Publications,60104618,SHAW & SONS LIMITED,370.00,22/05/2018
Assurance,Assurance,Other Services,60103097,PAKFLATT (UK) LIMITED,"8,230.00",17/05/2018
Assurance,Assurance,Postage,60104235,ROYAL MAIL GROUP LIMITED,"5,077.76",18/05/2018
Assurance,Assurance,Postage,60104412,ROYAL MAIL GROUP LIMITED,"5,654.40",18/05/2018
Assurance,Assurance,Stationery,80017189,SURE24 LIMITED,34.86,04/05/2018
Assurance,Assurance,Professional Services,60104513,BRITISH CHAUFFERS GUILD LIMITED,48.00,21/05/2018
Assurance,Assurance,General Office Expenses,40002820,OFFICE DEPOT UK LTD,6.36,17/05/2018
Assurance,Assurance,Equipment and Materials Purcha,80017462,PINKS FLORISTS,308.33,24/05/2018
Assurance,Assurance,Professional Services,60103676,GOOD IMPRESSIONS (LONDON) LIMITED,660.00,24/05/2018
Assurance,Assurance,Professional Services,60104157,REDACTED - PERSONAL DATA,275.00,17/05/2018
Assurance,Assurance,Professional Services,60103556,PRICEWATERHOUSE COOPERS,"30,973.44",04/05/2018
Assurance,Assurance,Professional Services,60103567,PRICEWATERHOUSE COOPERS,"30,973.44",04/05/2018
Assurance,Assurance,Translation Exp / Interpret,60104443,REDACTED - PERSONAL DATA,"1,050.00",21/05/2018
Assurance,Assurance,Subscriptions,60104599,TAMESIDE METROPOLITAN BOROUGH COUNC,"1,050.00",22/05/2018
Assurance,Assurance,Subscriptions,60103087,COMPANIES HOUSE,4.00,16/05/2018
Assurance,Assurance,Subscriptions,60103154,COMPANIES HOUSE,7.00,16/05/2018
Balance Sheet,Balance Sheet,Technology Benefits,20036242,STORMFRONT RETAIL LTD,"2,813.33",29/05/2018
Balance Sheet,Balance Sheet,Schools -Technology Benefits,20036241,STORMFRONT RETAIL LTD,515.83,29/05/2018
Central Expenses,Central Expenses,Other Establishments - Third P,EBX0227054,CITY OF LONDON,"47,295.00",17/05/2018
Central Expenses,Central Expenses,Other Establishments - Third P,EBX0226589,ENVIRONMENT AGENCY,"80,523.50",15/05/2018
Central Expenses,Central Expenses,Other Establishments - Third P,EBX0227847,CITY OF LONDON,"100,517.00",24/05/2018
Central Expenses,Central Expenses,Subscriptions,60104731,GREATER LONDON AUTHORITY,"49,678.00",23/05/2018
Central Expenses,Central Expenses,Other Establishments - Third P,20036228,LEE VALLEY REGIONAL PARK AUTH.,"28,597.64",22/05/2018
Central Expenses,Central Expenses,Other Establishments - Third P,60104723,TRANSPORT TRADING LIMITED,"3,737,461.00",23/05/2018
Central Expenses,Central Expenses,Bank Charges,80017078,PAYPOINT COLLECTIONS LTD,454.08,01/05/2018
Central Expenses,Central Expenses,Bank Charges,80017199,PAYPOINT COLLECTIONS LTD,361.35,10/05/2018
Central Expenses,Central Expenses,Bank Charges,80017321,PAYPOINT COLLECTIONS LTD,340.34,10/05/2018
Central Expenses,Central Expenses,Bank Charges,80017456,PAYPOINT COLLECTIONS LTD,788.26,22/05/2018
Central Expenses,Central Expenses,Bank Charges,80017596,PAYPOINT COLLECTIONS LTD,515.57,30/05/2018
Central Expenses,Central Expenses,Bank Charges,80017077,PAYPOINT NETWORK LTD,949.44,01/05/2018
Central Expenses,Central Expenses,Bank Charges,80017203,PAYPOINT NETWORK LTD,755.55,10/05/2018
Central Expenses,Central Expenses,Bank Charges,80017322,PAYPOINT NETWORK LTD,711.62,10/05/2018
Central Expenses,Central Expenses,Bank Charges,80017457,PAYPOINT NETWORK LTD,"1,648.18",22/05/2018
Central Expenses,Central Expenses,Bank Charges,80017597,PAYPOINT NETWORK LTD,"1,078.01",30/05/2018
Central Expenses,Central Expenses,Insurance Claims,60105098,BROWNE JACOBSON SOLS.,975.50,31/05/2018
Central Expenses,Central Expenses,Insurance Claims,60105180,BROWNE JACOBSON SOLS.,"1,192.00",31/05/2018
Central Expenses,Central Expenses,Insurance Claims,80017223,BROWNE JACOBSON SOLS.,"3,600.00",04/05/2018
Central Expenses,Central Expenses,Insurance Claims,80017233,BROWNE JACOBSON SOLS.,"9,875.00",04/05/2018
Central Expenses,Central Expenses,Insurance Claims,80017467,IRWIN MITCHELL LLP,330.00,18/05/2018
Central Expenses,Central Expenses,Insurance Claims,60088289,WEIGHTMANS LLP,673.63,18/05/2018
Central Expenses,Central Expenses,Insurance Claims,60088310,WEIGHTMANS LLP,900.00,18/05/2018
Central Expenses,Central Expenses,Insurance Claims,60098372,WEIGHTMANS LLP,954.50,18/05/2018
Central Expenses,Central Expenses,Insurance Claims,60099475,WEIGHTMANS LLP,"3,494.00",18/05/2018
Central Expenses,Central Expenses,Insurance Claims,60104559,WEIGHTMANS LLP,"1,136.00",23/05/2018
Central Expenses,Central Expenses,Insurance Claims,60104577,WEIGHTMANS LLP,600.00,23/05/2018
Central Expenses,Central Expenses,Insurance Claims,60104580,WEIGHTMANS LLP,"1,240.50",23/05/2018
Central Expenses,Central Expenses,Insurance Claims,60104602,WEIGHTMANS LLP,"1,372.00",23/05/2018
Central Expenses,Central Expenses,Insurance Claims,80017335,DWP COMPENSATION RECOVERY UNIT,665.00,14/05/2018
Central Expenses,Central Expenses,Insurance Claims,80017553,DWP COMPENSATION RECOVERY UNIT,665.00,22/05/2018
Central Expenses,Central Expenses,Insurance Claims,80017098,CITY SUBURBAN TREE SURGEONS LTD,76.00,02/05/2018
Central Expenses,Central Expenses,Insurance Claims,80017100,PRINCIPIA LAW,"4,548.78",02/05/2018
Central Expenses,Central Expenses,Insurance Claims,80017104,KINDERTONS LTD,"7,561.30",02/05/2018
Central Expenses,Central Expenses,Insurance Claims,80017230,AXA CAR INSURANCE,"2,322.62",10/05/2018
Central Expenses,Central Expenses,Insurance Claims,80017231,CENTRAL LONDON COMMUNITYHEALTH,10.00,10/05/2018
Central Expenses,Central Expenses,Insurance Claims,80017232,ST GEORGE'S MEDICAL CENTRE,50.00,10/05/2018
Central Expenses,Central Expenses,Insurance Claims,80017315,CENTRAL LONDON COMMUNITYHEALTH,10.00,14/05/2018
Central Expenses,Central Expenses,Insurance Claims,80017317,RUSSEL WORTH SOLICITORS,"4,030.00",14/05/2018
Central Expenses,Central Expenses,Insurance Claims,80017318,MANNERS PIMBLETT SOLICITORS,"6,739.00",14/05/2018
Central Expenses,Central Expenses,Insurance Claims,80017319,BLR PROPERTY MANAGEMENT,"4,000.00",14/05/2018
Central Expenses,Central Expenses,Insurance Claims,80017418,LYONS DAVIDSON,"13,002.00",18/05/2018
Central Expenses,Central Expenses,Insurance Claims,80017470,LYONS DAVIDSON,"4,087.20",18/05/2018
Central Expenses,Central Expenses,Insurance Claims,80017601,KLS LAW,"10,360.41",30/05/2018
Central Expenses,Central Expenses,Insurance Claims,80017609,KEEBLE HAWSON SOLICITORS,"11,448.36",30/05/2018
Central Expenses,Central Expenses,Insurance Claims,60103408,ROMAIN COLEMAN SOLICITORS,"17,886.50",17/05/2018
Central Expenses,Central Expenses,Insurance Claims,80017096,PRINCIPIA LAW,"6,880.00",02/05/2018
Central Expenses,Central Expenses,Insurance Claims,80017130,BDE LAW SOLICITORS,731.11,02/05/2018
Central Expenses,Central Expenses,Insurance Claims,80017144,SCOTT REES & CO SOLICITORS,"4,925.02",02/05/2018
Central Expenses,Central Expenses,Insurance Claims,80017152,REDACTED - PERSONAL DATA,"1,213.33",09/05/2018
Central Expenses,Central Expenses,Insurance Claims,80017176,REDACTED - PERSONAL DATA,800.00,09/05/2018
Central Expenses,Central Expenses,Insurance Claims,80017289,REDACTED - PERSONAL DATA,240.00,09/05/2018
Central Expenses,Central Expenses,Insurance Claims,80017334,REDACTED - PERSONAL DATA,130.00,14/05/2018
Central Expenses,Central Expenses,Insurance Claims,80017344,REDACTED - PERSONAL DATA,"1,300.00",14/05/2018
Central Expenses,Central Expenses,Insurance Claims,80017402,REDACTED - PERSONAL DATA,67.99,16/05/2018
Central Expenses,Central Expenses,Insurance Claims,80017408,REDACTED - PERSONAL DATA,579.60,16/05/2018
Central Expenses,Central Expenses,Insurance Claims,80017409,REDACTED - PERSONAL DATA,300.00,16/05/2018
Central Expenses,Central Expenses,Insurance Claims,80017411,REDACTED - PERSONAL DATA,230.00,16/05/2018
Central Expenses,Central Expenses,Insurance Claims,80017415,REDACTED - PERSONAL DATA,"2,200.00",17/05/2018
Central Expenses,Central Expenses,Insurance Claims,80017421,REDACTED - PERSONAL DATA,164.21,15/05/2018
Central Expenses,Central Expenses,Insurance Claims,80017552,REDACTED - PERSONAL DATA,54.00,22/05/2018
Central Expenses,Central Expenses,Insurance Claims,80017577,REDACTED - PERSONAL DATA,92.50,23/05/2018
Central Expenses,Central Expenses,Insurance Claims,80017626,REDACTED - PERSONAL DATA,300.00,30/05/2018
Central Expenses,Central Expenses,Insurance Claims,80017627,REDACTED - PERSONAL DATA,"6,000.00",29/05/2018
Commercial,Customer Support Group,Building Repairs & Maintenance,60047914,AJS LTD,115.50,16/05/2018
Commercial,Customer Support Group,Building Repairs & Maintenance,60047900,AJS LTD,16.50,16/05/2018
Commercial,Customer Support Group,Building Repairs & Maintenance,60097863,AJS LTD,587.82,14/05/2018
Commercial,Customer Support Group,Building Repairs & Maintenance,60097916,AJS LTD,69.04,14/05/2018
Commercial,Customer Support Group,Building Repairs & Maintenance,60102627,AJS LTD,260.05,16/05/2018
Commercial,Customer Support Group,Building Repairs & Maintenance,60102698,AJS LTD,783.75,16/05/2018
Commercial,Customer Support Group,Building Repairs & Maintenance,60105238,AJS LTD,296.87,31/05/2018
Commercial,Customer Support Group,Building Repairs & Maintenance,60105251,AJS LTD,296.87,30/05/2018
Commercial,Customer Support Group,Building Repairs & Maintenance,60033567,HERTEL (UK) LTD,40.83,21/05/2018
Commercial,Customer Support Group,Building Repairs & Maintenance,60095327,LIFT & ENGINEERING SERVICES LTD,49.58,31/05/2018
Commercial,Customer Support Group,Building Repairs & Maintenance,60099445,LIFT & ENGINEERING SERVICES LTD,66.94,17/05/2018
Commercial,Customer Support Group,Building Repairs & Maintenance,60099453,LIFT & ENGINEERING SERVICES LTD,66.94,03/05/2018
Commercial,Customer Support Group,Building Repairs & Maintenance,60104208,LIFT & ENGINEERING SERVICES LTD,66.94,29/05/2018
Commercial,Customer Support Group,Building Repairs & Maintenance,60104217,LIFT & ENGINEERING SERVICES LTD,66.94,29/05/2018
Commercial,Customer Support Group,Building Repairs & Maintenance,60091699,OAKRAY LIMITED,"1,254.40",14/05/2018
Commercial,Customer Support Group,Building Repairs & Maintenance,60091721,OAKRAY LIMITED,313.20,14/05/2018
Commercial,Customer Support Group,Building Repairs & Maintenance,60099932,OAKRAY LIMITED,"2,396.85",31/05/2018
Commercial,Customer Support Group,Building Repairs & Maintenance,60099933,OAKRAY LIMITED,909.05,31/05/2018
Commercial,Customer Support Group,Building Repairs & Maintenance,60099942,OAKRAY LIMITED,661.20,31/05/2018
Commercial,Customer Support Group,Building Repairs & Maintenance,60099951,OAKRAY LIMITED,595.08,31/05/2018
Commercial,Customer Support Group,Building Repairs & Maintenance,60099952,OAKRAY LIMITED,"1,917.48",31/05/2018
Commercial,Customer Support Group,Building Repairs & Maintenance,60103410,OAKRAY LIMITED,"2,743.00",31/05/2018
Commercial,Customer Support Group,Building Repairs & Maintenance,60101755,RGE SERVICES,"1,074.07",14/05/2018
Commercial,Customer Support Group,Building Repairs & Maintenance,60101812,RGE SERVICES,265.05,14/05/2018
Commercial,Customer Support Group,Building Repairs & Maintenance,60104658,RGE SERVICES,233.73,23/05/2018
Commercial,Customer Support Group,Building Repairs & Maintenance,60104755,RGE SERVICES,582.09,23/05/2018
Commercial,Customer Support Group,Building Repairs & Maintenance,60104803,RGE SERVICES,80.32,24/05/2018
Commercial,Customer Support Group,Building Repairs & Maintenance,60103340,S W BRUCE & CO LTD,"6,343.06",31/05/2018
Commercial,Customer Support Group,Building Repairs & Maintenance,60103780,S W BRUCE & CO LTD,322.00,31/05/2018
Commercial,Customer Support Group,Building Repairs & Maintenance,60103475,OAKRAY LIMITED,229.81,31/05/2018
Commercial,Customer Support Group,Cleaning and domestic material,60103845,CHURCHILL CONTRACT SERVICES,"1,032.37",30/05/2018
Commercial,Customer Support Group,Training,60103655,SKILLS TRAINING CENTRE LTD,"1,190.00",04/05/2018
Commercial,Customer Support Group,Training,60103678,SKILLS TRAINING CENTRE LTD,340.00,04/05/2018
Commercial,Customer Support Group,Building Repairs & Maintenance,60095380,LIFT & ENGINEERING SERVICES LTD,71.69,31/05/2018
Commercial,Customer Support Group,Building Repairs & Maintenance,60095394,LIFT & ENGINEERING SERVICES LTD,71.69,31/05/2018
Commercial,Customer Support Group,Building Repairs & Maintenance,60098856,LIFT & ENGINEERING SERVICES LTD,215.07,31/05/2018
Commercial,Customer Support Group,Building Repairs & Maintenance,60101386,LIFT & ENGINEERING SERVICES LTD,87.00,31/05/2018
Commercial,Customer Support Group,Building Repairs & Maintenance,60099415,OAKRAY LIMITED,704.70,31/05/2018
Commercial,Customer Support Group,Building Repairs & Maintenance,60102332,OAKRAY LIMITED,96.00,30/05/2018
Commercial,Customer Support Group,Building Repairs & Maintenance,60104557,RGE SERVICES,65.00,22/05/2018
Commercial,Customer Support Group,Building Repairs & Maintenance,60104655,RGE SERVICES,113.69,31/05/2018
Commercial,Customer Support Group,Building Repairs & Maintenance,60009691,S W BRUCE & CO LTD,145.76,31/05/2018
Commercial,Customer Support Group,Building Repairs & Maintenance,60009695,S W BRUCE & CO LTD,73.49,31/05/2018
Commercial,Customer Support Group,Building Repairs & Maintenance,60066124,S W BRUCE & CO LTD,193.10,21/05/2018
Commercial,Customer Support Group,Building Repairs & Maintenance,60101691,S W BRUCE & CO LTD,45.00,30/05/2018
Commercial,Customer Support Group,Building Repairs & Maintenance,60101710,S W BRUCE & CO LTD,175.00,31/05/2018
Commercial,Customer Support Group,Building Repairs & Maintenance,60101713,S W BRUCE & CO LTD,110.00,31/05/2018
Commercial,Customer Support Group,Building Repairs & Maintenance,60101726,S W BRUCE & CO LTD,58.00,31/05/2018
Commercial,Customer Support Group,Building Repairs & Maintenance,60101745,S W BRUCE & CO LTD,242.00,30/05/2018
Commercial,Customer Support Group,Building Repairs & Maintenance,60101754,S W BRUCE & CO LTD,74.75,30/05/2018
Commercial,Customer Support Group,Building Repairs & Maintenance,60103030,S W BRUCE & CO LTD,46.00,31/05/2018
Commercial,Customer Support Group,Building Repairs & Maintenance,60103050,S W BRUCE & CO LTD,121.20,31/05/2018
Commercial,Customer Support Group,Gas,60102896,KENT COUNTY COUNCIL (KCS),"6,382.97",02/05/2018
Commercial,Customer Support Group,Gas,60104657,KENT COUNTY COUNCIL (KCS),"4,050.50",30/05/2018
Commercial,Customer Support Group,Electricity,60102871,KENT COUNTY COUNCIL (KCS),"6,113.51",02/05/2018
Commercial,Customer Support Group,Electricity,60104726,KENT COUNTY COUNCIL (KCS),"5,385.90",30/05/2018
Commercial,Customer Support Group,Other Energy,60102715,EDF ENERGY CUSTOMER FIELD SERVICES,143.80,04/05/2018
Commercial,Customer Support Group,Water Services,60104675,ANGEL SPRINGS LTD,17.05,23/05/2018
Commercial,Customer Support Group,Water Services,60104708,CASTLE WATER LTD,"1,077.08",23/05/2018
Commercial,Customer Support Group,Cleaning and domestic material,60104158,HERTFORDSHIRE COUNTY COUNCIL,"2,510.90",14/05/2018
Commercial,Customer Support Group,Cleaning and domestic material,60103835,CHURCHILL CONTRACT SERVICES,"11,562.54",30/05/2018
Commercial,Customer Support Group,Rubbish Collection,60082936,G.B.HOLDINGS LTD,916.00,09/05/2018
Commercial,Customer Support Group,Equipment and Materials Purcha,60104772,ACTION ON HEARING LOSS,"1,356.70",24/05/2018
Commercial,Customer Support Group,Equipment and Materials Purcha,60104202,LIFT & ENGINEERING SERVICES LTD,"3,520.00",31/05/2018
Commercial,Customer Support Group,Furniture-Purchase-Repair,60103252,SCREWFIX DIRECT LTD,35.36,02/05/2018
Commercial,Customer Support Group,Furniture-Purchase-Repair,60104430,SCREWFIX DIRECT LTD,79.92,18/05/2018
Commercial,Customer Support Group,Building Repairs & Maintenance,60101387,DORMA UK LTD,228.45,31/05/2018
Commercial,Customer Support Group,Building Repairs & Maintenance,60099423,LIFT & ENGINEERING SERVICES LTD,66.94,31/05/2018
Commercial,Customer Support Group,Building Repairs & Maintenance,60099494,LIFT & ENGINEERING SERVICES LTD,87.00,31/05/2018
Commercial,Customer Support Group,Building Repairs & Maintenance,60103236,LIFT & ENGINEERING SERVICES LTD,820.00,31/05/2018
Commercial,Customer Support Group,Building Repairs & Maintenance,60099491,OAKRAY LIMITED,"1,722.60",31/05/2018
Commercial,Customer Support Group,Building Repairs & Maintenance,60102395,S W BRUCE & CO LTD,78.00,30/05/2018
Commercial,Customer Support Group,Electricity,10014036,E-ON ENERGY,147.55,01/05/2018
Commercial,Customer Support Group,Rents,60103820,MIDDLESEX UNIVERSITY,"31,125.00",10/05/2018
Commercial,Customer Support Group,Water Services,60104302,ANGEL SPRINGS LTD,123.48,29/05/2018
Commercial,Customer Support Group,Cleaning and domestic material,60104097,HERTFORDSHIRE COUNTY COUNCIL,335.22,14/05/2018
Commercial,Customer Support Group,Cleaning and domestic material,60103800,CHURCHILL CONTRACT SERVICES,"1,133.45",30/05/2018
Commercial,Customer Support Group,Cleaning and domestic material,60103932,CHURCHILL CONTRACT SERVICES,63.99,30/05/2018
Commercial,Customer Support Group,Cleaning and domestic material,60104278,CHURCHILL CONTRACT SERVICES,"1,000.00",30/05/2018
Commercial,Customer Support Group,Rubbish Collection,60102319,G.B.HOLDINGS LTD,214.00,15/05/2018
Commercial,Customer Support Group,Furniture-Purchase-Repair,60105253,C.E.S.,149.17,30/05/2018
Commercial,Customer Support Group,Books-CDs-Audio-Video,60104473,SM ELECTRICAL SERVICES,100.00,31/05/2018
Commercial,Customer Support Group,Other Services,60103983,BLUE 9 SECURITY LIMITED,"5,477.41",11/05/2018
Commercial,Customer Support Group,Gas,60098913,KENT COUNTY COUNCIL (KCS),694.18,11/05/2018
Commercial,Customer Support Group,Gas,60103124,KENT COUNTY COUNCIL (KCS),722.07,02/05/2018
Commercial,Customer Support Group,Gas,60104652,KENT COUNTY COUNCIL (KCS),413.41,30/05/2018
Commercial,Customer Support Group,Electricity,60103600,KENT COUNTY COUNCIL (KCS),"1,182.61",10/05/2018
Commercial,Customer Support Group,Building Repairs & Maintenance,60087184,OAKRAY LIMITED,"1,800.00",31/05/2018
Commercial,Customer Support Group,Building Repairs & Maintenance,60013003,S W BRUCE & CO LTD,38.03,31/05/2018
Commercial,Customer Support Group,Building Repairs & Maintenance,60013125,S W BRUCE & CO LTD,53.52,31/05/2018
Commercial,Customer Support Group,Building Repairs & Maintenance,60104813,ACTION ON HEARING LOSS,244.00,24/05/2018
Commercial,Customer Support Group,Building Repairs & Maintenance,60103944,NORTH LONDON CATERING EQUIPMENT,174.00,11/05/2018
Commercial,Customer Support Group,Building Repairs & Maintenance,60104258,NORTH LONDON CATERING EQUIPMENT,282.90,16/05/2018
Commercial,Customer Support Group,Service Charges,60103821,MIDDLESEX UNIVERSITY,"28,184.65",10/05/2018
Commercial,Customer Support Group,Cleaning and domestic material,60103823,CHURCHILL CONTRACT SERVICES,"7,329.82",30/05/2018
Commercial,Customer Support Group,Cleaning and domestic material,60103879,CHURCHILL CONTRACT SERVICES,638.40,30/05/2018
Commercial,Customer Support Group,Rubbish Collection,60104581,PREMIER SHREDDING,54.00,24/05/2018
Commercial,Customer Support Group,Equipment and Materials Purcha,60059348,BRITA WATER FILTER SYSTEMS LIMITED,177.07,21/05/2018
Commercial,Customer Support Group,Equipment and Materials Purcha,60102630,S W BRUCE & CO LTD,"1,282.50",31/05/2018
Commercial,Customer Support Group,Equipment and Materials Purcha,10013999,SECOM PLC,"1,926.00",14/05/2018
Commercial,Customer Support Group,Furniture-Purchase-Repair,60104465,SCREWFIX DIRECT LTD,12.75,18/05/2018
Commercial,Customer Support Group,Furniture-Purchase-Repair,60104818,SCREWFIX DIRECT LTD,26.65,29/05/2018
Commercial,Customer Support Group,Other Services,60103975,BLUE 9 SECURITY LIMITED,"11,210.40",11/05/2018
Commercial,Customer Support Group,Building Repairs & Maintenance,60101434,LIFT & ENGINEERING SERVICES LTD,116.00,31/05/2018
Commercial,Customer Support Group,Building Repairs & Maintenance,60104166,LIFT & ENGINEERING SERVICES LTD,89.25,31/05/2018
Commercial,Customer Support Group,Building Repairs & Maintenance,60099382,OAKRAY LIMITED,861.30,31/05/2018
Commercial,Customer Support Group,Building Repairs & Maintenance,60102420,S W BRUCE & CO LTD,110.00,31/05/2018
Commercial,Customer Support Group,Gas,60104662,KENT COUNTY COUNCIL (KCS),194.39,23/05/2018
Commercial,Customer Support Group,Cleaning and domestic material,60103814,CHURCHILL CONTRACT SERVICES,661.80,30/05/2018
Commercial,Customer Support Group,Cleaning and domestic material,60103862,CHURCHILL CONTRACT SERVICES,119.25,30/05/2018
Commercial,Customer Support Group,CSG Services Contract Payment,60104736,CAPITA BUSINESS SERVICES LTD,"66,890.00",23/05/2018
Commercial,Customer Support Group,CSG Services Contract Payment,60104740,CAPITA BUSINESS SERVICES LTD,"34,690.00",29/05/2018
Commercial,Customer Support Group,CSG Services Contract Payment,60103198,CAPITA BUSINESS SERVICES LTD,"78,383.74",04/05/2018
Commercial,Customer Support Group,CSG Services Contract Payment,60104683,CAPITA BUSINESS SERVICES LTD,"10,280.65",25/05/2018
Commercial,Customer Support Group,CSG Services Contract Payment,60104698,CAPITA BUSINESS SERVICES LTD,"33,245.76",25/05/2018
Commercial,Customer Support Group,CSG Services Contract Payment,60104700,CAPITA BUSINESS SERVICES LTD,"8,127.00",25/05/2018
Commercial,Customer Support Group,CSG Services Contract Payment,60104729,CAPITA BUSINESS SERVICES LTD,"541,033.00",25/05/2018
Commercial,Customer Support Group,Software Licences & Support,60102023,RM EDUCATION PLC,"53,225.00",02/05/2018
Commercial,Customer Support Group,Building Repairs & Maintenance,60102620,AJS LTD,133.74,16/05/2018
Commercial,Customer Support Group,Building Repairs & Maintenance,60102652,AJS LTD,148.60,14/05/2018
Commercial,Customer Support Group,Building Repairs & Maintenance,60102702,AJS LTD,126.31,14/05/2018
Commercial,Customer Support Group,Building Repairs & Maintenance,60097171,HERTEL (UK) LTD,37.00,14/05/2018
Commercial,Customer Support Group,Building Repairs & Maintenance,60101108,HERTEL (UK) LTD,34.91,14/05/2018
Commercial,Customer Support Group,Building Repairs & Maintenance,60104789,HERTEL (UK) LTD,34.91,24/05/2018
Commercial,Customer Support Group,Building Repairs & Maintenance,60087185,LEE SECURITY LONDON LIMITED,88.00,31/05/2018
Commercial,Customer Support Group,Building Repairs & Maintenance,60095365,LIFT & ENGINEERING SERVICES LTD,99.17,31/05/2018
Commercial,Customer Support Group,Building Repairs & Maintenance,60099428,LIFT & ENGINEERING SERVICES LTD,89.25,31/05/2018
Commercial,Customer Support Group,Building Repairs & Maintenance,60103931,LIFT & ENGINEERING SERVICES LTD,89.25,31/05/2018
Commercial,Customer Support Group,Building Repairs & Maintenance,60089556,OAKRAY LIMITED,48.00,31/05/2018
Commercial,Customer Support Group,Building Repairs & Maintenance,60089636,OAKRAY LIMITED,64.00,31/05/2018
Commercial,Customer Support Group,Building Repairs & Maintenance,60094057,OAKRAY LIMITED,162.00,14/05/2018
Commercial,Customer Support Group,Building Repairs & Maintenance,60099416,OAKRAY LIMITED,112.00,31/05/2018
Commercial,Customer Support Group,Building Repairs & Maintenance,60099422,OAKRAY LIMITED,487.50,31/05/2018
Commercial,Customer Support Group,Building Repairs & Maintenance,60099460,OAKRAY LIMITED,"2,020.14",31/05/2018
Commercial,Customer Support Group,Building Repairs & Maintenance,60099471,OAKRAY LIMITED,548.10,31/05/2018
Commercial,Customer Support Group,Building Repairs & Maintenance,60099936,OAKRAY LIMITED,112.00,14/05/2018
Commercial,Customer Support Group,Building Repairs & Maintenance,60102287,OAKRAY LIMITED,148.50,31/05/2018
Commercial,Customer Support Group,Building Repairs & Maintenance,60102318,OAKRAY LIMITED,80.00,30/05/2018
Commercial,Customer Support Group,Building Repairs & Maintenance,60102376,OAKRAY LIMITED,108.00,30/05/2018
Commercial,Customer Support Group,Building Repairs & Maintenance,60102392,OAKRAY LIMITED,162.00,30/05/2018
Commercial,Customer Support Group,Building Repairs & Maintenance,60103457,OAKRAY LIMITED,198.26,22/05/2018
Commercial,Customer Support Group,Building Repairs & Maintenance,60066869,PUBLIC CLOCKS LTD,46.35,18/05/2018
Commercial,Customer Support Group,Building Repairs & Maintenance,60098495,RGE SERVICES,"1,420.56",18/05/2018
Commercial,Customer Support Group,Building Repairs & Maintenance,60098496,RGE SERVICES,"1,935.15",18/05/2018
Commercial,Customer Support Group,Building Repairs & Maintenance,60099534,RGE SERVICES,153.90,18/05/2018
Commercial,Customer Support Group,Building Repairs & Maintenance,60099570,RGE SERVICES,218.03,14/05/2018
Commercial,Customer Support Group,Building Repairs & Maintenance,60101777,RGE SERVICES,94.05,14/05/2018
Commercial,Customer Support Group,Building Repairs & Maintenance,60101806,RGE SERVICES,25.70,14/05/2018
Commercial,Customer Support Group,Building Repairs & Maintenance,60102103,RGE SERVICES,132.53,18/05/2018
Commercial,Customer Support Group,Building Repairs & Maintenance,60104647,RGE SERVICES,65.00,31/05/2018
Commercial,Customer Support Group,Building Repairs & Maintenance,60104819,RGE SERVICES,65.00,24/05/2018
Commercial,Customer Support Group,Building Repairs & Maintenance,60104839,RGE SERVICES,65.00,24/05/2018
Commercial,Customer Support Group,Building Repairs & Maintenance,60012644,S W BRUCE & CO LTD,34.09,21/05/2018
Commercial,Customer Support Group,Building Repairs & Maintenance,60012652,S W BRUCE & CO LTD,46.31,31/05/2018
Commercial,Customer Support Group,Building Repairs & Maintenance,60013134,S W BRUCE & CO LTD,100.04,21/05/2018
Commercial,Customer Support Group,Building Repairs & Maintenance,60068399,S W BRUCE & CO LTD,94.67,21/05/2018
Commercial,Customer Support Group,Building Repairs & Maintenance,60095359,S W BRUCE & CO LTD,454.25,14/05/2018
Commercial,Customer Support Group,Building Repairs & Maintenance,60101696,S W BRUCE & CO LTD,96.00,31/05/2018
Commercial,Customer Support Group,Building Repairs & Maintenance,60101706,S W BRUCE & CO LTD,110.00,31/05/2018
Commercial,Customer Support Group,Building Repairs & Maintenance,60101740,S W BRUCE & CO LTD,65.00,30/05/2018
Commercial,Customer Support Group,Building Repairs & Maintenance,60101757,S W BRUCE & CO LTD,122.00,31/05/2018
Commercial,Customer Support Group,Building Repairs & Maintenance,60101759,S W BRUCE & CO LTD,55.00,14/05/2018
Commercial,Customer Support Group,Building Repairs & Maintenance,60101776,S W BRUCE & CO LTD,65.00,31/05/2018
Commercial,Customer Support Group,Building Repairs & Maintenance,60101825,S W BRUCE & CO LTD,32.00,30/05/2018
Commercial,Customer Support Group,Building Repairs & Maintenance,60101877,S W BRUCE & CO LTD,32.00,31/05/2018
Commercial,Customer Support Group,Building Repairs & Maintenance,60102399,S W BRUCE & CO LTD,92.00,31/05/2018
Commercial,Customer Support Group,Building Repairs & Maintenance,60102427,S W BRUCE & CO LTD,95.00,31/05/2018
Commercial,Customer Support Group,Building Repairs & Maintenance,60102452,S W BRUCE & CO LTD,62.00,31/05/2018
Commercial,Customer Support Group,Building Repairs & Maintenance,60102462,S W BRUCE & CO LTD,120.00,31/05/2018
Commercial,Customer Support Group,Building Repairs & Maintenance,60102534,S W BRUCE & CO LTD,42.00,31/05/2018
Commercial,Customer Support Group,Building Repairs & Maintenance,60102988,S W BRUCE & CO LTD,145.20,31/05/2018
Commercial,Customer Support Group,Building Repairs & Maintenance,60102989,S W BRUCE & CO LTD,88.50,31/05/2018
Commercial,Customer Support Group,Building Repairs & Maintenance,60103028,S W BRUCE & CO LTD,90.86,31/05/2018
Commercial,Customer Support Group,Building Repairs & Maintenance,60103061,S W BRUCE & CO LTD,88.80,31/05/2018
Commercial,Customer Support Group,Building Repairs & Maintenance,60104205,TANN SYNCHRONOME LTD,348.22,15/05/2018
Commercial,Customer Support Group,Building Repairs & Maintenance,60100728,TECHNICAL SURFACES LTD,465.00,11/05/2018
Commercial,Customer Support Group,Building Repairs & Maintenance,60103960,TECHNICAL SURFACES LTD,465.00,24/05/2018
Commercial,Customer Support Group,Building Repairs & Maintenance,60102196,THAMES LABORATORIES,298.00,14/05/2018
Commercial,Customer Support Group,Building Repairs & Maintenance,60102274,THAMES LABORATORIES,150.00,14/05/2018
Commercial,Customer Support Group,Building Repairs & Maintenance,60102439,WINTERS RECYCLING LTD,"1,227.00",03/05/2018
Commercial,Customer Support Group,Building Repairs & Maintenance,60102851,WINTERS RECYCLING LTD,160.00,10/05/2018
Commercial,Customer Support Group,Building Repairs & Maintenance,60103244,WINTERS RECYCLING LTD,600.00,18/05/2018
Commercial,Customer Support Group,Gas,60102755,KENT COUNTY COUNCIL (KCS),332.74,02/05/2018
Commercial,Customer Support Group,Gas,60103104,KENT COUNTY COUNCIL (KCS),17.46,02/05/2018
Commercial,Customer Support Group,Gas,60103114,KENT COUNTY COUNCIL (KCS),69.75,02/05/2018
Commercial,Customer Support Group,Gas,60103139,KENT COUNTY COUNCIL (KCS),121.83,03/05/2018
Commercial,Customer Support Group,Gas,60103173,KENT COUNTY COUNCIL (KCS),223.40,02/05/2018
Commercial,Customer Support Group,Gas,60103175,KENT COUNTY COUNCIL (KCS),57.35,02/05/2018
Commercial,Customer Support Group,Gas,60103189,KENT COUNTY COUNCIL (KCS),746.13,02/05/2018
Commercial,Customer Support Group,Gas,60103192,KENT COUNTY COUNCIL (KCS),177.90,02/05/2018
Commercial,Customer Support Group,Gas,60104654,KENT COUNTY COUNCIL (KCS),585.20,30/05/2018
Commercial,Customer Support Group,Gas,60104681,KENT COUNTY COUNCIL (KCS),90.58,30/05/2018
Commercial,Customer Support Group,Gas,60104707,KENT COUNTY COUNCIL (KCS),276.77,30/05/2018
Commercial,Customer Support Group,Gas,60104728,KENT COUNTY COUNCIL (KCS),119.06,30/05/2018
Commercial,Customer Support Group,Gas,60104734,KENT COUNTY COUNCIL (KCS),96.26,30/05/2018
Commercial,Customer Support Group,Gas,60104783,KENT COUNTY COUNCIL (KCS),205.49,30/05/2018
Commercial,Customer Support Group,Gas,60104792,KENT COUNTY COUNCIL (KCS),945.84,30/05/2018
Commercial,Customer Support Group,Gas,60104798,KENT COUNTY COUNCIL (KCS),"1,595.55",30/05/2018
Commercial,Customer Support Group,Gas,60104805,KENT COUNTY COUNCIL (KCS),851.05,30/05/2018
Commercial,Customer Support Group,Gas,60104815,KENT COUNTY COUNCIL (KCS),880.66,30/05/2018
Commercial,Customer Support Group,Gas,60104825,KENT COUNTY COUNCIL (KCS),932.61,30/05/2018
Commercial,Customer Support Group,Gas,60104843,KENT COUNTY COUNCIL (KCS),396.44,30/05/2018
Commercial,Customer Support Group,Gas,60104615,TOTAL GAS & POWER LTD,763.48,22/05/2018
Commercial,Customer Support Group,Electricity,60102655,KENT COUNTY COUNCIL (KCS),317.64,01/05/2018
Commercial,Customer Support Group,Electricity,60102830,KENT COUNTY COUNCIL (KCS),322.08,03/05/2018
Commercial,Customer Support Group,Electricity,60102861,KENT COUNTY COUNCIL (KCS),703.85,02/05/2018
Commercial,Customer Support Group,Electricity,60102867,KENT COUNTY COUNCIL (KCS),436.71,02/05/2018
Commercial,Customer Support Group,Electricity,60103071,KENT COUNTY COUNCIL (KCS),82.83,03/05/2018
Commercial,Customer Support Group,Electricity,60103136,KENT COUNTY COUNCIL (KCS),"1,570.74",03/05/2018
Commercial,Customer Support Group,Electricity,60103138,KENT COUNTY COUNCIL (KCS),331.21,03/05/2018
Commercial,Customer Support Group,Electricity,60103180,KENT COUNTY COUNCIL (KCS),54.23,03/05/2018
Commercial,Customer Support Group,Electricity,60104725,KENT COUNTY COUNCIL (KCS),373.30,30/05/2018
Commercial,Customer Support Group,Electricity,60104775,KENT COUNTY COUNCIL (KCS),"1,464.97",30/05/2018
Commercial,Customer Support Group,Electricity,60104812,KENT COUNTY COUNCIL (KCS),"1,160.58",30/05/2018
Commercial,Customer Support Group,Electricity,60103894,BRITISH GAS BUSINESS(ELEC),80.81,09/05/2018
Commercial,Customer Support Group,Electricity,60103642,E-ON ENERGY,841.19,03/05/2018
Commercial,Customer Support Group,Electricity,60103683,E-ON ENERGY,493.82,03/05/2018
Commercial,Customer Support Group,Electricity,60104325,E-ON ENERGY,22.43,17/05/2018
Commercial,Customer Support Group,Other Energy,60102787,EDF ENERGY CUSTOMER FIELD SERVICES,143.80,04/05/2018
Commercial,Customer Support Group,Service Charges,60104750,LAZARI INVESTMENTS LTD,183.36,23/05/2018
Commercial,Customer Support Group,Water Services,60103508,AFFINITY WATER LIMITED,15.60,01/05/2018
Commercial,Customer Support Group,Cleaning and domestic material,60103805,CHURCHILL CONTRACT SERVICES,294.16,30/05/2018
Commercial,Customer Support Group,Equipment and Materials Purcha,60101407,LIFT & ENGINEERING SERVICES LTD,134.00,31/05/2018
Commercial,Customer Support Group,Consultants Fees,60103829,CBRE INDIRECT INVESTMENT SERVS. LTD,"2,500.00",08/05/2018
Commercial,Customer Support Group,Other Services,60103947,BLUE 9 SECURITY LIMITED,134.30,11/05/2018
Commercial,Customer Support Group,Other Services,60103972,BLUE 9 SECURITY LIMITED,26.86,11/05/2018
Commercial,Customer Support Group,Other Services,60103979,BLUE 9 SECURITY LIMITED,201.45,11/05/2018
Commercial,Customer Support Group,Other Services,60104004,BLUE 9 SECURITY LIMITED,15.57,11/05/2018
Commercial,Customer Support Group,Other Services,60104009,BLUE 9 SECURITY LIMITED,15.57,11/05/2018
Commercial,Customer Support Group,Other Services,60103830,LONDON CARETAKERS LTD,280.00,29/05/2018
Commercial,Customer Support Group,Ttl IT & Comms,60105143,VODAFONE LTD (BILLS ONLY),409.71,30/05/2018
Commercial,Customer Support Group,Subscriptions,80017314,LONDON ENERGY PROJECT,"9,750.00",10/05/2018
Commercial,Customer Support Group,Professional Services,60104279,ROSSENDALES (COLLECT) LTD,3.57,24/05/2018
Commercial,Customer Support Group,Other Services,20036222,LOOMIS UK LIMITED,50.00,21/05/2018
Commercial,Customer Support Group,Other Services,20036223,LOOMIS UK LIMITED,942.22,21/05/2018
Commercial,Customer Support Group,Other Services,20036249,LOOMIS UK LIMITED,942.22,30/05/2018
Commercial,Customer Support Group,Postage,20036250,ROYAL MAIL GROUP LIMITED,331.38,30/05/2018
Commercial,Customer Support Group,Postage,20036251,ROYAL MAIL GROUP LIMITED,331.38,30/05/2018
Commercial,Customer Support Group,Postage,60103160,ENVOPRINT,507.00,17/05/2018
Commercial,Customer Support Group,Postage,60103394,OFF THE WALL MARKETING LTD,"1,102.00",04/05/2018
Commercial,Customer Support Group,Postage,60104482,ROYAL MAIL GROUP LIMITED,161.84,21/05/2018
Commercial,Customer Support Group,Postage,60104488,THARSTERN LIMITED,511.50,25/05/2018
Commercial,Customer Support Group,Ttl IT & Comms,80017500,EURO FOOD MART,77.40,25/05/2018
Commercial,Customer Support Group,Gas,60103194,KENT COUNTY COUNCIL (KCS),"1,030.51",02/05/2018
Commercial,Customer Support Group,Gas,60104248,KENT COUNTY COUNCIL (KCS),209.95,23/05/2018
Commercial,Customer Support Group,Gas,60104266,KENT COUNTY COUNCIL (KCS),347.19,23/05/2018
Commercial,Customer Support Group,Gas,60104762,KENT COUNTY COUNCIL (KCS),601.39,31/05/2018
Commercial,Customer Support Group,Electricity,60102884,KENT COUNTY COUNCIL (KCS),"2,411.39",02/05/2018
Commercial,Customer Support Group,Electricity,60104741,KENT COUNTY COUNCIL (KCS),"1,955.63",30/05/2018
Commercial,Customer Support Group,Other Energy,60102740,EDF ENERGY CUSTOMER FIELD SERVICES,254.00,04/05/2018
Commercial,Customer Support Group,Water Services,60104299,ANGEL SPRINGS LTD,140.00,29/05/2018
Commercial,Customer Support Group,Cleaning and domestic material,60104079,HERTFORDSHIRE COUNTY COUNCIL,247.93,14/05/2018
Commercial,Customer Support Group,Cleaning and domestic material,60104150,HERTFORDSHIRE COUNTY COUNCIL,88.86,14/05/2018
Commercial,Customer Support Group,Equipment and Materials Purcha,60102262,EVAC & CHAIR INTERNATIONAL LTD,695.00,03/05/2018
Commercial,Customer Support Group,Other Services,60103950,BLUE 9 SECURITY LIMITED,"3,269.70",11/05/2018
Commercial,Customer Support Group,Other Services,60103964,BLUE 9 SECURITY LIMITED,"22,039.20",11/05/2018
Commercial,Customer Support Group,CSG Services Contract Payment,60103221,CAPITA BUSINESS SERVICES LTD,"30,173.56",04/05/2018
Commercial,Customer Support Group,Other Services,60103966,BLUE 9 SECURITY LIMITED,"14,106.42",11/05/2018
Commercial,Customer Support Group,Other Services,60103968,BLUE 9 SECURITY LIMITED,966.00,11/05/2018
Commercial,Housing Needs Resources,Private Contractors - Third Pa,60103583,THE BARNETGROUP LIMITED,"11,664.00",24/05/2018
Commercial,Housing Needs Resources,Private Contractors - Third Pa,60103619,THE BARNETGROUP LIMITED,"2,430.00",24/05/2018
Commercial,Housing Needs Resources,Private Contractors - Third Pa,60103626,THE BARNETGROUP LIMITED,"11,485.38",24/05/2018
Commercial,Housing Needs Resources,Private Contractors - Third Pa,60103633,THE BARNETGROUP LIMITED,997.00,24/05/2018
Commercial,HRA,Fees and Charges,20036056,CONNECT 2 LAW,235.00,04/05/2018
Commercial,HRA,Consultants Fees,60102915,PRIORITY ESTATES PROJECT LTD,"1,536.70",09/05/2018
Commercial,HRA,Consultants Fees,60103598,THE BARNETGROUP LIMITED,439.75,02/05/2018
Commercial,HRA,Consultants Fees,60104582,UK POWER NETWORKS,"3,411.00",22/05/2018
Commercial,HRA,Consultants Fees,60103670,THE PLANNING INSPECTORATE,"15,637.70",30/05/2018
Commercial,HRA,Consultants Fees,60103548,PRIORITY ESTATES PROJECT LTD,"2,654.30",23/05/2018
Commercial,HRA,Consultants Fees,60103679,THE BARNETGROUP LIMITED,"2,581.90",04/05/2018
Commercial,HRA,Private Contractors - Third Pa,20036092,REDACTED - PERSONAL DATA,"1,465.67",04/05/2018
Commercial,HRA,Private Contractors - Third Pa,20036274,REDACTED - PERSONAL DATA,"1,500.00",31/05/2018
Commercial,HRA,Consultants Fees,60104062,THE BARNETGROUP LIMITED,"4,887.64",14/05/2018
Commercial,HRA,Consultants Fees,60102890,MICROFISH COMMUNICATIONS LTD,"1,333.25",03/05/2018
Commercial,HRA,Consultants Fees,60103277,MICROFISH COMMUNICATIONS LTD,"1,279.92",03/05/2018
Commercial,HRA,Consultants Fees,60105118,ALLIES AND MORRRISON,"57,000.00",30/05/2018
Commercial,Parking & Infrastructure,Equipment and Materials Purcha,60102193,GREENHAM TRADING LIMITED,350.40,03/05/2018
Commercial,Parking & Infrastructure,Equipment and Materials Purcha,60102256,GREENHAM TRADING LIMITED,998.73,03/05/2018
Commercial,Parking & Infrastructure,Equipment and Materials Purcha,60102557,GREENHAM TRADING LIMITED,408.87,09/05/2018
Commercial,Parking & Infrastructure,Equipment and Materials Purcha,60102711,GREENHAM TRADING LIMITED,772.00,10/05/2018
Commercial,Parking & Infrastructure,Equipment and Materials Purcha,60102750,GREENHAM TRADING LIMITED,851.01,10/05/2018
Commercial,Parking & Infrastructure,Equipment and Materials Purcha,60103140,GREENHAM TRADING LIMITED,30.28,17/05/2018
Commercial,Parking & Infrastructure,Equipment and Materials Purcha,60103224,GREENHAM TRADING LIMITED,271.58,17/05/2018
Commercial,Parking & Infrastructure,Equipment and Materials Purcha,60104020,GREENHAM TRADING LIMITED,46.86,31/05/2018
Commercial,Parking & Infrastructure,Equipment and Materials Purcha,60103978,INSTARMAC GROUP PLC,"2,922.40",11/05/2018
Commercial,Parking & Infrastructure,Equipment and Materials Purcha,60102846,LAFARGE TARMAC TRADING LIMITED,136.09,10/05/2018
Commercial,Parking & Infrastructure,Equipment and Materials Purcha,60103292,LAFARGE TARMAC TRADING LIMITED,117.53,10/05/2018
Commercial,Parking & Infrastructure,Equipment and Materials Purcha,60103396,LAFARGE TARMAC TRADING LIMITED,327.86,17/05/2018
Commercial,Parking & Infrastructure,Equipment and Materials Purcha,60103706,LAFARGE TARMAC TRADING LIMITED,197.95,22/05/2018
Commercial,Parking & Infrastructure,Equipment and Materials Purcha,60103720,LAFARGE TARMAC TRADING LIMITED,65.98,29/05/2018
Commercial,Parking & Infrastructure,Equipment and Materials Purcha,60103730,LAFARGE TARMAC TRADING LIMITED,226.82,24/05/2018
Commercial,Parking & Infrastructure,Equipment and Materials Purcha,60103745,LAFARGE TARMAC TRADING LIMITED,243.32,24/05/2018
Commercial,Parking & Infrastructure,Equipment and Materials Purcha,60104136,LAFARGE TARMAC TRADING LIMITED,113.41,31/05/2018
Commercial,Parking & Infrastructure,Equipment and Materials Purcha,60104280,LAFARGE TARMAC TRADING LIMITED,103.10,31/05/2018
Commercial,Parking & Infrastructure,Equipment and Materials Purcha,60104300,LAFARGE TARMAC TRADING LIMITED,125.78,31/05/2018
Commercial,Parking & Infrastructure,Equipment and Materials Purcha,60103955,W. FAYERS & SONS,169.12,11/05/2018
Commercial,Parking & Infrastructure,Equipment and Materials Purcha,60103994,W. FAYERS & SONS,36.49,11/05/2018
Commercial,Parking & Infrastructure,Equipment and Materials Purcha,60104016,W. FAYERS & SONS,36.49,11/05/2018
Commercial,Parking & Infrastructure,Equipment and Materials Purcha,60104242,W. FAYERS & SONS,36.49,15/05/2018
Commercial,Parking & Infrastructure,Equipment and Materials Purcha,60104249,W. FAYERS & SONS,36.49,18/05/2018
Commercial,Parking & Infrastructure,Equipment and Materials Purcha,60104592,WM SMITH & SONS LIMITED,"2,363.74",23/05/2018
Commercial,Parking & Infrastructure,Equipment and Materials Purcha,60104229,CONSTRUCTION & CLADDING SERVICES LTD,"1,200.00",31/05/2018
Commercial,Parking & Infrastructure,Professional Services,60102661,NSL LTD,"35,971.86",03/05/2018
Commercial,Parking & Infrastructure,Professional Services,60103086,NSL LTD,"6,648.48",23/05/2018
Commercial,Parking & Infrastructure,Other Services,60105214,CITY OF LONDON,"1,500.00",31/05/2018
Commercial,Parking & Infrastructure,Other Services,60103561,LONDON COUNCILS,"12,568.00",21/05/2018
Commercial,Parking & Infrastructure,Other Services,60100135,PARKEON LIMITED,"7,886.70",03/05/2018
Commercial,Parking & Infrastructure,Other Services,60101685,PARKEON LIMITED,810.00,16/05/2018
Commercial,Parking & Infrastructure,Other Services,60101843,PARKEON LIMITED,"1,851.76",31/05/2018
Commercial,Parking & Infrastructure,Other Services,60103326,PARKEON LIMITED,"1,948.72",31/05/2018
Commercial,Parking & Infrastructure,Other Services,60103341,PARKEON LIMITED,810.00,17/05/2018
Commercial,Parking & Infrastructure,Software Licences & Support,60103132,NSL LTD,"37,961.46",03/05/2018
Commercial,Parking & Infrastructure,Software Licences & Support,60103152,NSL LTD,"8,217.43",03/05/2018
Commercial,Parking & Infrastructure,Subscriptions,60103304,BRITISH PARKING ASSOCIATION,"1,126.00",08/05/2018
Commercial,Parking & Infrastructure,Miscellaneous Expenses,60104421,HEMMING GROUP LTD,235.00,18/05/2018
Commercial,Public Health,Other Transfer Payments to Soc,60099384,CENTRAL LONDONCOMMUNITY HEALTHCARE,"356,000.00",08/05/2018
Commercial,Public Health,Professional Services,60099432,CENTRAL LONDONCOMMUNITY HEALTHCARE,"85,834.00",08/05/2018
Commercial,Public Health,Professional Services,60099495,CENTRAL LONDONCOMMUNITY HEALTHCARE,"9,583.00",08/05/2018
Commercial,Public Health,Other Transfer Payments to Soc,60096768,CENTRAL LONDONCOMMUNITY HEALTHCARE,"29,167.00",08/05/2018
Commercial,Public Health,Health authorities - Third Par,60104469,SMART HEALTH SOLUTIONS LTD,"2,613.57",21/05/2018
Commercial,Public Health,Other Local Authorities - Thir,60105203,CITY OF LONDON,"14,211.35",30/05/2018
Commercial,Regional Enterprise,Legal and Court Fees,80017256,RM CONSULTING LIMITED,"4,000.00",09/05/2018
Commercial,Regional Enterprise,Other Services,60097808,CASTLE WATER LTD,34.67,14/05/2018
Commercial,Regional Enterprise,Advertising,60103549,TMP (UK) LTD,260.00,17/05/2018
Commercial,Regional Enterprise,Advertising,60103575,TMP (UK) LTD,260.00,17/05/2018
Commercial,Regional Enterprise,Advertising,60103590,TMP (UK) LTD,260.00,17/05/2018
Commercial,Regional Enterprise,Advertising,60103945,TMP (UK) LTD,179.00,17/05/2018
Commercial,Regional Enterprise,Advertising,60103984,TMP (UK) LTD,170.00,17/05/2018
Commercial,Regional Enterprise,Other Services,60103791,CONWAY AECOM LTD,54.24,08/05/2018
Commercial,Regional Enterprise,Other Services,60103689,SARG ENGINEERING (UK) LIMITED,"6,750.00",04/05/2018
Commercial,Regional Enterprise,Professional Services,60096728,LONDON BOROUGH OF ENFIELD,100.00,02/05/2018
Commercial,Regional Enterprise,Professional Services,60104866,LONDON BOROUGH OF HARROW,100.00,25/05/2018
Commercial,Regional Enterprise,Professional Services,60104127,WATES LIVING SPACE,"2,069.02",31/05/2018
Commercial,Regional Enterprise,Advertising,60103946,TMP (UK) LTD,287.00,17/05/2018
Commercial,Regional Enterprise,Other Services,60052202,CONWAY AECOM LTD,41.68,14/05/2018
Commercial,Regional Enterprise,Other Services,60052251,CONWAY AECOM LTD,15.84,14/05/2018
Commercial,Regional Enterprise,Other Services,60052273,CONWAY AECOM LTD,39.15,14/05/2018
Commercial,Regional Enterprise,Other Services,60052317,CONWAY AECOM LTD,41.68,14/05/2018
Commercial,Regional Enterprise,Other Services,60052688,CONWAY AECOM LTD,42.98,14/05/2018
Commercial,Regional Enterprise,Other Services,60104312,CONWAY AECOM LTD,18.43,18/05/2018
Commercial,Regional Enterprise,Other Services,60104319,CONWAY AECOM LTD,12.29,18/05/2018
Commercial,Regional Enterprise,Other Services,60104339,CONWAY AECOM LTD,11.26,18/05/2018
Commercial,Regional Enterprise,Equipment and Materials Purcha,80017118,REDACTED - PERSONAL DATA,"1,190.00",01/05/2018
Commercial,Regional Enterprise,Equipment and Materials Purcha,80017121,REDACTED - PERSONAL DATA,245.00,01/05/2018
Commercial,Regional Enterprise,Equipment and Materials Purcha,80017123,REDACTED - PERSONAL DATA,140.00,01/05/2018
Commercial,Regional Enterprise,Other Services,60104214,CONWAY AECOM LTD,543.05,15/05/2018
Commercial,Regional Enterprise,Other Services,60082192,CONWAY AECOM LTD,"1,519.20",14/05/2018
Commercial,Regional Enterprise,Other Services,60104180,CONWAY AECOM LTD,784.92,15/05/2018
Commercial,Regional Enterprise,Other Services,60104181,CONWAY AECOM LTD,949.50,15/05/2018
Commercial,Regional Enterprise,Other Services,60104183,CONWAY AECOM LTD,607.68,15/05/2018
Commercial,Regional Enterprise,Other Services,60104206,CONWAY AECOM LTD,949.50,15/05/2018
Commercial,Regional Enterprise,Other Services,60104226,CONWAY AECOM LTD,727.95,15/05/2018
Commercial,Regional Enterprise,Grant Payments,60103808,LONDON BOROUGH OF ISLINGTON,"113,910.35",08/05/2018
Commercial,Regional Enterprise,Grant Payments,80017522,MC PLUMBING & PROPERTY SERVICE,"8,184.00",22/05/2018
Commercial,Regional Enterprise,Grant Payments,80017707,MCP PLUMBING LTD,"2,630.25",31/05/2018
Commercial,Regional Enterprise,Grant Payments,80017477,SOUTH HERTFORDSHIRE,"3,990.00",18/05/2018
Commercial,Regional Enterprise,Grant Payments,80017645,G J PULHAM LTD,"3,003.00",30/05/2018
Commercial,Regional Enterprise,Consultants Fees,60104781,TMP (UK) LTD,638.00,24/05/2018
Commercial,Regional Enterprise,Consultants Fees,60104001,THE BARNETGROUP LIMITED,218.00,11/05/2018
Commercial,Regional Enterprise,RE Services Contract Payment,60104361,RE (REGIONAL ENTERPRISE) LIMITED,"617,066.69",31/05/2018
Commercial,Regional Enterprise,RE Services Contract Payment,60104363,RE (REGIONAL ENTERPRISE) LIMITED,"52,393.00",24/05/2018
Commercial,Regional Enterprise,Consultants Fees,60102386,SPACEHIVE LTD,"15,000.00",01/05/2018
Commercial,Regional Enterprise,Professional Services,60101941,RE (REGIONAL ENTERPRISE) LIMITED,"5,177.09",08/05/2018
Commercial,Regional Enterprise,Professional Services,60101969,RE (REGIONAL ENTERPRISE) LIMITED,"8,627.25",08/05/2018
Commercial,Regional Enterprise,Professional Services,60101973,RE (REGIONAL ENTERPRISE) LIMITED,"9,782.48",08/05/2018
Commercial,Regional Enterprise,Professional Services,60105123,RE (REGIONAL ENTERPRISE) LIMITED,"353,422.00",30/05/2018
Commercial,Regional Enterprise,RE Services Contract Payment,60105254,RE (REGIONAL ENTERPRISE) LIMITED,"25,662.00",30/05/2018
Commercial,Regional Enterprise,Cleaning and domestic material,60103846,CHURCHILL CONTRACT SERVICES,488.56,30/05/2018
Commercial,Regional Enterprise,Grant Payments,80017246,AMWELL CONSTRUCTION LTD,"6,237.00",08/05/2018
Commercial,Regional Enterprise,Grant Payments,80017550,AMWELL CONSTRUCTION LTD,"6,580.00",22/05/2018
Commercial,Regional Enterprise,Grant Payments,80017551,ARTHUR J. FERRYMAN ASSOCIATES,789.60,22/05/2018
Commercial,Regional Enterprise,Grant Payments,80017655,ARTHUR J. FERRYMAN ASSOCIATES,867.60,30/05/2018
Commercial,Regional Enterprise,Grant Payments,80017692,ARTHUR J. FERRYMAN ASSOCIATES,"2,843.40",31/05/2018
Commercial,Regional Enterprise,Grant Payments,80017162,DOLPHIN MOBILITY LTD.,"4,500.00",03/05/2018
Commercial,Regional Enterprise,Grant Payments,80017235,DOLPHIN MOBILITY LTD.,"5,355.00",08/05/2018
Commercial,Regional Enterprise,Grant Payments,80017465,DOLPHIN MOBILITY LTD.,"13,315.00",18/05/2018
Commercial,Regional Enterprise,Grant Payments,80017268,DP BUILDERS DISABLED ADAPTATIONS,"5,203.00",11/05/2018
Commercial,Regional Enterprise,Grant Payments,80017623,DP BUILDERS DISABLED ADAPTATIONS,"10,014.02",31/05/2018
Commercial,Regional Enterprise,Grant Payments,80017237,H D PROPERTY SERVICES LTD,"1,428.00",08/05/2018
Commercial,Regional Enterprise,Grant Payments,80017243,H D PROPERTY SERVICES LTD,"1,446.00",08/05/2018
Commercial,Regional Enterprise,Grant Payments,80017651,H D PROPERTY SERVICES LTD,"9,327.00",30/05/2018
Commercial,Regional Enterprise,Grant Payments,80017179,STAMWEST LTD,"4,175.00",04/05/2018
Commercial,Regional Enterprise,Grant Payments,80017325,DOMESTIC LIFT SERVICES LTD,"5,879.00",14/05/2018
Commercial,Regional Enterprise,Grant Payments,80017401,STAMWEST LTD,"14,860.00",16/05/2018
Commercial,Regional Enterprise,Grant Payments,80017168,SOUTH HERTFORDSHIRE,"4,108.00",03/05/2018
Commercial,Regional Enterprise,Grant Payments,80017229,SOUTH HERTFORDSHIRE,"5,690.00",04/05/2018
Commercial,Regional Enterprise,Grant Payments,80017261,SOUTH HERTFORDSHIRE,"2,000.00",08/05/2018
Commercial,Regional Enterprise,Grant Payments,80017453,SOUTH HERTFORDSHIRE,"14,140.00",17/05/2018
Commercial,Regional Enterprise,Grant Payments,80017583,SOUTH HERTFORDSHIRE,"5,514.00",24/05/2018
Commercial,Regional Enterprise,Grant Payments,80017582,STANNAH STAIRLIFTS LTD,"2,311.00",24/05/2018
Commercial,Regional Enterprise,Grant Payments,80017236,TOTAL HYGIENE LIMITED,396.00,31/05/2018
Commercial,Regional Enterprise,Grant Payments,80017177,G J PULHAM LTD,"5,999.00",04/05/2018
Commercial,Regional Enterprise,Grant Payments,80017372,G J PULHAM LTD,"5,345.00",14/05/2018
Commercial,Regional Enterprise,Other Services,60104292,CYCLE CONFIDENT LTD,"18,732.71",30/05/2018
Commercial,Regional Enterprise,Capital Construction and Works,60103469,GOOD EGG SAFETY CIC,675.00,01/05/2018
Commercial,Regional Enterprise,Other Services,60101601,LONDON BUSES SERVICES LIMITED,"3,687.42",01/05/2018
Commercial,Regional Enterprise,Other Services,60102636,LONDON BUSES SERVICES LIMITED,346.14,22/05/2018
Commercial,Regional Enterprise,Advertising,60096938,TMP (UK) LTD,314.00,01/05/2018
Commercial,Regional Enterprise,Other Services,60104568,CONWAY AECOM LTD,"1,347.19",22/05/2018
Commercial,Regional Enterprise,Other Services,60104576,CONWAY AECOM LTD,673.60,22/05/2018
Commercial,Regional Enterprise,Other Services,60104584,CONWAY AECOM LTD,"1,347.19",22/05/2018
Commercial,Regional Enterprise,Other Services,60104585,CONWAY AECOM LTD,673.60,22/05/2018
Commercial,Regional Enterprise,Other Services,60104586,CONWAY AECOM LTD,673.60,22/05/2018
Commercial,Regional Enterprise,Other Services,60104593,CONWAY AECOM LTD,673.60,22/05/2018
Commercial,Regional Enterprise,Other Services,60104617,CONWAY AECOM LTD,673.60,22/05/2018
Commercial,Regional Enterprise,Other Services,60104623,CONWAY AECOM LTD,"1,513.61",22/05/2018
Commercial,Regional Enterprise,Other Services,60104625,CONWAY AECOM LTD,"1,347.19",22/05/2018
Commercial,Regional Enterprise,Other Services,60103799,CONWAY AECOM LTD,39.10,08/05/2018
Commercial,Regional Enterprise,Other Services,60103819,CONWAY AECOM LTD,39.10,08/05/2018
Commercial,Regional Enterprise,Other Services,60103826,CONWAY AECOM LTD,39.10,08/05/2018
Commercial,Regional Enterprise,Other Services,60103827,CONWAY AECOM LTD,39.10,08/05/2018
Commercial,Regional Enterprise,Other Services,60103836,CONWAY AECOM LTD,39.10,08/05/2018
Commercial,Regional Enterprise,Other Services,60103839,CONWAY AECOM LTD,38.59,08/05/2018
Commercial,Regional Enterprise,Other Services,60103842,CONWAY AECOM LTD,38.09,08/05/2018
Commercial,Regional Enterprise,Other Services,60103849,CONWAY AECOM LTD,39.10,08/05/2018
Commercial,Regional Enterprise,Other Services,80017385,MATCHTECH,"11,520.00",15/05/2018
Commercial,Regional Enterprise,Other Services,60096410,HIGHWAY SURVEYORS LTD,"15,964.90",01/05/2018
Commercial,Regional Enterprise,Other Services,60104903,CONWAY AECOM LTD,69.18,30/05/2018
Commercial,Regional Enterprise,Other Services,60104905,CONWAY AECOM LTD,94.64,30/05/2018
Commercial,Regional Enterprise,Other Services,60104906,CONWAY AECOM LTD,61.52,30/05/2018
Commercial,Regional Enterprise,Other Services,60104907,CONWAY AECOM LTD,31.07,30/05/2018
Commercial,Regional Enterprise,Other Services,60104908,CONWAY AECOM LTD,62.61,30/05/2018
Commercial,Regional Enterprise,Other Services,60104910,CONWAY AECOM LTD,107.70,30/05/2018
Commercial,Regional Enterprise,Other Services,60104912,CONWAY AECOM LTD,58.41,30/05/2018
Commercial,Regional Enterprise,Other Services,60104914,CONWAY AECOM LTD,271.86,30/05/2018
Commercial,Regional Enterprise,Other Services,60104917,CONWAY AECOM LTD,175.24,30/05/2018
Commercial,Regional Enterprise,Other Services,60104920,CONWAY AECOM LTD,101.76,30/05/2018
Commercial,Regional Enterprise,Other Services,60104922,CONWAY AECOM LTD,125.22,30/05/2018
Commercial,Regional Enterprise,Other Services,60104923,CONWAY AECOM LTD,304.66,30/05/2018
Commercial,Regional Enterprise,Other Services,60104924,CONWAY AECOM LTD,49.90,30/05/2018
Commercial,Regional Enterprise,Other Services,60104925,CONWAY AECOM LTD,49.64,30/05/2018
Commercial,Regional Enterprise,Other Services,60104926,CONWAY AECOM LTD,58.54,30/05/2018
Commercial,Regional Enterprise,Other Services,60104932,CONWAY AECOM LTD,81.39,30/05/2018
Commercial,Regional Enterprise,Other Services,60104933,CONWAY AECOM LTD,61.52,30/05/2018
Commercial,Regional Enterprise,Other Services,60104939,CONWAY AECOM LTD,52.29,30/05/2018
Commercial,Regional Enterprise,Other Services,60104941,CONWAY AECOM LTD,38.08,30/05/2018
Commercial,Regional Enterprise,Other Services,60104942,CONWAY AECOM LTD,62.61,30/05/2018
Commercial,Regional Enterprise,Other Services,60104945,CONWAY AECOM LTD,61.52,30/05/2018
Commercial,Regional Enterprise,Other Services,60104949,CONWAY AECOM LTD,62.61,30/05/2018
Commercial,Regional Enterprise,Other Services,60104950,CONWAY AECOM LTD,31.07,30/05/2018
Commercial,Regional Enterprise,Other Services,60104951,CONWAY AECOM LTD,103.21,30/05/2018
Commercial,Regional Enterprise,Other Services,60104953,CONWAY AECOM LTD,94.64,30/05/2018
Commercial,Regional Enterprise,Other Services,60104956,CONWAY AECOM LTD,61.52,30/05/2018
Commercial,Regional Enterprise,Other Services,60104958,CONWAY AECOM LTD,62.61,30/05/2018
Commercial,Regional Enterprise,Other Services,60104960,CONWAY AECOM LTD,396.21,30/05/2018
Commercial,Regional Enterprise,Other Services,60104961,CONWAY AECOM LTD,125.22,30/05/2018
Commercial,Regional Enterprise,Other Services,60104963,CONWAY AECOM LTD,124.26,30/05/2018
Commercial,Regional Enterprise,Other Services,60104965,CONWAY AECOM LTD,"1,531.28",30/05/2018
Commercial,Regional Enterprise,Other Services,60104967,CONWAY AECOM LTD,58.41,30/05/2018
Commercial,Regional Enterprise,Other Services,60104971,CONWAY AECOM LTD,108.19,30/05/2018
Commercial,Regional Enterprise,Other Services,60104978,CONWAY AECOM LTD,128.65,30/05/2018
Commercial,Regional Enterprise,Other Services,60104979,CONWAY AECOM LTD,58.54,30/05/2018
Commercial,Regional Enterprise,Other Services,60104983,CONWAY AECOM LTD,207.55,30/05/2018
Commercial,Regional Enterprise,Other Services,60104984,CONWAY AECOM LTD,175.94,30/05/2018
Commercial,Regional Enterprise,Other Services,60104987,CONWAY AECOM LTD,47.32,29/05/2018
Commercial,Regional Enterprise,Other Services,60104988,CONWAY AECOM LTD,162.79,30/05/2018
Commercial,Regional Enterprise,Other Services,60104989,CONWAY AECOM LTD,31.07,30/05/2018
Commercial,Regional Enterprise,Other Services,60104991,CONWAY AECOM LTD,47.32,30/05/2018
Commercial,Regional Enterprise,Other Services,60104995,CONWAY AECOM LTD,175.24,30/05/2018
Commercial,Regional Enterprise,Other Services,60104998,CONWAY AECOM LTD,123.04,30/05/2018
Commercial,Regional Enterprise,Other Services,60105000,CONWAY AECOM LTD,62.61,30/05/2018
Commercial,Regional Enterprise,Other Services,60105005,CONWAY AECOM LTD,47.32,30/05/2018
Commercial,Regional Enterprise,Other Services,60105007,CONWAY AECOM LTD,47.32,30/05/2018
Commercial,Regional Enterprise,Other Services,60105009,CONWAY AECOM LTD,125.22,30/05/2018
Commercial,Regional Enterprise,Other Services,60105010,CONWAY AECOM LTD,372.05,30/05/2018
Commercial,Regional Enterprise,Other Services,60105012,CONWAY AECOM LTD,281.99,30/05/2018
Commercial,Regional Enterprise,Other Services,60105013,CONWAY AECOM LTD,94.64,30/05/2018
Commercial,Regional Enterprise,Other Services,60105015,CONWAY AECOM LTD,62.61,30/05/2018
Commercial,Regional Enterprise,Other Services,60105016,CONWAY AECOM LTD,156.32,30/05/2018
Commercial,Regional Enterprise,Other Services,60105017,CONWAY AECOM LTD,31.07,30/05/2018
Commercial,Regional Enterprise,Other Services,60105022,CONWAY AECOM LTD,149.41,30/05/2018
Commercial,Regional Enterprise,Other Services,60105024,CONWAY AECOM LTD,61.52,30/05/2018
Commercial,Regional Enterprise,Other Services,60105025,CONWAY AECOM LTD,62.61,30/05/2018
Commercial,Regional Enterprise,Other Services,60105026,CONWAY AECOM LTD,31.07,30/05/2018
Commercial,Regional Enterprise,Other Services,60105028,CONWAY AECOM LTD,38.08,30/05/2018
Commercial,Regional Enterprise,Other Services,60105029,CONWAY AECOM LTD,319.20,30/05/2018
Commercial,Regional Enterprise,Other Services,60105030,CONWAY AECOM LTD,52.29,30/05/2018
Commercial,Regional Enterprise,Other Services,60105032,CONWAY AECOM LTD,99.79,30/05/2018
Commercial,Regional Enterprise,Other Services,60105033,CONWAY AECOM LTD,47.32,30/05/2018
Commercial,Regional Enterprise,Other Services,60105035,CONWAY AECOM LTD,39.04,30/05/2018
Commercial,Regional Enterprise,Other Services,60105036,CONWAY AECOM LTD,124.26,30/05/2018
Commercial,Regional Enterprise,Other Services,60105037,CONWAY AECOM LTD,396.21,30/05/2018
Commercial,Regional Enterprise,Other Services,60105038,CONWAY AECOM LTD,117.09,30/05/2018
Commercial,Regional Enterprise,Other Services,60105040,CONWAY AECOM LTD,81.39,30/05/2018
Commercial,Regional Enterprise,Other Services,60105041,CONWAY AECOM LTD,94.64,30/05/2018
Commercial,Regional Enterprise,Other Services,60105042,CONWAY AECOM LTD,285.18,30/05/2018
Commercial,Regional Enterprise,Other Services,60105043,CONWAY AECOM LTD,62.61,30/05/2018
Commercial,Regional Enterprise,Other Services,60105044,CONWAY AECOM LTD,332.43,30/05/2018
Commercial,Regional Enterprise,Other Services,60105047,CONWAY AECOM LTD,149.41,30/05/2018
Commercial,Regional Enterprise,Other Services,60105051,CONWAY AECOM LTD,66.49,30/05/2018
Commercial,Regional Enterprise,Other Services,60105052,CONWAY AECOM LTD,62.61,30/05/2018
Commercial,Regional Enterprise,Other Services,60105053,CONWAY AECOM LTD,269.89,30/05/2018
Commercial,Regional Enterprise,Other Services,60105054,CONWAY AECOM LTD,69.18,30/05/2018
Commercial,Regional Enterprise,Other Services,60105056,CONWAY AECOM LTD,58.41,30/05/2018
Commercial,Regional Enterprise,Other Services,60105059,CONWAY AECOM LTD,76.14,30/05/2018
Commercial,Regional Enterprise,Other Services,60105060,CONWAY AECOM LTD,32.36,30/05/2018
Commercial,Regional Enterprise,Other Services,60105061,CONWAY AECOM LTD,126.71,30/05/2018
Commercial,Regional Enterprise,Other Services,60105063,CONWAY AECOM LTD,530.59,30/05/2018
Commercial,Regional Enterprise,Other Services,60105065,CONWAY AECOM LTD,52.29,30/05/2018
Commercial,Regional Enterprise,Other Services,60105066,CONWAY AECOM LTD,125.22,30/05/2018
Commercial,Regional Enterprise,Other Services,60105067,CONWAY AECOM LTD,47.32,30/05/2018
Commercial,Regional Enterprise,Other Services,60105069,CONWAY AECOM LTD,164.63,30/05/2018
Commercial,Regional Enterprise,Other Services,60105070,CONWAY AECOM LTD,31.07,30/05/2018
Commercial,Regional Enterprise,Other Services,60105071,CONWAY AECOM LTD,39.04,30/05/2018
Commercial,Regional Enterprise,Other Services,60105076,CONWAY AECOM LTD,97.47,30/05/2018
Commercial,Regional Enterprise,Other Services,60105078,CONWAY AECOM LTD,123.04,30/05/2018
Commercial,Regional Enterprise,Other Services,60105081,CONWAY AECOM LTD,242.32,30/05/2018
Commercial,Regional Enterprise,Other Services,60105083,CONWAY AECOM LTD,125.22,30/05/2018
Commercial,Regional Enterprise,Other Services,60105087,CONWAY AECOM LTD,125.22,30/05/2018
Commercial,Regional Enterprise,Other Services,60105088,CONWAY AECOM LTD,49.90,30/05/2018
Commercial,Regional Enterprise,Other Services,60105090,CONWAY AECOM LTD,45.93,30/05/2018
Commercial,Regional Enterprise,Other Services,60105094,CONWAY AECOM LTD,47.32,30/05/2018
Commercial,Regional Enterprise,Other Services,60105095,CONWAY AECOM LTD,52.29,30/05/2018
Commercial,Regional Enterprise,Other Services,60105096,CONWAY AECOM LTD,40.58,30/05/2018
Commercial,Regional Enterprise,Other Services,60105097,CONWAY AECOM LTD,40.58,30/05/2018
Commercial,Regional Enterprise,Other Services,60105104,CONWAY AECOM LTD,38.07,30/05/2018
Commercial,Regional Enterprise,Other Services,60105110,CONWAY AECOM LTD,81.39,30/05/2018
Commercial,Regional Enterprise,Other Services,60105111,CONWAY AECOM LTD,31.07,30/05/2018
Commercial,Regional Enterprise,Other Services,60105113,CONWAY AECOM LTD,62.61,30/05/2018
Commercial,Regional Enterprise,Other Services,60105116,CONWAY AECOM LTD,228.90,30/05/2018
Commercial,Regional Enterprise,Other Services,60105122,CONWAY AECOM LTD,263.90,30/05/2018
Commercial,Regional Enterprise,Other Services,60105126,CONWAY AECOM LTD,64.55,30/05/2018
Commercial,Regional Enterprise,Other Services,60105127,CONWAY AECOM LTD,221.73,30/05/2018
Commercial,Regional Enterprise,Other Services,60105128,CONWAY AECOM LTD,66.49,30/05/2018
Commercial,Regional Enterprise,Other Services,60105129,CONWAY AECOM LTD,35.33,30/05/2018
Commercial,Regional Enterprise,Other Services,60105131,CONWAY AECOM LTD,280.98,30/05/2018
Commercial,Regional Enterprise,Other Services,60105132,CONWAY AECOM LTD,149.41,30/05/2018
Commercial,Regional Enterprise,Other Services,60105133,CONWAY AECOM LTD,123.04,30/05/2018
Commercial,Regional Enterprise,Other Services,60105134,CONWAY AECOM LTD,162.17,30/05/2018
Commercial,Regional Enterprise,Other Services,60105142,CONWAY AECOM LTD,385.15,30/05/2018
Commercial,Regional Enterprise,Other Services,60105147,CONWAY AECOM LTD,38.08,30/05/2018
Commercial,Regional Enterprise,Other Services,60105148,CONWAY AECOM LTD,20.10,30/05/2018
Commercial,Regional Enterprise,Other Services,60105152,CONWAY AECOM LTD,774.31,30/05/2018
Commercial,Regional Enterprise,Other Services,60105153,CONWAY AECOM LTD,125.22,30/05/2018
Commercial,Regional Enterprise,Other Services,60105157,CONWAY AECOM LTD,127.33,30/05/2018
Commercial,Regional Enterprise,Other Services,60105158,CONWAY AECOM LTD,176.36,30/05/2018
Commercial,Regional Enterprise,Other Services,60105161,CONWAY AECOM LTD,164.63,30/05/2018
Commercial,Regional Enterprise,Other Services,60105163,CONWAY AECOM LTD,406.97,30/05/2018
Commercial,Regional Enterprise,Other Services,60105165,CONWAY AECOM LTD,35.33,30/05/2018
Commercial,Regional Enterprise,Other Services,60105166,CONWAY AECOM LTD,23.66,30/05/2018
Commercial,Regional Enterprise,Other Services,60105168,CONWAY AECOM LTD,125.22,30/05/2018
Commercial,Regional Enterprise,Other Services,60105172,CONWAY AECOM LTD,91.87,30/05/2018
Commercial,Regional Enterprise,Other Services,60105174,CONWAY AECOM LTD,23.66,30/05/2018
Commercial,Regional Enterprise,Other Services,60105175,CONWAY AECOM LTD,35.33,30/05/2018
Commercial,Regional Enterprise,Other Services,60105176,CONWAY AECOM LTD,298.82,30/05/2018
Commercial,Regional Enterprise,Other Services,60105178,CONWAY AECOM LTD,167.81,30/05/2018
Commercial,Regional Enterprise,Other Services,60105179,CONWAY AECOM LTD,394.00,30/05/2018
Commercial,Regional Enterprise,Other Services,60105182,CONWAY AECOM LTD,54.17,30/05/2018
Commercial,Regional Enterprise,Other Services,60105185,CONWAY AECOM LTD,224.24,30/05/2018
Commercial,Regional Enterprise,Other Services,60102910,CONWAY AECOM LTD,"925,000.00",08/05/2018
Commercial,Regional Enterprise,Other Services,60100556,CONWAY AECOM LTD,"14,240.68",30/05/2018
Commercial,Regional Enterprise,Other Services,60100654,CONWAY AECOM LTD,"39,062.39",30/05/2018
Commercial,Regional Enterprise,Other Services,60103727,CONWAY AECOM LTD,"60,717.02",24/05/2018
Commercial,Regional Enterprise,Other Services,60103728,CONWAY AECOM LTD,"19,979.55",24/05/2018
Commercial,Regional Enterprise,Other Services,60103731,CONWAY AECOM LTD,"13,071.19",24/05/2018
Commercial,Regional Enterprise,Other Services,60103734,CONWAY AECOM LTD,"32,448.00",24/05/2018
Commercial,Regional Enterprise,Other Services,60103746,CONWAY AECOM LTD,"3,912.00",24/05/2018
Commercial,Regional Enterprise,Other Services,60103774,CONWAY AECOM LTD,"39,888.00",24/05/2018
Commercial,Regional Enterprise,Other Services,60103775,CONWAY AECOM LTD,"11,225.92",24/05/2018
Commercial,Regional Enterprise,Other Services,60103786,CONWAY AECOM LTD,"29,400.00",24/05/2018
Commercial,Regional Enterprise,Other Services,60103788,CONWAY AECOM LTD,"66,312.40",24/05/2018
Commercial,Regional Enterprise,Other Services,60103833,CONWAY AECOM LTD,"62,937.60",08/05/2018
Commercial,Regional Enterprise,Other Services,60103850,CONWAY AECOM LTD,"32,000.00",08/05/2018
Commercial,Regional Enterprise,Service Charges,80017106,REDACTED - PERSONAL DATA,203.41,18/05/2018
Commercial,Regional Enterprise,Legal and Court Fees,80017260,A.D. FOOD & WINE LTD,"5,000.00",21/05/2018
Commercial,Regional Enterprise,Consultants Fees,60104498,APPLEYARD & TREW LLP,"8,000.00",21/05/2018
Commercial,Regional Enterprise,Consultants Fees,60104199,EVERSHEDS LLP,"3,721.44",17/05/2018
Commercial,Regional Enterprise,Consultants Fees,60104233,EVERSHEDS LLP,"1,587.35",16/05/2018
Commercial,Regional Enterprise,Consultants Fees,60104795,EVERSHEDS LLP,"11,998.25",24/05/2018
Commercial,Regional Enterprise,Consultants Fees,60102978,NETWORK RAIL INFRASTRUCTURE LTD,"301,750.58",16/05/2018
Commercial,Regional Enterprise,Capital Construction and Works,10013908,ADAMS ENVIRONMENTAL LTD,"2,580.00",04/05/2018
Commissioning,Commissioning,Cleaning and domestic material,60103832,CHURCHILL CONTRACT SERVICES,664.48,30/05/2018
Commissioning,Commissioning,Professional Services,60104385,CITY OF LONDON,"2,450.00",17/05/2018
Commissioning,Commissioning,Professional Services,60103673,BRITISH TELECOM PLC,50.52,03/05/2018
Commissioning,Commissioning,Software Licences & Support,60101930,TXTTOOLS - BLACKBOARD UK LTD,"3,000.00",01/05/2018
Commissioning,Commissioning,Other Services,60103527,SHREDALL LTD,99.00,03/05/2018
Commissioning,Commissioning,Other Services,60103529,SHREDALL LTD,135.00,03/05/2018
Commissioning,Commissioning,Other Services,60103531,SHREDALL LTD,18.00,03/05/2018
Commissioning,Commissioning,Other Services,60103541,SHREDALL LTD,18.00,22/05/2018
Commissioning,Commissioning,Other Services,60103566,SHREDALL LTD,135.00,03/05/2018
Commissioning,Commissioning,Other Services,60103577,SHREDALL LTD,99.00,17/05/2018
Commissioning,Commissioning,Other Services,60103587,SHREDALL LTD,36.92,17/05/2018
Commissioning,Commissioning,Other Services,60103602,SHREDALL LTD,99.00,22/05/2018
Commissioning,Commissioning,Other Services,60103606,SHREDALL LTD,135.00,22/05/2018
Commissioning,Commissioning,Other Services,60103610,SHREDALL LTD,117.00,02/05/2018
Commissioning,Commissioning,Other Services,60103615,SHREDALL LTD,135.00,17/05/2018
Commissioning,Commissioning,Other Services,60099799,STOR-A FILE LTD,"5,937.60",22/05/2018
Commissioning,Commissioning,Other Services,60104459,STOR-A FILE LTD,"5,861.24",29/05/2018
Commissioning,Commissioning,Professional Services,60094997,QM LEGAL COSTS SOLUTIONS LTD,983.83,24/05/2018
Commissioning,Commissioning,Grant Payments,80017585,BARNET BOROUGH ARTS COUNCIL,"1,950.00",31/05/2018
Commissioning,Commissioning,Grant Payments,80017399,BARNET WAR MEMORIALS ASSOC,"5,000.00",16/05/2018
Commissioning,Commissioning,Professional Services,10014051,GRANT THORNTON UK LLP,"25,000.00",24/05/2018
Commissioning,Commissioning,Professional Services,60104318,GRANT THORNTON UK LLP,"91,908.67",21/05/2018
Commissioning,Commissioning,Professional Services,60104426,GRANT THORNTON UK LLP,"6,676.67",29/05/2018
Commissioning,Commissioning,Professional Services,60103645,HBINFO LTD,425.00,03/05/2018
Commissioning,Commissioning,Professional Services,60105160,KPMG FEES ACCOUNT,583.33,30/05/2018
Commissioning,Commissioning,Other Services,80017242,REDACTED - PERSONAL DATA,90.00,08/05/2018
Commissioning,Commissioning,Training,60104015,IRMS CUSTOMER SERVICES,740.00,11/05/2018
Commissioning,Commissioning,Training,60103432,PDP TRAINING,475.00,01/05/2018
Commissioning,Commissioning,Consultants Fees,60102771,LEIDOS INNOVATIONS UK LTD,"16,461.59",10/05/2018
Commissioning,Commissioning,Professional Services,60102031,FAMILY FUND TRADING LTD,149.00,14/05/2018
Commissioning,Commissioning,Professional Services,60102053,FAMILY FUND TRADING LTD,"(1,030.35)",14/05/2018
Commissioning,Commissioning,Professional Services,60103636,FAMILY FUND TRADING LTD,"(1,154.81)",14/05/2018
Commissioning,Commissioning,Professional Services,60104254,FAMILY FUND TRADING LTD,225.00,16/05/2018
Commissioning,Commissioning,Other Services,80014816,MAYOR OF THE LBB BENEVOLENT FUND,"10,240.00",16/05/2018
Commissioning,Commissioning,Other Agencies - Third Party P,80017617,FAMILY FUND TRADING LTD,"50,000.00",31/05/2018
Commissioning,Commissioning,Equipment and Materials Purcha,60103956,OCS GROUP UK LIMITED,"47,050.00",11/05/2018
Commissioning,Commissioning,Equipment and Materials Purcha,60104284,OCS GROUP UK LIMITED,"21,095.00",29/05/2018
Commissioning,Commissioning,Equipment and Materials Purcha,60105234,OCS GROUP UK LIMITED,"47,050.00",30/05/2018
Commissioning,Commissioning,Other Services,60103877,GOOD IMPRESSIONS (LONDON) LIMITED,"1,200.00",29/05/2018
Commissioning,Commissioning,General Sales,80017472,PUBLIC HEALTH ENGLAND,560.00,24/05/2018
Commissioning,Commissioning,Other Services,60103589,BLUESKY INTERNATIONAL LTD,"3,746.25",02/05/2018
Commissioning,Commissioning,Other Transfer Payments to Soc,60104022,OCS GROUP UK LIMITED,"1,150.00",11/05/2018
Commissioning,Commissioning,Consultants Fees,60099604,REDACTED - PERSONAL DATA,42.84,14/05/2018
Commissioning,Commissioning,Private Contractors - Third Pa,60103466,GREENWICH LEISURE LTD,"32,505.53",08/05/2018
Commissioning,Commissioning,Professional Services,60102850,MIDDLESEX UNIVERSITY,325.00,09/05/2018
Commissioning,Commissioning,Professional Services,60102666,REDACTED - PERSONAL DATA,150.00,01/05/2018
Commissioning,Commissioning,Professional Services,60103565,REDACTED - PERSONAL DATA,360.00,24/05/2018
Commissioning,Commissioning,Consultants Fees,40002861,OFFICE DEPOT UK LTD,0.65,01/05/2018
Commissioning,Commissioning,Consultants Fees,60103517,JON SHEAFF AND ASSOCIATES,"7,421.50",02/05/2018
Commissioning,Commissioning,Consultants Fees,60102619,CENTRAL LONDONCOMMUNITY HEALTHCARE,"29,167.00",29/05/2018
Commissioning,Commissioning,Consultants Fees,60103659,THE ASSOCIATION OF DIRECTORS OF,780.00,24/05/2018
Commissioning,Commissioning,Consultants Fees,60104794,THE ASSOCIATION OF DIRECTORS OF,"3,135.00",24/05/2018
Commissioning,Commissioning,Consultants Fees,60102865,OCEAN MEDIA GROUP LIMITED,"1,740.00",16/05/2018
Commissioning,Commissioning,Consultants Fees,60102415,OPINION RESEARCH SERVICES,"4,882.50",04/05/2018
Commissioning,Commissioning,Publications,60103538,GOOD IMPRESSIONS (LONDON) LIMITED,210.00,24/05/2018
Commissioning,Commissioning,Consultants Fees,60103312,SHA'ARE TSEDEK NORTH LONDON REFORM SYNAG,480.00,02/05/2018
Commissioning,Commissioning,Consultants Fees,60103208,AV2HIRE,490.00,01/05/2018
Commissioning,Commissioning,Consultants Fees,60103220,AV2HIRE,490.00,01/05/2018
Commissioning,Commissioning,Consultants Fees,60103233,AV2HIRE,490.00,01/05/2018
Commissioning,Commissioning,Advertising,60104373,BUFFALO7 LTD,"1,500.00",29/05/2018
Commissioning,Commissioning,Professional Services,60102109,MYSTERY SHOPPERS LTD,399.80,03/05/2018
Commissioning,Commissioning,Professional Services,60104012,MYSTERY SHOPPERS LTD,399.80,29/05/2018
Commissioning,Commissioning,Other Services,80017351,SITEMORSE,"9,000.00",23/05/2018
Commissioning,Commissioning,Publications,60104201,GOOD IMPRESSIONS (LONDON) LIMITED,"2,160.00",15/05/2018
Commissioning,Commissioning,Training,60104969,CENTERPLATE UK,265.50,30/05/2018
Commissioning,Commissioning,Training,60104931,RAF MUSEUM ENTERPRISES LTD,400.00,30/05/2018
Commissioning,Commissioning,Consultants Fees,60102670,GOLDSMITH CONSULTING & MEDIATION LTD,480.00,24/05/2018
Commissioning,Commissioning,Other Local Authorities - Thir,EBX0225540,NORTH LONDON WASTE,"1,014,603.00",04/05/2018
Commissioning,Commissioning,Other Local Authorities - Thir,EBX0228068,NORTH LONDON WASTE,"1,014,603.00",25/05/2018
Commissioning,Commissioning,Equipment and Materials Purcha,60104080,JOHN GRAHAM CONSTRUCTION LTD,"512,622.52",21/05/2018
Commissioning,Commissioning,Building Repairs & Maintenance,60102969,MRDA ARCHITECTS & CONSERVATION CONSULT,"1,680.00",15/05/2018
Commissioning,Commissioning,Furniture-Purchase-Repair,80017343,CLAREMONT CENTRE,972.84,24/05/2018
Commissioning,Commissioning,Furniture-Purchase-Repair,80017345,CLAREMONT CENTRE,"2,491.32",24/05/2018
Commissioning,Commissioning,Consultants Fees,60102905,E-CAR CLUB,"2,647.13",10/05/2018
Commissioning,Commissioning,Consultants Fees,60104384,GALLIFORD TRY,"1,697,948.44",18/05/2018
Commissioning,Commissioning,Consultants Fees,80016624,WINCKWORTH SHERWOOD,"2,039.55",24/05/2018
Commissioning,Commissioning,Other Services,60104642,TRAFFIC SURVEY PARTNERS (TSP) LTD,380.00,23/05/2018
Commissioning,Commissioning,Other Services,60104665,TRAFFIC SURVEY PARTNERS (TSP) LTD,380.00,23/05/2018
Commissioning,Commissioning,Other Services,60104732,TRAFFIC SURVEY PARTNERS (TSP) LTD,115.00,23/05/2018
Commissioning,Commissioning,Other Services,60104688,CONWAY AECOM LTD,"3,722.12",23/05/2018
Commissioning,Commissioning,Other Services,60104667,TRAFFIC SURVEY PARTNERS (TSP) LTD,380.00,23/05/2018
Commissioning,Commissioning,Other Services,60104718,TRAFFIC SURVEY PARTNERS (TSP) LTD,340.00,23/05/2018
Commissioning,Commissioning,Other Services,60104640,CONWAY AECOM LTD,236.35,23/05/2018
Corporate Accounting,Corporate Accounting,Other Local Authorities - Thir,EBX0226399,GREATER LONDON AUTHORITY,"3,820,885.00",11/05/2018
Corporate Accounting,Corporate Accounting,Other Local Authorities - Thir,EBX0227251,GREATER LONDON AUTHORITY,"4,599,303.80",21/05/2018
Corporate Accounting,Corporate Accounting,Government departments - Third,80017105,DEPARTMENT FOR COMMUNITIES & LOCAL GOV.,"438,069.36",10/05/2018
Corporate Accounting,Corporate Accounting,Grant Payments,80017365,1ST LYONSDOWN SCOUT GROUP,"2,000.00",14/05/2018
Corporate Accounting,Corporate Accounting,Grant Payments,80017397,JOY," 3,600.00 ",16/05/2018
Corporate Accounting,Corporate Accounting,Miscellaneous Expenses,80017480,REDACTED - PERSONAL DATA, 763.73 ,21/05/2018
Corporate Accounting,Corporate Accounting,Other Transfer Payments to Soc,80017247,WIRECARD (FS INSTANT 2040880892973)," 13,112.18 ",10/05/2018
Corporate Accounting,Corporate Accounting,Other Transfer Payments to Soc,80017248,WIRECARD (FS ONGOING 2040881670310," 15,202.61 ",10/05/2018
Corporate Accounting,Corporate Accounting,Other Transfer Payments,80017151,AXIOM STONE SOLICITORS,"1,000.00",04/05/2018
Corporate Accounting,Corporate Accounting,Fees and Charges,80017253,ALMSHOUSE CHARITY OF CHARLES DAY, 535.00 ,14/05/2018
Corporate Accounting,Corporate Accounting,Fees and Charges,80016798,CARMELCREST LTD,"2,000.00",10/05/2018
Corporate Accounting,Corporate Accounting,Fees and Charges,80016812,COBRA TRAFFIC MANAGEMENT LIMITED, 535.00 ,01/05/2018
Corporate Accounting,Corporate Accounting,Fees and Charges,80017124,COBRA TRAFFIC MANAGEMENT LIMITED,535.00,01/05/2018
Corporate Accounting,Corporate Accounting,Fees and Charges,80017125,COBRA TRAFFIC MANAGEMENT LIMITED, 535.00 ,01/05/2018
Corporate Accounting,Corporate Accounting,Fees and Charges,80016807,ROAD TRAFFIC SOLUTIONS,535.00,01/05/2018
Corporate Accounting,Corporate Accounting,Fees and Charges,80016808,ROAD TRAFFIC SOLUTIONS,535.00,01/05/2018
Corporate Accounting,Corporate Accounting,Fees and Charges,80017122,ROAD TRAFFIC SOLUTIONS,535.00,01/05/2018
Delivery Units,Adults and Communities,Other Services,30179545,WILLOW HOUSING & CARE LTD.,711.38,18/05/2018
Delivery Units,Adults and Communities,Voluntary Associations - Third,30179534,ELEANOR PALMER TRUST NO 2 A/C., 486.50 ,18/05/2018
Delivery Units,Adults and Communities,Voluntary Associations - Third,30179531,ASRA GREATER LONDON HOUSING ASSOC, 379.30 ,18/05/2018
Delivery Units,Adults and Communities,Voluntary Associations - Third,30179533,CHRISTIAN ACTION (ENFIELD), 365.80 ,18/05/2018
Delivery Units,Adults and Communities,Voluntary Associations - Third,30179537,JEWISH COMMUNITY HOUSING ASSOCIATIO, 568.17 ,18/05/2018
Delivery Units,Adults and Communities,Voluntary Associations - Third,30179541,ST PANCRAS & HUMANIST H.A., 661.55 ,18/05/2018
Delivery Units,Adults and Communities,Voluntary Associations - Third,30179536,HABINTEG HOUSING ASSOCIATION, 446.37 ,18/05/2018
Delivery Units,Adults and Communities,Voluntary Associations - Third,30179542,LINEN & WOOLLEN DRAPERS COTTAGE,730.11,18/05/2018
Delivery Units,Adults and Communities,Voluntary Associations - Third,30179540,ORCHARD HOUSING ASSOCIATION, 196.62 ,18/05/2018
Delivery Units,Adults and Communities,Voluntary Associations - Third,30179544,SCOTSCARE, 361.52 ,18/05/2018
Delivery Units,Adults and Communities,Other Services,60103965,D.A. LANGUAGES LTD,14.04,31/05/2018
Delivery Units,Adults and Communities,Other Services,60104428,P A CONSULTING SERVICES LTD,"21,750.00",18/05/2018
Delivery Units,Adults and Communities,Ttl IT & Comms,60104476,P A CONSULTING SERVICES LTD," 664,054.00 ",18/05/2018
Delivery Units,Adults and Communities,Other Agencies - Third Party P,90076706,ABBEY RAVENSCROFT PARK NURSING HOME,"(1,708.97)",21/05/2018
Delivery Units,Adults and Communities,Other Agencies - Third Party P,90077986,ABBEY RAVENSCROFT PARK NURSING HOME,"-1,251.07 ",21/05/2018
Delivery Units,Adults and Communities,Other Agencies - Third Party P,90078927,ABBEY RAVENSCROFT PARK NURSING HOME,"3,321.43",21/05/2018
Delivery Units,Adults and Communities,Other Agencies - Third Party P,90078928,ABBEY RAVENSCROFT PARK NURSING HOME," 3,321.43 ",21/05/2018
Delivery Units,Adults and Communities,Other Agencies - Third Party P,90078930,ABBEY RAVENSCROFT PARK NURSING HOME," 3,321.43 ",21/05/2018
Delivery Units,Adults and Communities,Other Agencies - Third Party P,90078931,ABBEY RAVENSCROFT PARK NURSING HOME,"3,255.00",21/05/2018
Delivery Units,Adults and Communities,Other Agencies - Third Party P,90078932,ABBEY RAVENSCROFT PARK NURSING HOME,"2,788.32",21/05/2018
Delivery Units,Adults and Communities,Other Agencies - Third Party P,90078933,ABBEY RAVENSCROFT PARK NURSING HOME,"2,788.32",21/05/2018
Delivery Units,Adults and Communities,Other Agencies - Third Party P,90078935,ABBEY RAVENSCROFT PARK NURSING HOME,"2,788.32",21/05/2018
Delivery Units,Adults and Communities,Other Agencies - Third Party P,90078937,ABBEY RAVENSCROFT PARK NURSING HOME,"2,788.32",21/05/2018
Delivery Units,Adults and Communities,Other Agencies - Third Party P,90078938,ABBEY RAVENSCROFT PARK NURSING HOME," 3,100.00 ",21/05/2018
Delivery Units,Adults and Communities,Other Agencies - Third Party P,90078941,ABBEY RAVENSCROFT PARK NURSING HOME,"2,788.32",21/05/2018
Delivery Units,Adults and Communities,Other Agencies - Third Party P,90078942,ABBEY RAVENSCROFT PARK NURSING HOME,"2,788.32",21/05/2018
Delivery Units,Adults and Communities,Other Agencies - Third Party P,90078943,ABBEY RAVENSCROFT PARK NURSING HOME,"3,801.88",21/05/2018
Delivery Units,Adults and Communities,Other Agencies - Third Party P,90078946,ABBEY RAVENSCROFT PARK NURSING HOME," 3,321.43 ",21/05/2018
Delivery Units,Adults and Communities,Other Agencies - Third Party P,90078947,ABBEY RAVENSCROFT PARK NURSING HOME,"2,788.32",21/05/2018
Delivery Units,Adults and Communities,Other Agencies - Third Party P,80017410,ADARA HEALTHCARE LTD,"3,400.00",17/05/2018
Delivery Units,Adults and Communities,Other Agencies - Third Party P,90075096,APPLE TREE COURT CARE HOME,"2,571.43",01/05/2018
Delivery Units,Adults and Communities,Other Agencies - Third Party P,90075097,APPLE TREE COURT CARE HOME,"2,320.37",01/05/2018
Delivery Units,Adults and Communities,Other Agencies - Third Party P,90075098,APPLE TREE COURT CARE HOME," 4,714.29 ",01/05/2018
Delivery Units,Adults and Communities,Other Agencies - Third Party P,90075103,APPLE TREE COURT CARE HOME, 912.18 ,01/05/2018
Delivery Units,Adults and Communities,Other Agencies - Third Party P,90075104,APPLE TREE COURT CARE HOME," 2,487.77 ",01/05/2018
Delivery Units,Adults and Communities,Other Agencies - Third Party P,90079614,APPLE TREE COURT CARE HOME," 2,397.72 ",24/05/2018
Delivery Units,Adults and Communities,Other Agencies - Third Party P,90079615,APPLE TREE COURT CARE HOME,"2,657.14",24/05/2018
Delivery Units,Adults and Communities,Other Agencies - Third Party P,90079617,APPLE TREE COURT CARE HOME,"4,871.43",24/05/2018
Delivery Units,Adults and Communities,Other Agencies - Third Party P,90079618,APPLE TREE COURT CARE HOME,"2,570.70",24/05/2018
Delivery Units,Adults and Communities,Other Agencies - Third Party P,90078965,ASHTON LODGE CARE CENTRE,"3,077.64",22/05/2018
Delivery Units,Adults and Communities,Other Agencies - Third Party P,90078966,ASHTON LODGE CARE CENTRE,"3,542.86",22/05/2018
Delivery Units,Adults and Communities,Other Agencies - Third Party P,90078967,ASHTON LODGE CARE CENTRE,"3,520.49",22/05/2018
Delivery Units,Adults and Communities,Other Agencies - Third Party P,90078969,ASHTON LODGE CARE CENTRE,"2,844.07",22/05/2018
Delivery Units,Adults and Communities,Other Agencies - Third Party P,90078970,ASHTON LODGE CARE CENTRE," 3,299.06 ",22/05/2018
Delivery Units,Adults and Communities,Other Agencies - Third Party P,90078973,ASHTON LODGE CARE CENTRE," 2,844.07 ",22/05/2018
Delivery Units,Adults and Communities,Other Agencies - Third Party P,90078975,ASHTON LODGE CARE CENTRE," 3,299.06 ",22/05/2018
Delivery Units,Adults and Communities,Other Agencies - Third Party P,90078976,ASHTON LODGE CARE CENTRE," 3,133.79 ",22/05/2018
Delivery Units,Adults and Communities,Other Agencies - Third Party P,90078977,ASHTON LODGE CARE CENTRE," 3,073.43 ",22/05/2018
Delivery Units,Adults and Communities,Other Agencies - Third Party P,90078978,ASHTON LODGE CARE CENTRE,"2,844.07",22/05/2018
Delivery Units,Adults and Communities,Other Agencies - Third Party P,90078979,ASHTON LODGE CARE CENTRE," 3,293.75 ",22/05/2018
Delivery Units,Adults and Communities,Other Agencies - Third Party P,90078980,ASHTON LODGE CARE CENTRE," 3,077.64 ",22/05/2018
Delivery Units,Adults and Communities,Other Agencies - Third Party P,90078981,ASHTON LODGE CARE CENTRE,"3,520.49",22/05/2018
Delivery Units,Adults and Communities,Other Agencies - Third Party P,90078982,ASHTON LODGE CARE CENTRE," 2,567.95 ",22/05/2018
Delivery Units,Adults and Communities,Other Agencies - Third Party P,90078983,ASHTON LODGE CARE CENTRE," 3,321.43 ",22/05/2018
Delivery Units,Adults and Communities,Other Agencies - Third Party P,90078984,ASHTON LODGE CARE CENTRE," 3,520.49 ",22/05/2018
Delivery Units,Adults and Communities,Other Agencies - Third Party P,90078985,ASHTON LODGE CARE CENTRE,"2,936.14",22/05/2018
Delivery Units,Adults and Communities,Other Agencies - Third Party P,90078986,ASHTON LODGE CARE CENTRE," 3,764.29 ",22/05/2018
Delivery Units,Adults and Communities,Other Agencies - Third Party P,90078987,ASHTON LODGE CARE CENTRE," 3,299.06 ",22/05/2018
Delivery Units,Adults and Communities,Other Agencies - Third Party P,90078989,ASHTON LODGE CARE CENTRE," 3,077.64 ",22/05/2018
Delivery Units,Adults and Communities,Other Agencies - Third Party P,90078990,ASHTON LODGE CARE CENTRE,"3,077.64",22/05/2018
Delivery Units,Adults and Communities,Other Agencies - Third Party P,90079572,ASHTON LODGE CARE CENTRE," 3,406.93 ",24/05/2018
Delivery Units,Adults and Communities,Other Agencies - Third Party P,90079573,ASHTON LODGE CARE CENTRE,"3,428.57",24/05/2018
Delivery Units,Adults and Communities,Other Agencies - Third Party P,90079574,ASHTON LODGE CARE CENTRE," 3,192.64 ",24/05/2018
Delivery Units,Adults and Communities,Other Agencies - Third Party P,90079577,ASHTON LODGE CARE CENTRE," 3,621.21 ",24/05/2018
Delivery Units,Adults and Communities,Other Agencies - Third Party P,90079578,ASHTON LODGE CARE CENTRE," 2,485.11 ",24/05/2018
Delivery Units,Adults and Communities,Other Agencies - Third Party P,90079579,ASHTON LODGE CARE CENTRE," 3,406.93 ",24/05/2018
Delivery Units,Adults and Communities,Other Agencies - Third Party P,90079580,ASHTON LODGE CARE CENTRE," 3,406.93 ",24/05/2018
Delivery Units,Adults and Communities,Other Agencies - Third Party P,90079581,ASHTON LODGE CARE CENTRE," 2,752.33 ",24/05/2018
Delivery Units,Adults and Communities,Other Agencies - Third Party P,90079582,ASHTON LODGE CARE CENTRE," 2,978.36 ",24/05/2018
Delivery Units,Adults and Communities,Other Agencies - Third Party P,90079585,ASHTON LODGE CARE CENTRE," 2,978.36 ",24/05/2018
Delivery Units,Adults and Communities,Other Agencies - Third Party P,90079586,ASHTON LODGE CARE CENTRE,"3,214.29",24/05/2018
Delivery Units,Adults and Communities,Other Agencies - Third Party P,90079587,ASHTON LODGE CARE CENTRE," 2,752.33 ",24/05/2018
Delivery Units,Adults and Communities,Other Agencies - Third Party P,90079588,ASHTON LODGE CARE CENTRE," 3,192.64 ",24/05/2018
Delivery Units,Adults and Communities,Other Agencies - Third Party P,90079589,ASHTON LODGE CARE CENTRE,"3,032.70",24/05/2018
Delivery Units,Adults and Communities,Other Agencies - Third Party P,90079590,ASHTON LODGE CARE CENTRE," 3,187.50 ",24/05/2018
Delivery Units,Adults and Communities,Other Agencies - Third Party P,90079591,ASHTON LODGE CARE CENTRE," 2,752.33 ",24/05/2018
Delivery Units,Adults and Communities,Other Agencies - Third Party P,90079592,ASHTON LODGE CARE CENTRE,"2,978.36",24/05/2018
Delivery Units,Adults and Communities,Other Agencies - Third Party P,90079593,ASHTON LODGE CARE CENTRE,"2,841.43",24/05/2018
Delivery Units,Adults and Communities,Other Agencies - Third Party P,90079594,ASHTON LODGE CARE CENTRE,"3,642.86",24/05/2018
Delivery Units,Adults and Communities,Other Agencies - Third Party P,90079596,ASHTON LODGE CARE CENTRE," 2,974.29 ",24/05/2018
Delivery Units,Adults and Communities,Other Agencies - Third Party P,90077651,BONDCARE LONDON (THE FOUNTAINS),"2,138.00",15/05/2018
Delivery Units,Adults and Communities,Other Agencies - Third Party P,90075191,BUPA CARE HOMES,"3,400.00",03/05/2018
Delivery Units,Adults and Communities,Other Agencies - Third Party P,90075192,BUPA CARE HOMES," 2,165.68 ",03/05/2018
Delivery Units,Adults and Communities,Other Agencies - Third Party P,90075193,BUPA CARE HOMES," 1,714.29 ",03/05/2018
Delivery Units,Adults and Communities,Other Agencies - Third Party P,90075747,BUPA CARE HOMES," 2,910.39 ",14/05/2018
Delivery Units,Adults and Communities,Other Agencies - Third Party P,90075748,BUPA CARE HOMES,"2,386.50",14/05/2018
Delivery Units,Adults and Communities,Other Agencies - Third Party P,90076701,BUPA CARE HOMES,"2,387.19",14/05/2018
Delivery Units,Adults and Communities,Other Agencies - Third Party P,90077787,BUPA CARE HOMES,"3,416.11",17/05/2018
Delivery Units,Adults and Communities,Other Agencies - Third Party P,90077788,BUPA CARE HOMES,"2,466.76",17/05/2018
Delivery Units,Adults and Communities,Other Agencies - Third Party P,90078602,BUPA CARE HOMES,"2,165.68",23/05/2018
Delivery Units,Adults and Communities,Other Agencies - Third Party P,90078603,BUPA CARE HOMES,"3,400.00",23/05/2018
Delivery Units,Adults and Communities,Other Agencies - Third Party P,90079603,BUPA CARE HOMES," 2,386.50 ",24/05/2018
Delivery Units,Adults and Communities,Other Agencies - Third Party P,90079604,BUPA CARE HOMES," 3,621.21 ",24/05/2018
Delivery Units,Adults and Communities,Other Agencies - Third Party P,90079606,BUPA CARE HOMES,"3,642.86",24/05/2018
Delivery Units,Adults and Communities,Other Agencies - Third Party P,90079607,BUPA CARE HOMES," 2,641.07 ",24/05/2018
Delivery Units,Adults and Communities,Other Agencies - Third Party P,90079610,BUPA CARE HOMES," 2,321.92 ",24/05/2018
Delivery Units,Adults and Communities,Other Agencies - Third Party P,90079611,BUPA CARE HOMES," 2,321.92 ",24/05/2018
Delivery Units,Adults and Communities,Other Agencies - Third Party P,90079612,BUPA CARE HOMES,"2,549.32",24/05/2018
Delivery Units,Adults and Communities,Other Agencies - Third Party P,90079605,BUPA CARE HOMES LTD (SUTTON LODGE),"2,420.00",24/05/2018
Delivery Units,Adults and Communities,Other Agencies - Third Party P,90081142,BUPA NURSING HOMES LTD - ARKLEY,"2,227.40",30/05/2018
Delivery Units,Adults and Communities,Other Agencies - Third Party P,90081144,BUPA NURSING HOMES LTD - ARKLEY,"2,227.24",30/05/2018
Delivery Units,Adults and Communities,Other Agencies - Third Party P,90081145,BUPA NURSING HOMES LTD - ARKLEY,"2,227.24",30/05/2018
Delivery Units,Adults and Communities,Other Agencies - Third Party P,90081146,BUPA NURSING HOMES LTD - ARKLEY,"2,227.52",30/05/2018
Delivery Units,Adults and Communities,Other Agencies - Third Party P,90078908,CARE UK COMMUNITY PARTNERSHIPS,"3,426.61",21/05/2018
Delivery Units,Adults and Communities,Other Agencies - Third Party P,90080131,CARETECH COMMUNITY SERVICES LTD,"4,926.34",30/05/2018
Delivery Units,Adults and Communities,Other Agencies - Third Party P,90077802,FERNBANK NURSING HOME.,"2,318.80",17/05/2018
Delivery Units,Adults and Communities,Other Agencies - Third Party P,90077803,FERNBANK NURSING HOME.,"2,413.35",17/05/2018
Delivery Units,Adults and Communities,Other Agencies - Third Party P,90077804,FERNBANK NURSING HOME.,"2,397.54",17/05/2018
Delivery Units,Adults and Communities,Other Agencies - Third Party P,90077807,FERNBANK NURSING HOME.,"2,657.01",17/05/2018
Delivery Units,Adults and Communities,Other Agencies - Third Party P,90078591,FERNBANK NURSING HOME.,"2,397.54",21/05/2018
Delivery Units,Adults and Communities,Other Agencies - Third Party P,90079625,FERNBANK NURSING HOME.,"3,236.33",24/05/2018
Delivery Units,Adults and Communities,Other Agencies - Third Party P,90076899,FOUR SEASONS HEALTH CARE,"2,550.72",14/05/2018
Delivery Units,Adults and Communities,Other Agencies - Third Party P,90076900,FOUR SEASONS HEALTH CARE,"2,550.72",14/05/2018
Delivery Units,Adults and Communities,Other Agencies - Third Party P,90076901,FOUR SEASONS HEALTH CARE,"2,550.72",14/05/2018
Delivery Units,Adults and Communities,Other Agencies - Third Party P,90076902,FOUR SEASONS HEALTH CARE," 2,550.72 ",14/05/2018
Delivery Units,Adults and Communities,Other Agencies - Third Party P,90076903,FOUR SEASONS HEALTH CARE," 2,291.36 ",14/05/2018
Delivery Units,Adults and Communities,Other Agencies - Third Party P,90076905,FOUR SEASONS HEALTH CARE," 3,398.86 ",14/05/2018
Delivery Units,Adults and Communities,Other Agencies - Third Party P,90076906,FOUR SEASONS HEALTH CARE,-487.30 ,14/05/2018
Delivery Units,Adults and Communities,Other Agencies - Third Party P,90076907,FOUR SEASONS HEALTH CARE,-620.20 ,14/05/2018
Delivery Units,Adults and Communities,Other Agencies - Third Party P,90076908,FOUR SEASONS HEALTH CARE," 1,184.26 ",14/05/2018
Delivery Units,Adults and Communities,Other Agencies - Third Party P,90076909,FOUR SEASONS HEALTH CARE," 1,366.46 ",14/05/2018
Delivery Units,Adults and Communities,Other Agencies - Third Party P,90076722,FOUR SEASONS HEALTH CARE (NO.4) LTD," 2,004.00 ",14/05/2018
Delivery Units,Adults and Communities,Other Agencies - Third Party P,90079292,FRISTON HOUSE," 2,979.80 ",23/05/2018
Delivery Units,Adults and Communities,Other Agencies - Third Party P,90079293,FRISTON HOUSE," 2,979.80 ",23/05/2018
Delivery Units,Adults and Communities,Other Agencies - Third Party P,90077796,GCH (HERTFORDSHIRE) LTD T/A," 2,358.76 ",17/05/2018
Delivery Units,Adults and Communities,Other Agencies - Third Party P,90076456,HENRY NIHILL HOUSE," 2,165.68 ",14/05/2018
Delivery Units,Adults and Communities,Other Agencies - Third Party P,90076457,HENRY NIHILL HOUSE," 2,165.68 ",14/05/2018
Delivery Units,Adults and Communities,Other Agencies - Third Party P,90076458,HENRY NIHILL HOUSE," 2,165.68 ",14/05/2018
Delivery Units,Adults and Communities,Other Agencies - Third Party P,90076459,HENRY NIHILL HOUSE,"2,165.68",14/05/2018
Delivery Units,Adults and Communities,Other Agencies - Third Party P,90076460,HENRY NIHILL HOUSE," 2,165.68 ",14/05/2018
Delivery Units,Adults and Communities,Other Agencies - Third Party P,90076462,HENRY NIHILL HOUSE," 2,165.68 ",14/05/2018
Delivery Units,Adults and Communities,Other Agencies - Third Party P,90076463,HENRY NIHILL HOUSE," 2,165.68 ",14/05/2018
Delivery Units,Adults and Communities,Other Agencies - Third Party P,90076464,HENRY NIHILL HOUSE," 2,165.68 ",14/05/2018
Delivery Units,Adults and Communities,Other Agencies - Third Party P,90077789,HUSKARDS NEW CARE LTD," 2,397.72 ",17/05/2018
Delivery Units,Adults and Communities,Other Agencies - Third Party P,30179367,JEWISH CARE," 3,740.19 ",09/05/2018
Delivery Units,Adults and Communities,Other Agencies - Third Party P,30179369,JEWISH CARE," 1,439.13 ",09/05/2018
Delivery Units,Adults and Communities,Other Agencies - Third Party P,90075079,JEWISH CARE," 6,422.10 ",01/05/2018
Delivery Units,Adults and Communities,Other Agencies - Third Party P,90075080,JEWISH CARE," 17,981.88 ",01/05/2018
Delivery Units,Adults and Communities,Other Agencies - Third Party P,90075081,JEWISH CARE," 17,981.88 ",01/05/2018
Delivery Units,Adults and Communities,Other Agencies - Third Party P,90075082,JEWISH CARE,"-36,330.74 ",01/05/2018
Delivery Units,Adults and Communities,Other Agencies - Third Party P,90075084,JEWISH CARE,994.05,01/05/2018
Delivery Units,Adults and Communities,Other Agencies - Third Party P,90075085,JEWISH CARE," 2,319.44 ",01/05/2018
Delivery Units,Adults and Communities,Other Agencies - Third Party P,90075762,JEWISH CARE,-660.56 ,09/05/2018
Delivery Units,Adults and Communities,Other Agencies - Third Party P,90076565,JEWISH CARE," 2,568.84 ",14/05/2018
Delivery Units,Adults and Communities,Other Agencies - Third Party P,90076566,JEWISH CARE," 2,568.84 ",14/05/2018
Delivery Units,Adults and Communities,Other Agencies - Third Party P,90076567,JEWISH CARE," 2,319.44 ",14/05/2018
Delivery Units,Adults and Communities,Other Agencies - Third Party P,90076568,JEWISH CARE," 2,319.44 ",14/05/2018
Delivery Units,Adults and Communities,Other Agencies - Third Party P,90076569,JEWISH CARE," 2,568.84 ",14/05/2018
Delivery Units,Adults and Communities,Other Agencies - Third Party P,90076570,JEWISH CARE,"2,319.44",14/05/2018
Delivery Units,Adults and Communities,Other Agencies - Third Party P,90076571,JEWISH CARE,"2,568.84",14/05/2018
Delivery Units,Adults and Communities,Other Agencies - Third Party P,90076572,JEWISH CARE," 2,568.84 ",14/05/2018
Delivery Units,Adults and Communities,Other Agencies - Third Party P,90076573,JEWISH CARE," 2,319.44 ",14/05/2018
Delivery Units,Adults and Communities,Other Agencies - Third Party P,90076574,JEWISH CARE," 2,319.44 ",14/05/2018
Delivery Units,Adults and Communities,Other Agencies - Third Party P,90076579,JEWISH CARE," 2,319.44 ",14/05/2018
Delivery Units,Adults and Communities,Other Agencies - Third Party P,90076581,JEWISH CARE," 2,568.84 ",14/05/2018
Delivery Units,Adults and Communities,Other Agencies - Third Party P,90076582,JEWISH CARE,"2,568.84",14/05/2018
Delivery Units,Adults and Communities,Other Agencies - Third Party P,90076583,JEWISH CARE," 2,319.44 ",14/05/2018
Delivery Units,Adults and Communities,Other Agencies - Third Party P,90076584,JEWISH CARE," 2,319.44 ",14/05/2018
Delivery Units,Adults and Communities,Other Agencies - Third Party P,90076585,JEWISH CARE,"2,568.84",14/05/2018
Delivery Units,Adults and Communities,Other Agencies - Third Party P,90076586,JEWISH CARE,"2,568.84",14/05/2018
Delivery Units,Adults and Communities,Other Agencies - Third Party P,90076587,JEWISH CARE,"2,319.44",14/05/2018
Delivery Units,Adults and Communities,Other Agencies - Third Party P,90076588,JEWISH CARE,"2,319.44",14/05/2018
Delivery Units,Adults and Communities,Other Agencies - Third Party P,90076589,JEWISH CARE," 2,568.84 ",14/05/2018
Delivery Units,Adults and Communities,Other Agencies - Third Party P,90076616,JEWISH CARE," 2,319.44 ",14/05/2018
Delivery Units,Adults and Communities,Other Agencies - Third Party P,90079270,KARUNA MANOR," 4,207.14 ",23/05/2018
Delivery Units,Adults and Communities,Other Agencies - Third Party P,90077791,LADY OF THE VALE NURSING HOME,"2,657.14",17/05/2018
Delivery Units,Adults and Communities,Other Agencies - Third Party P,90075771,LIFESTYLE CARE PLC,"1,933.64",08/05/2018
Delivery Units,Adults and Communities,Other Agencies - Third Party P,90075772,LIFESTYLE CARE PLC,"4,795.43",08/05/2018
Delivery Units,Adults and Communities,Other Agencies - Third Party P,90076700,LIFESTYLE CARE PLC,"2,569.89",14/05/2018
Delivery Units,Adults and Communities,Other Agencies - Third Party P,90078997,LIFESTYLE CARE PLC," 1,090.00 ",22/05/2018
Delivery Units,Adults and Communities,Other Agencies - Third Party P,90078998,LIFESTYLE CARE PLC," 2,398.56 ",22/05/2018
Delivery Units,Adults and Communities,Other Agencies - Third Party P,90080104,LIFESTYLE CARE PLC," 2,320.37 ",25/05/2018
Delivery Units,Adults and Communities,Other Agencies - Third Party P,90080106,LIFESTYLE CARE PLC,"2,569.89",25/05/2018
Delivery Units,Adults and Communities,Other Agencies - Third Party P,90080107,LIFESTYLE CARE PLC," 2,320.37 ",25/05/2018
Delivery Units,Adults and Communities,Other Agencies - Third Party P,90080108,LIFESTYLE CARE PLC,"2,320.37",25/05/2018
Delivery Units,Adults and Communities,Other Agencies - Third Party P,90080141,LIFESTYLE CARE PLC," 2,320.37 ",25/05/2018
Delivery Units,Adults and Communities,Other Agencies - Third Party P,90080142,LIFESTYLE CARE PLC,"2,320.37",25/05/2018
Delivery Units,Adults and Communities,Other Agencies - Third Party P,90080143,LIFESTYLE CARE PLC,"2,320.37",25/05/2018
Delivery Units,Adults and Communities,Other Agencies - Third Party P,90078959,MEERA NURSING HOME LIMITED,"2,907.93",22/05/2018
Delivery Units,Adults and Communities,Other Agencies - Third Party P,90078960,MEERA NURSING HOME LIMITED," 2,445.68 ",22/05/2018
Delivery Units,Adults and Communities,Other Agencies - Third Party P,90078961,MEERA NURSING HOME LIMITED,"2,445.68",22/05/2018
Delivery Units,Adults and Communities,Other Agencies - Third Party P,90078962,MEERA NURSING HOME LIMITED," 2,708.65 ",22/05/2018
Delivery Units,Adults and Communities,Other Agencies - Third Party P,90078963,MEERA NURSING HOME LIMITED," 2,708.65 ",22/05/2018
Delivery Units,Adults and Communities,Other Agencies - Third Party P,90078964,MEERA NURSING HOME LIMITED,"2,445.68",22/05/2018
Delivery Units,Adults and Communities,Other Agencies - Third Party P,90076451,MURRAYFIELD CARE HOME," 2,211.80 ",14/05/2018
Delivery Units,Adults and Communities,Other Agencies - Third Party P,90076424,NEWCENTURY CARE LTD," 2,398.56 ",14/05/2018
Delivery Units,Adults and Communities,Other Agencies - Third Party P,90078865,NEWCENTURY CARE LTD," 3,321.43 ",21/05/2018
Delivery Units,Adults and Communities,Other Agencies - Third Party P,90078866,NEWCENTURY CARE LTD," 3,764.29 ",21/05/2018
Delivery Units,Adults and Communities,Other Agencies - Third Party P,90078867,NEWCENTURY CARE LTD,"3,764.29",21/05/2018
Delivery Units,Adults and Communities,Other Agencies - Third Party P,90078868,NEWCENTURY CARE LTD,"4,198.29",21/05/2018
Delivery Units,Adults and Communities,Other Agencies - Third Party P,90078870,NEWCENTURY CARE LTD,"4,340.00",21/05/2018
Delivery Units,Adults and Communities,Other Agencies - Third Party P,90078871,NEWCENTURY CARE LTD,"3,985.71",21/05/2018
Delivery Units,Adults and Communities,Other Agencies - Third Party P,90078872,NEWCENTURY CARE LTD," 3,985.71 ",21/05/2018
Delivery Units,Adults and Communities,Other Agencies - Third Party P,90078873,NEWCENTURY CARE LTD," 3,321.43 ",21/05/2018
Delivery Units,Adults and Communities,Other Agencies - Third Party P,90078875,NEWCENTURY CARE LTD,"3,321.43",21/05/2018
Delivery Units,Adults and Communities,Other Agencies - Third Party P,90081147,NIGHTINGALE HOUSE," 2,900.71 ",30/05/2018
Delivery Units,Adults and Communities,Other Agencies - Third Party P,90076712,SAGE NURSING HOME," 3,771.43 ",14/05/2018
Delivery Units,Adults and Communities,Other Agencies - Third Party P,90076715,SAGE NURSING HOME," 1,701.61 ",14/05/2018
Delivery Units,Adults and Communities,Other Agencies - Third Party P,90076717,SAGE NURSING HOME,"1,978.81",14/05/2018
Delivery Units,Adults and Communities,Other Agencies - Third Party P,90076718,SAGE NURSING HOME," 2,655.56 ",14/05/2018
Delivery Units,Adults and Communities,Other Agencies - Third Party P,90076719,SAGE NURSING HOME," 2,357.14 ",14/05/2018
Delivery Units,Adults and Communities,Other Agencies - Third Party P,90076720,SAGE NURSING HOME,"1,786.68",14/05/2018
Delivery Units,Adults and Communities,Other Agencies - Third Party P,90079282,SAGE NURSING HOME," 1,371.43 ",23/05/2018
Delivery Units,Adults and Communities,Other Agencies - Third Party P,90079285,SAGE NURSING HOME,618.77,23/05/2018
Delivery Units,Adults and Communities,Other Agencies - Third Party P,90079287,SAGE NURSING HOME,719.57,23/05/2018
Delivery Units,Adults and Communities,Other Agencies - Third Party P,90079288,SAGE NURSING HOME, 965.66 ,23/05/2018
Delivery Units,Adults and Communities,Other Agencies - Third Party P,90079289,SAGE NURSING HOME, 857.14 ,23/05/2018
Delivery Units,Adults and Communities,Other Agencies - Third Party P,90079290,SAGE NURSING HOME,649.70,23/05/2018
Delivery Units,Adults and Communities,Other Agencies - Third Party P,90079331,SAGE NURSING HOME," 4,304.13 ",23/05/2018
Delivery Units,Adults and Communities,Other Agencies - Third Party P,90077811,SANCTUARY CARE LTD," 2,573.84 ",17/05/2018
Delivery Units,Adults and Communities,Other Agencies - Third Party P,90075083,VICTORIA CARE CENTRE,"2,958.95",01/05/2018
Delivery Units,Adults and Communities,Other Agencies - Third Party P,90075729,VICTORIA CARE CENTRE," 2,863.50 ",08/05/2018
Delivery Units,Adults and Communities,Other Agencies - Third Party P,90077794,WESTGATE HOUSE CARE CENTRE,"3,725.76",18/05/2018
Delivery Units,Adults and Communities,Other Agencies - Third Party P,90074354,WESTMINSTER HEALTH CARE LTD," 2,320.37 ",03/05/2018
Delivery Units,Adults and Communities,Other Agencies - Third Party P,90074355,WESTMINSTER HEALTH CARE LTD," 2,320.37 ",03/05/2018
Delivery Units,Adults and Communities,Other Agencies - Third Party P,90074356,WESTMINSTER HEALTH CARE LTD," 2,320.37 ",03/05/2018
Delivery Units,Adults and Communities,Other Agencies - Third Party P,90077820,WESTMINSTER HEALTH CARE LTD," 2,318.93 ",17/05/2018
Delivery Units,Adults and Communities,Other Agencies - Third Party P,90079338,WESTMINSTER HEALTH CARE LTD,"2,244.13",23/05/2018
Delivery Units,Adults and Communities,Other Agencies - Third Party P,90075756,AGUDAS ISRAEL HOUSING ASSCTN LTD," 2,648.57 ",14/05/2018
Delivery Units,Adults and Communities,Other Agencies - Third Party P,90075758,ST ANNS HOME-LITTLE SISTERS OF THE POOR," 2,320.38 ",08/05/2018
Delivery Units,Adults and Communities,Other Agencies - Third Party P,90075749,THE LEONARD CHESHIRE FOUNDATION,"6,321.43",24/05/2018
Delivery Units,Adults and Communities,Other Agencies - Third Party P,90077665,AUTUMN GARDENS,"4,800.00",15/05/2018
Delivery Units,Adults and Communities,Other Agencies - Third Party P,90077668,AUTUMN GARDENS,"4,800.00",15/05/2018
Delivery Units,Adults and Communities,Other Agencies - Third Party P,90079001,AUTUMN GARDENS," 4,800.00 ",24/05/2018
Delivery Units,Adults and Communities,Other Agencies - Third Party P,90079002,AUTUMN GARDENS," 4,800.00 ",24/05/2018
Delivery Units,Adults and Communities,Other Agencies - Third Party P,90076450,CARLTON COURT (TLC GROUP)," 1,400.00 ",14/05/2018
Delivery Units,Adults and Communities,Other Agencies - Third Party P,90077987,CARLTON COURT (TLC GROUP)," 3,100.00 ",17/05/2018
Delivery Units,Adults and Communities,Other Agencies - Third Party P,90079258,CARLTON COURT (TLC GROUP)," 2,655.55 ",23/05/2018
Delivery Units,Adults and Communities,Other Agencies - Third Party P,90079259,CARLTON COURT (TLC GROUP)," 4,428.57 ",23/05/2018
Delivery Units,Adults and Communities,Other Agencies - Third Party P,90079261,CARLTON COURT (TLC GROUP)," 3,736.61 ",23/05/2018
Delivery Units,Adults and Communities,Other Agencies - Third Party P,90079265,CARLTON COURT (TLC GROUP)," 2,448.78 ",23/05/2018
Delivery Units,Adults and Communities,Other Agencies - Third Party P,90077771,CHISWICK HOUSE," 3,321.34 ",30/05/2018
Delivery Units,Adults and Communities,Other Agencies - Third Party P,80017346,LIFE STYLE CARE MANAGEMENT LTD," 11,127.67 ",11/05/2018
Delivery Units,Adults and Communities,Other Agencies - Third Party P,80017348,LIFE STYLE CARE MANAGEMENT LTD,"4,138.39",11/05/2018
Delivery Units,Adults and Communities,Other Agencies - Third Party P,80017528,ASHREY CARE LIMITED,400.00,24/05/2018
Delivery Units,Adults and Communities,Other Agencies - Third Party P,90071754,PINELODGE CARE HOME," 2,569.89 ",09/05/2018
Delivery Units,Adults and Communities,Other Agencies - Third Party P,90081113,3A CARE (LONDON) LTD,"2,514.72",30/05/2018
Delivery Units,Adults and Communities,Other Agencies - Third Party P,90076707,ABBEY RAVENSCROFT PARK NURSING HOME,"-1,440.00 ",21/05/2018
Delivery Units,Adults and Communities,Other Agencies - Third Party P,90076708,ABBEY RAVENSCROFT PARK NURSING HOME,"(1,371.43)",21/05/2018
Delivery Units,Adults and Communities,Other Agencies - Third Party P,90076705,ALEXANDRA HOUSE (RUNWOOD HOMES),"2,189.70",14/05/2018
Delivery Units,Adults and Communities,Other Agencies - Third Party P,90077667,ANASTASIA LODGE,"2,800.00",22/05/2018
Delivery Units,Adults and Communities,Other Agencies - Third Party P,90078999,ANASTASIA LODGE,"2,800.00",29/05/2018
Delivery Units,Adults and Communities,Other Agencies - Third Party P,90075101,APPLE TREE COURT CARE HOME," 2,369.79 ",01/05/2018
Delivery Units,Adults and Communities,Other Agencies - Third Party P,90079619,APPLE TREE COURT CARE HOME," 2,448.78 ",24/05/2018
Delivery Units,Adults and Communities,Other Agencies - Third Party P,90079566,ASHFIELDS RESIDENTIAL CARE HOME,"2,369.79",24/05/2018
Delivery Units,Adults and Communities,Other Agencies - Third Party P,90079567,ASHFIELDS RESIDENTIAL CARE HOME,"2,369.79",24/05/2018
Delivery Units,Adults and Communities,Other Agencies - Third Party P,90079568,ASHFIELDS RESIDENTIAL CARE HOME," 2,369.79 ",24/05/2018
Delivery Units,Adults and Communities,Other Agencies - Third Party P,90079570,ASHFIELDS RESIDENTIAL CARE HOME,"2,369.79",24/05/2018
Delivery Units,Adults and Communities,Other Agencies - Third Party P,90079571,ASHFIELDS RESIDENTIAL CARE HOME," 2,421.43 ",24/05/2018
Delivery Units,Adults and Communities,Other Agencies - Third Party P,90079630,ASHFIELDS RESIDENTIAL CARE HOME," 2,571.43 ",24/05/2018
Delivery Units,Adults and Communities,Other Agencies - Third Party P,90079631,ASHFIELDS RESIDENTIAL CARE HOME," 2,297.14 ",24/05/2018
Delivery Units,Adults and Communities,Other Agencies - Third Party P,90078968,ASHTON LODGE CARE CENTRE,"2,622.64",22/05/2018
Delivery Units,Adults and Communities,Other Agencies - Third Party P,90078972,ASHTON LODGE CARE CENTRE," 2,844.07 ",22/05/2018
Delivery Units,Adults and Communities,Other Agencies - Third Party P,90079575,ASHTON LODGE CARE CENTRE," 2,752.33 ",24/05/2018
Delivery Units,Adults and Communities,Other Agencies - Third Party P,90079576,ASHTON LODGE CARE CENTRE,"2,538.04",24/05/2018
Delivery Units,Adults and Communities,Other Agencies - Third Party P,90078854,B & M CARE,"2,316.94",21/05/2018
Delivery Units,Adults and Communities,Other Agencies - Third Party P,90078863,B & M CARE,"3,321.43",21/05/2018
Delivery Units,Adults and Communities,Other Agencies - Third Party P,90077795,BIRCHWOOD GRANGE CARE HOME,"2,657.14",17/05/2018
Delivery Units,Adults and Communities,Other Agencies - Third Party P,90076702,BUPA CARE HOMES," 2,239.59 ",14/05/2018
Delivery Units,Adults and Communities,Other Agencies - Third Party P,90076703,BUPA CARE HOMES," 2,369.79 ",14/05/2018
Delivery Units,Adults and Communities,Other Agencies - Third Party P,90076704,BUPA CARE HOMES," 2,239.59 ",14/05/2018
Delivery Units,Adults and Communities,Other Agencies - Third Party P,90081143,BUPA NURSING HOMES LTD - ARKLEY," 2,089.68 ",30/05/2018
Delivery Units,Adults and Communities,Other Agencies - Third Party P,90075198,CLOVELLY HOUSE RESID. HOME LTD," 2,780.00 ",03/05/2018
Delivery Units,Adults and Communities,Other Agencies - Third Party P,90075199,CLOVELLY HOUSE RESID. HOME LTD," 1,290.71 ",03/05/2018
Delivery Units,Adults and Communities,Other Agencies - Third Party P,90077777,CLOVELLY HOUSE RESID. HOME LTD," 2,780.00 ",17/05/2018
Delivery Units,Adults and Communities,Other Agencies - Third Party P,90077779,CLOVELLY HOUSE RESID. HOME LTD," 2,780.00 ",17/05/2018
Delivery Units,Adults and Communities,Other Agencies - Third Party P,90077780,CLOVELLY HOUSE RESID. HOME LTD," 2,600.00 ",17/05/2018
Delivery Units,Adults and Communities,Other Agencies - Third Party P,90077784,CLOVELLY HOUSE RESID. HOME LTD,"2,600.00",17/05/2018
Delivery Units,Adults and Communities,Other Agencies - Third Party P,90077785,CLOVELLY HOUSE RESID. HOME LTD,"2,780.00",17/05/2018
Delivery Units,Adults and Communities,Other Agencies - Third Party P,90077768,DOWNLANDS CARE LTD,"2,079.17",17/05/2018
Delivery Units,Adults and Communities,Other Agencies - Third Party P,90080113,EASTSIDE HOUSE RESIDENTIAL CARE HOM," 3,080.00 ",25/05/2018
Delivery Units,Adults and Communities,Other Agencies - Third Party P,90078569,ELEANOR PALMER TRUST NO 2 A/C.,"2,546.74",21/05/2018
Delivery Units,Adults and Communities,Other Agencies - Third Party P,90078571,ELEANOR PALMER TRUST NO 2 A/C.,"2,546.74",21/05/2018
Delivery Units,Adults and Communities,Other Agencies - Third Party P,90078572,ELEANOR PALMER TRUST NO 2 A/C.," 2,339.44 ",21/05/2018
Delivery Units,Adults and Communities,Other Agencies - Third Party P,90078573,ELEANOR PALMER TRUST NO 2 A/C.," 2,546.74 ",21/05/2018
Delivery Units,Adults and Communities,Other Agencies - Third Party P,90078574,ELEANOR PALMER TRUST NO 2 A/C.," 3,321.43 ",21/05/2018
Delivery Units,Adults and Communities,Other Agencies - Third Party P,90078575,ELEANOR PALMER TRUST NO 2 A/C.," 2,546.74 ",21/05/2018
Delivery Units,Adults and Communities,Other Agencies - Third Party P,90078576,ELEANOR PALMER TRUST NO 2 A/C.," 3,321.43 ",21/05/2018
Delivery Units,Adults and Communities,Other Agencies - Third Party P,90078577,ELEANOR PALMER TRUST NO 2 A/C.," 2,339.44 ",21/05/2018
Delivery Units,Adults and Communities,Other Agencies - Third Party P,90078578,ELEANOR PALMER TRUST NO 2 A/C.," 2,339.44 ",21/05/2018
Delivery Units,Adults and Communities,Other Agencies - Third Party P,90078579,ELEANOR PALMER TRUST NO 2 A/C.,"3,321.43",21/05/2018
Delivery Units,Adults and Communities,Other Agencies - Third Party P,90078580,ELEANOR PALMER TRUST NO 2 A/C.,"3,321.43",21/05/2018
Delivery Units,Adults and Communities,Other Agencies - Third Party P,90078581,ELEANOR PALMER TRUST NO 2 A/C.,"2,339.44",21/05/2018
Delivery Units,Adults and Communities,Other Agencies - Third Party P,90078582,ELEANOR PALMER TRUST NO 2 A/C.," 2,657.14 ",21/05/2018
Delivery Units,Adults and Communities,Other Agencies - Third Party P,90078583,ELEANOR PALMER TRUST NO 2 A/C.," 2,546.74 ",21/05/2018
Delivery Units,Adults and Communities,Other Agencies - Third Party P,90076896,ELM PARK LODGE," 3,068.57 ",14/05/2018
Delivery Units,Adults and Communities,Other Agencies - Third Party P,90076897,ELM PARK LODGE,"1,459.25",14/05/2018
Delivery Units,Adults and Communities,Other Agencies - Third Party P,30179076,ELMHURST RESIDENTIAL HOME," 11,900.00 ",04/05/2018
Delivery Units,Adults and Communities,Other Agencies - Third Party P,90075092,ELMHURST RESIDENTIAL HOME," 33,100.00 ",01/05/2018
Delivery Units,Adults and Communities,Other Agencies - Third Party P,90075093,ELMHURST RESIDENTIAL HOME," 3,657.14 ",01/05/2018
Delivery Units,Adults and Communities,Other Agencies - Third Party P,90073991,FRIARY LODGE,"3,000.00",02/05/2018
Delivery Units,Adults and Communities,Other Agencies - Third Party P,90073993,FRIARY LODGE,"2,400.00",02/05/2018
Delivery Units,Adults and Communities,Other Agencies - Third Party P,90076869,HILTON LODGE LTD.,"2,880.00",14/05/2018
Delivery Units,Adults and Communities,Other Agencies - Third Party P,90076872,HILTON LODGE LTD.," 2,880.00 ",14/05/2018
Delivery Units,Adults and Communities,Other Agencies - Third Party P,90076873,HILTON LODGE LTD.,"2,480.00",14/05/2018
Delivery Units,Adults and Communities,Other Agencies - Third Party P,30179365,JEWISH CARE," 2,520.00 ",09/05/2018
Delivery Units,Adults and Communities,Other Agencies - Third Party P,30179368,JEWISH CARE,"1,066.68",09/05/2018
Delivery Units,Adults and Communities,Other Agencies - Third Party P,90075054,JEWISH CARE,"2,415.28",01/05/2018
Delivery Units,Adults and Communities,Other Agencies - Third Party P,90075055,JEWISH CARE," 2,415.28 ",01/05/2018
Delivery Units,Adults and Communities,Other Agencies - Third Party P,90075056,JEWISH CARE,"2,415.28",01/05/2018
Delivery Units,Adults and Communities,Other Agencies - Third Party P,90075057,JEWISH CARE,"2,415.28",01/05/2018
Delivery Units,Adults and Communities,Other Agencies - Third Party P,90075065,JEWISH CARE,(23.77),01/05/2018
Delivery Units,Adults and Communities,Other Agencies - Third Party P,90075066,JEWISH CARE,"2,218.68",01/05/2018
Delivery Units,Adults and Communities,Other Agencies - Third Party P,90075067,JEWISH CARE,"2,568.84",01/05/2018
Delivery Units,Adults and Communities,Other Agencies - Third Party P,90075068,JEWISH CARE,"2,568.84",01/05/2018
Delivery Units,Adults and Communities,Other Agencies - Third Party P,90075069,JEWISH CARE,"2,568.84",01/05/2018
Delivery Units,Adults and Communities,Other Agencies - Third Party P,90075070,JEWISH CARE,"2,218.68",01/05/2018
Delivery Units,Adults and Communities,Other Agencies - Third Party P,90075071,JEWISH CARE,-633.91 ,01/05/2018
Delivery Units,Adults and Communities,Other Agencies - Third Party P,90075072,JEWISH CARE,-172.52 ,01/05/2018
Delivery Units,Adults and Communities,Other Agencies - Third Party P,90075073,JEWISH CARE,"6,656.04",01/05/2018
Delivery Units,Adults and Communities,Other Agencies - Third Party P,90075074,JEWISH CARE," 13,542.82 ",01/05/2018
Delivery Units,Adults and Communities,Other Agencies - Third Party P,90075759,JEWISH CARE, 792.39 ,09/05/2018
Delivery Units,Adults and Communities,Other Agencies - Third Party P,90075764,JEWISH CARE, 79.24 ,09/05/2018
Delivery Units,Adults and Communities,Other Agencies - Third Party P,90075765,JEWISH CARE,(182.25),09/05/2018
Delivery Units,Adults and Communities,Other Agencies - Third Party P,90076515,JEWISH CARE,-948.86 ,14/05/2018
Delivery Units,Adults and Communities,Other Agencies - Third Party P,90076516,JEWISH CARE,"2,415.28",14/05/2018
Delivery Units,Adults and Communities,Other Agencies - Third Party P,90076517,JEWISH CARE,"2,218.68",14/05/2018
Delivery Units,Adults and Communities,Other Agencies - Third Party P,90076518,JEWISH CARE," 2,218.68 ",14/05/2018
Delivery Units,Adults and Communities,Other Agencies - Third Party P,90076519,JEWISH CARE,"2,218.68",14/05/2018
Delivery Units,Adults and Communities,Other Agencies - Third Party P,90076520,JEWISH CARE," 2,415.28 ",14/05/2018
Delivery Units,Adults and Communities,Other Agencies - Third Party P,90076521,JEWISH CARE," 2,415.28 ",14/05/2018
Delivery Units,Adults and Communities,Other Agencies - Third Party P,90076522,JEWISH CARE,"2,218.68",14/05/2018
Delivery Units,Adults and Communities,Other Agencies - Third Party P,90076523,JEWISH CARE,"2,218.68",14/05/2018
Delivery Units,Adults and Communities,Other Agencies - Third Party P,90076524,JEWISH CARE," 2,218.68 ",14/05/2018
Delivery Units,Adults and Communities,Other Agencies - Third Party P,90076525,JEWISH CARE," 2,218.68 ",14/05/2018
Delivery Units,Adults and Communities,Other Agencies - Third Party P,90076526,JEWISH CARE,"2,415.28",14/05/2018
Delivery Units,Adults and Communities,Other Agencies - Third Party P,90076527,JEWISH CARE," 2,415.28 ",14/05/2018
Delivery Units,Adults and Communities,Other Agencies - Third Party P,90076529,JEWISH CARE," 2,202.83 ",14/05/2018
Delivery Units,Adults and Communities,Other Agencies - Third Party P,90076531,JEWISH CARE,"2,218.68",14/05/2018
Delivery Units,Adults and Communities,Other Agencies - Third Party P,90076532,JEWISH CARE," 2,218.68 ",14/05/2018
Delivery Units,Adults and Communities,Other Agencies - Third Party P,90076533,JEWISH CARE," 2,415.28 ",14/05/2018
Delivery Units,Adults and Communities,Other Agencies - Third Party P,90076534,JEWISH CARE," 2,415.28 ",14/05/2018
Delivery Units,Adults and Communities,Other Agencies - Third Party P,90076535,JEWISH CARE," 2,218.68 ",14/05/2018
Delivery Units,Adults and Communities,Other Agencies - Third Party P,90076536,JEWISH CARE," 2,415.28 ",14/05/2018
Delivery Units,Adults and Communities,Other Agencies - Third Party P,90076537,JEWISH CARE,"2,415.28",14/05/2018
Delivery Units,Adults and Communities,Other Agencies - Third Party P,90076538,JEWISH CARE," 2,415.28 ",14/05/2018
Delivery Units,Adults and Communities,Other Agencies - Third Party P,90076539,JEWISH CARE," 4,733.40 ",14/05/2018
Delivery Units,Adults and Communities,Other Agencies - Third Party P,90076540,JEWISH CARE,"2,218.68",14/05/2018
Delivery Units,Adults and Communities,Other Agencies - Third Party P,90076541,JEWISH CARE,"2,218.68",14/05/2018
Delivery Units,Adults and Communities,Other Agencies - Third Party P,90076542,JEWISH CARE," 2,218.68 ",14/05/2018
Delivery Units,Adults and Communities,Other Agencies - Third Party P,90076543,JEWISH CARE," 2,415.28 ",14/05/2018
Delivery Units,Adults and Communities,Other Agencies - Third Party P,90076544,JEWISH CARE,"2,415.28",14/05/2018
Delivery Units,Adults and Communities,Other Agencies - Third Party P,90076545,JEWISH CARE," 2,218.68 ",14/05/2018
Delivery Units,Adults and Communities,Other Agencies - Third Party P,90076547,JEWISH CARE,"2,415.28",14/05/2018
Delivery Units,Adults and Communities,Other Agencies - Third Party P,90076549,JEWISH CARE," 2,102.00 ",14/05/2018
Delivery Units,Adults and Communities,Other Agencies - Third Party P,90076553,JEWISH CARE," 2,415.28 ",14/05/2018
Delivery Units,Adults and Communities,Other Agencies - Third Party P,90076556,JEWISH CARE,"3,200.00",14/05/2018
Delivery Units,Adults and Communities,Other Agencies - Third Party P,90076557,JEWISH CARE," 2,415.28 ",14/05/2018
Delivery Units,Adults and Communities,Other Agencies - Third Party P,90076558,JEWISH CARE," 2,218.68 ",14/05/2018
Delivery Units,Adults and Communities,Other Agencies - Third Party P,90076560,JEWISH CARE,"2,415.28",14/05/2018
Delivery Units,Adults and Communities,Other Agencies - Third Party P,90076562,JEWISH CARE," 2,415.28 ",14/05/2018
Delivery Units,Adults and Communities,Other Agencies - Third Party P,90076563,JEWISH CARE," 2,415.28 ",14/05/2018
Delivery Units,Adults and Communities,Other Agencies - Third Party P,90076575,JEWISH CARE," 2,415.28 ",14/05/2018
Delivery Units,Adults and Communities,Other Agencies - Third Party P,90076590,JEWISH CARE," 2,415.28 ",14/05/2018
Delivery Units,Adults and Communities,Other Agencies - Third Party P,90076591,JEWISH CARE," 2,415.28 ",14/05/2018
Delivery Units,Adults and Communities,Other Agencies - Third Party P,90076592,JEWISH CARE," 2,415.28 ",14/05/2018
Delivery Units,Adults and Communities,Other Agencies - Third Party P,90076593,JEWISH CARE," 2,415.28 ",14/05/2018
Delivery Units,Adults and Communities,Other Agencies - Third Party P,90076594,JEWISH CARE," 2,415.28 ",14/05/2018
Delivery Units,Adults and Communities,Other Agencies - Third Party P,90076596,JEWISH CARE," 2,415.28 ",14/05/2018
Delivery Units,Adults and Communities,Other Agencies - Third Party P,90076597,JEWISH CARE," 2,218.68 ",14/05/2018
Delivery Units,Adults and Communities,Other Agencies - Third Party P,90076598,JEWISH CARE,"2,415.28",14/05/2018
Delivery Units,Adults and Communities,Other Agencies - Third Party P,90076599,JEWISH CARE," 2,415.28 ",14/05/2018
Delivery Units,Adults and Communities,Other Agencies - Third Party P,90076600,JEWISH CARE,"2,415.28",14/05/2018
Delivery Units,Adults and Communities,Other Agencies - Third Party P,90076602,JEWISH CARE," 2,415.28 ",14/05/2018
Delivery Units,Adults and Communities,Other Agencies - Third Party P,90076603,JEWISH CARE,"2,415.28",14/05/2018
Delivery Units,Adults and Communities,Other Agencies - Third Party P,90076604,JEWISH CARE,"2,218.68",14/05/2018
Delivery Units,Adults and Communities,Other Agencies - Third Party P,90076605,JEWISH CARE," 2,415.28 ",14/05/2018
Delivery Units,Adults and Communities,Other Agencies - Third Party P,90076606,JEWISH CARE," 2,415.28 ",14/05/2018
Delivery Units,Adults and Communities,Other Agencies - Third Party P,90076607,JEWISH CARE,"2,218.68",14/05/2018
Delivery Units,Adults and Communities,Other Agencies - Third Party P,90076608,JEWISH CARE,"2,415.28",14/05/2018
Delivery Units,Adults and Communities,Other Agencies - Third Party P,90076610,JEWISH CARE,"2,415.28",14/05/2018
Delivery Units,Adults and Communities,Other Agencies - Third Party P,90076612,JEWISH CARE,"2,218.68",14/05/2018
Delivery Units,Adults and Communities,Other Agencies - Third Party P,90076614,JEWISH CARE,"2,415.28",14/05/2018
Delivery Units,Adults and Communities,Other Agencies - Third Party P,90076615,JEWISH CARE,"2,415.28",14/05/2018
Delivery Units,Adults and Communities,Other Agencies - Third Party P,90076727,JEWISH CARE," 2,415.28 ",14/05/2018
Delivery Units,Adults and Communities,Other Agencies - Third Party P,90079271,KARUNA MANOR,"4,207.14",23/05/2018
Delivery Units,Adults and Communities,Other Agencies - Third Party P,90079272,KARUNA MANOR," 4,114.14 ",23/05/2018
Delivery Units,Adults and Communities,Other Agencies - Third Party P,90079273,KARUNA MANOR,"3,985.71",23/05/2018
Delivery Units,Adults and Communities,Other Agencies - Third Party P,90079602,LEEMING BAR CARE HOME,451.13,24/05/2018
Delivery Units,Adults and Communities,Other Agencies - Third Party P,90081148,LEWIS.W.HAMMERSON MEMORIAL HOME," 2,387.35 ",30/05/2018
Delivery Units,Adults and Communities,Other Agencies - Third Party P,90081149,LEWIS.W.HAMMERSON MEMORIAL HOME," 2,387.35 ",30/05/2018
Delivery Units,Adults and Communities,Other Agencies - Third Party P,90081151,LEWIS.W.HAMMERSON MEMORIAL HOME," 2,387.35 ",30/05/2018
Delivery Units,Adults and Communities,Other Agencies - Third Party P,90079007,MADELAYNE COURT," 2,216.41 ",22/05/2018
Delivery Units,Adults and Communities,Other Agencies - Third Party P,90076465,METHODIST HOMES FOR THE AGED," 2,631.76 ",14/05/2018
Delivery Units,Adults and Communities,Other Agencies - Third Party P,90076466,METHODIST HOMES FOR THE AGED," 2,631.76 ",14/05/2018
Delivery Units,Adults and Communities,Other Agencies - Third Party P,90076467,METHODIST HOMES FOR THE AGED," 2,631.76 ",14/05/2018
Delivery Units,Adults and Communities,Other Agencies - Third Party P,90078536,NAZARETH HOUSE," 2,080.00 ",21/05/2018
Delivery Units,Adults and Communities,Other Agencies - Third Party P,90078537,NAZARETH HOUSE,"2,080.00",21/05/2018
Delivery Units,Adults and Communities,Other Agencies - Third Party P,90078538,NAZARETH HOUSE," 2,031.76 ",21/05/2018
Delivery Units,Adults and Communities,Other Agencies - Third Party P,90078539,NAZARETH HOUSE," 2,031.76 ",21/05/2018
Delivery Units,Adults and Communities,Other Agencies - Third Party P,90078540,NAZARETH HOUSE,"2,031.76",21/05/2018
Delivery Units,Adults and Communities,Other Agencies - Third Party P,90078541,NAZARETH HOUSE," 2,031.76 ",21/05/2018
Delivery Units,Adults and Communities,Other Agencies - Third Party P,90078542,NAZARETH HOUSE," 2,211.80 ",21/05/2018
Delivery Units,Adults and Communities,Other Agencies - Third Party P,90078543,NAZARETH HOUSE," 2,031.76 ",21/05/2018
Delivery Units,Adults and Communities,Other Agencies - Third Party P,90078544,NAZARETH HOUSE," 2,211.80 ",21/05/2018
Delivery Units,Adults and Communities,Other Agencies - Third Party P,90078545,NAZARETH HOUSE," 2,031.76 ",21/05/2018
Delivery Units,Adults and Communities,Other Agencies - Third Party P,90078546,NAZARETH HOUSE,"2,211.80",21/05/2018
Delivery Units,Adults and Communities,Other Agencies - Third Party P,90078547,NAZARETH HOUSE,"2,650.40",21/05/2018
Delivery Units,Adults and Communities,Other Agencies - Third Party P,90078549,NAZARETH HOUSE,"2,080.00",21/05/2018
Delivery Units,Adults and Communities,Other Agencies - Third Party P,90078550,NAZARETH HOUSE," 2,031.76 ",21/05/2018
Delivery Units,Adults and Communities,Other Agencies - Third Party P,90078551,NAZARETH HOUSE,"2,211.80",21/05/2018
Delivery Units,Adults and Communities,Other Agencies - Third Party P,90078552,NAZARETH HOUSE,"2,031.76",21/05/2018
Delivery Units,Adults and Communities,Other Agencies - Third Party P,90078553,NAZARETH HOUSE,"2,031.76",21/05/2018
Delivery Units,Adults and Communities,Other Agencies - Third Party P,90078554,NAZARETH HOUSE," 2,031.76 ",21/05/2018
Delivery Units,Adults and Communities,Other Agencies - Third Party P,90078555,NAZARETH HOUSE," 2,260.00 ",21/05/2018
Delivery Units,Adults and Communities,Other Agencies - Third Party P,90078556,NAZARETH HOUSE,"2,080.00",21/05/2018
Delivery Units,Adults and Communities,Other Agencies - Third Party P,90078557,NAZARETH HOUSE," 2,031.76 ",21/05/2018
Delivery Units,Adults and Communities,Other Agencies - Third Party P,90077978,QUANTUM CARE LIMITED,"4,071.43",17/05/2018
Delivery Units,Adults and Communities,Other Agencies - Third Party P,90077983,QUANTUM CARE LIMITED," 4,207.14 ",17/05/2018
Delivery Units,Adults and Communities,Other Agencies - Third Party P,90076714,SAGE NURSING HOME," 1,596.38 ",14/05/2018
Delivery Units,Adults and Communities,Other Agencies - Third Party P,90076716,SAGE NURSING HOME," 1,885.71 ",14/05/2018
Delivery Units,Adults and Communities,Other Agencies - Third Party P,90079284,SAGE NURSING HOME,580.50,23/05/2018
Delivery Units,Adults and Communities,Other Agencies - Third Party P,90079286,SAGE NURSING HOME, 685.71 ,23/05/2018
Delivery Units,Adults and Communities,Other Agencies - Third Party P,90077772,SCIMITAR CARE HOTELS PLC," 3,985.71 ",30/05/2018
Delivery Units,Adults and Communities,Other Agencies - Third Party P,90077773,SCIMITAR CARE HOTELS PLC," 3,421.07 ",30/05/2018
Delivery Units,Adults and Communities,Other Agencies - Third Party P,90077774,SCIMITAR CARE HOTELS PLC," 4,207.14 ",30/05/2018
Delivery Units,Adults and Communities,Other Agencies - Third Party P,90077769,THE CHRISTIAN CARE TRUST,"2,240.20",17/05/2018
Delivery Units,Adults and Communities,Other Agencies - Third Party P,90075058,THE LIMES RESIDENTIAL HOME," 2,249.45 ",01/05/2018
Delivery Units,Adults and Communities,Other Agencies - Third Party P,90075077,THE LIMES RESIDENTIAL HOME, 891.43 ,03/05/2018
Delivery Units,Adults and Communities,Other Agencies - Third Party P,90079309,THE LIMES RESIDENTIAL HOME,"2,448.78",24/05/2018
Delivery Units,Adults and Communities,Other Agencies - Third Party P,90079310,THE LIMES RESIDENTIAL HOME," 2,448.78 ",24/05/2018
Delivery Units,Adults and Communities,Other Agencies - Third Party P,90079311,THE LIMES RESIDENTIAL HOME," 2,249.45 ",24/05/2018
Delivery Units,Adults and Communities,Other Agencies - Third Party P,90079312,THE LIMES RESIDENTIAL HOME," 2,249.45 ",24/05/2018
Delivery Units,Adults and Communities,Other Agencies - Third Party P,90079314,THE LIMES RESIDENTIAL HOME," 2,448.78 ",24/05/2018
Delivery Units,Adults and Communities,Other Agencies - Third Party P,90079315,THE LIMES RESIDENTIAL HOME,"2,249.45",24/05/2018
Delivery Units,Adults and Communities,Other Agencies - Third Party P,90079316,THE LIMES RESIDENTIAL HOME," 2,448.78 ",24/05/2018
Delivery Units,Adults and Communities,Other Agencies - Third Party P,90079317,THE LIMES RESIDENTIAL HOME,"2,448.78",24/05/2018
Delivery Units,Adults and Communities,Other Agencies - Third Party P,90079318,THE LIMES RESIDENTIAL HOME,"2,448.78",24/05/2018
Delivery Units,Adults and Communities,Other Agencies - Third Party P,90079320,THE LIMES RESIDENTIAL HOME, 217.69 ,24/05/2018
Delivery Units,Adults and Communities,Other Agencies - Third Party P,90079321,THE LIMES RESIDENTIAL HOME,"2,448.78",24/05/2018
Delivery Units,Adults and Communities,Other Agencies - Third Party P,90079322,THE LIMES RESIDENTIAL HOME," 2,785.71 ",24/05/2018
Delivery Units,Adults and Communities,Other Agencies - Third Party P,90079324,THE LIMES RESIDENTIAL HOME," 1,560.00 ",24/05/2018
Delivery Units,Adults and Communities,Other Agencies - Third Party P,90079325,THE LIMES RESIDENTIAL HOME," 2,302.86 ",24/05/2018
Delivery Units,Adults and Communities,Other Agencies - Third Party P,90079326,THE LIMES RESIDENTIAL HOME,"2,228.57",24/05/2018
Delivery Units,Adults and Communities,Other Agencies - Third Party P,90079327,THE LIMES RESIDENTIAL HOME," 2,302.86 ",24/05/2018
Delivery Units,Adults and Communities,Other Agencies - Third Party P,90079330,THE LIMES RESIDENTIAL HOME,"2,448.78",24/05/2018
Delivery Units,Adults and Communities,Other Agencies - Third Party P,90076452,THE WINDMILL CARE HOME,"1,872.40",14/05/2018
Delivery Units,Adults and Communities,Other Agencies - Third Party P,90078919,THE WOODSIDE HOME,"2,092.72",21/05/2018
Delivery Units,Adults and Communities,Other Agencies - Third Party P,90078920,THE WOODSIDE HOME," 2,092.72 ",21/05/2018
Delivery Units,Adults and Communities,Other Agencies - Third Party P,90078922,THE WOODSIDE HOME,"2,278.16",21/05/2018
Delivery Units,Adults and Communities,Other Agencies - Third Party P,90078923,THE WOODSIDE HOME,"2,278.16",21/05/2018
Delivery Units,Adults and Communities,Other Agencies - Third Party P,90078924,THE WOODSIDE HOME,"2,092.72",21/05/2018
Delivery Units,Adults and Communities,Other Agencies - Third Party P,90078925,THE WOODSIDE HOME," 2,092.72 ",21/05/2018
Delivery Units,Adults and Communities,Other Agencies - Third Party P,90078926,THE WOODSIDE HOME," 2,278.16 ",21/05/2018
Delivery Units,Adults and Communities,Other Agencies - Third Party P,90077984,VENTRY RESIDENTIAL CARE LTD," 1,049.29 ",17/05/2018
Delivery Units,Adults and Communities,Other Agencies - Third Party P,90074357,WESTMINSTER HEALTH CARE LTD,"2,569.89",03/05/2018
Delivery Units,Adults and Communities,Other Agencies - Third Party P,90074359,WESTMINSTER HEALTH CARE LTD," 14,484.86 ",03/05/2018
Delivery Units,Adults and Communities,Other Agencies - Third Party P,90077825,WILTON HOUSE LTD,"2,621.01",17/05/2018
Delivery Units,Adults and Communities,Other Agencies - Third Party P,90079621,WILTON HOUSE LTD, 758.17 ,24/05/2018
Delivery Units,Adults and Communities,Other Agencies - Third Party P,90079622,WILTON HOUSE LTD,"2,527.24",24/05/2018
Delivery Units,Adults and Communities,Other Agencies - Third Party P,90079623,WILTON HOUSE LTD," 2,611.48 ",24/05/2018
Delivery Units,Adults and Communities,Other Agencies - Third Party P,90079305,YORK HOMES (DORSET) LTD,"2,600.00",23/05/2018
Delivery Units,Adults and Communities,Other Agencies - Third Party P,90079323,Z & M CARE LTD," 2,322.40 ",23/05/2018
Delivery Units,Adults and Communities,Other Agencies - Third Party P,90078910,SUNRIDGE HOUSING ASSOCIATION LTD,"2,989.58",21/05/2018
Delivery Units,Adults and Communities,Other Agencies - Third Party P,90078911,SUNRIDGE HOUSING ASSOCIATION LTD," 2,902.40 ",21/05/2018
Delivery Units,Adults and Communities,Other Agencies - Third Party P,90078558,THE GRANGE,"2,300.28",21/05/2018
Delivery Units,Adults and Communities,Other Agencies - Third Party P,90078560,THE GRANGE,"2,260.00",21/05/2018
Delivery Units,Adults and Communities,Other Agencies - Third Party P,90075106,LIVABILITY,"2,400.00",01/05/2018
Delivery Units,Adults and Communities,Other Agencies - Third Party P,90078598,LIVABILITY," 2,400.00 ",21/05/2018
Delivery Units,Adults and Communities,Other Agencies - Third Party P,90076878,R.M.B.I,"2,031.68",11/05/2018
Delivery Units,Adults and Communities,Other Agencies - Third Party P,90077666,AUTUMN GARDENS,"3,160.00",15/05/2018
Delivery Units,Adults and Communities,Other Agencies - Third Party P,90077988,AUTUMN GARDENS,"2,880.00",17/05/2018
Delivery Units,Adults and Communities,Other Agencies - Third Party P,90079003,AUTUMN GARDENS,"3,160.00",24/05/2018
Delivery Units,Adults and Communities,Other Agencies - Third Party P,90079004,AUTUMN GARDENS," 2,880.00 ",24/05/2018
Delivery Units,Adults and Communities,Other Agencies - Third Party P,90079255,CARLTON COURT (TLC GROUP)," 2,249.45 ",23/05/2018
Delivery Units,Adults and Communities,Other Agencies - Third Party P,90077989,CATHERINE LODGE," 6,240.00 ",17/05/2018
Delivery Units,Adults and Communities,Other Agencies - Third Party P,90078562,CATHERINE LODGE," 2,211.80 ",21/05/2018
Delivery Units,Adults and Communities,Other Agencies - Third Party P,90078563,CATHERINE LODGE," 4,660.58 ",21/05/2018
Delivery Units,Adults and Communities,Other Agencies - Third Party P,90078564,CATHERINE LODGE,"3,365.71",21/05/2018
Delivery Units,Adults and Communities,Other Agencies - Third Party P,90079294,DR FRENCH MEMORIAL HOME LTD,"2,369.79",24/05/2018
Delivery Units,Adults and Communities,Other Agencies - Third Party P,90079295,DR FRENCH MEMORIAL HOME LTD," 3,428.57 ",24/05/2018
Delivery Units,Adults and Communities,Other Agencies - Third Party P,90079296,DR FRENCH MEMORIAL HOME LTD,"3,428.57",24/05/2018
Delivery Units,Adults and Communities,Other Agencies - Third Party P,90079297,DR FRENCH MEMORIAL HOME LTD,"3,428.57",24/05/2018
Delivery Units,Adults and Communities,Other Agencies - Third Party P,90079298,DR FRENCH MEMORIAL HOME LTD,"3,200.00",24/05/2018
Delivery Units,Adults and Communities,Other Agencies - Third Party P,90079299,DR FRENCH MEMORIAL HOME LTD,"3,542.86",24/05/2018
Delivery Units,Adults and Communities,Other Agencies - Third Party P,90079300,DR FRENCH MEMORIAL HOME LTD," 3,428.57 ",24/05/2018
Delivery Units,Adults and Communities,Other Agencies - Third Party P,90079301,DR FRENCH MEMORIAL HOME LTD," 3,542.86 ",24/05/2018
Delivery Units,Adults and Communities,Other Agencies - Third Party P,90079302,DR FRENCH MEMORIAL HOME LTD," 3,542.86 ",24/05/2018
Delivery Units,Adults and Communities,Other Agencies - Third Party P,90079303,DR FRENCH MEMORIAL HOME LTD," 3,542.86 ",24/05/2018
Delivery Units,Adults and Communities,Other Agencies - Third Party P,90079304,DR FRENCH MEMORIAL HOME LTD," 3,542.86 ",24/05/2018
Delivery Units,Adults and Communities,Other Agencies - Third Party P,90079306,DR FRENCH MEMORIAL HOME LTD,"2,448.78",24/05/2018
Delivery Units,Adults and Communities,Other Agencies - Third Party P,90070613,FINBOND LIMITED,"(2,400.00)",17/05/2018
Delivery Units,Adults and Communities,Other Agencies - Third Party P,90070614,FINBOND LIMITED,"-2,657.14 ",17/05/2018
Delivery Units,Adults and Communities,Other Agencies - Third Party P,90070615,FINBOND LIMITED,"-2,571.43 ",17/05/2018
Delivery Units,Adults and Communities,Other Agencies - Third Party P,90076865,FINBOND LIMITED," 3,542.86 ",17/05/2018
Delivery Units,Adults and Communities,Other Agencies - Third Party P,90077814,FINBOND LIMITED," 2,435.71 ",17/05/2018
Delivery Units,Adults and Communities,Other Agencies - Third Party P,90075763,GCH (NORTH LONDON) T/A THE TUDORS," 2,300.00 ",08/05/2018
Delivery Units,Adults and Communities,Other Agencies - Third Party P,90076449,GCH (NORTH LONDON) T/A THE TUDORS," 2,300.00 ",14/05/2018
Delivery Units,Adults and Communities,Other Agencies - Third Party P,90076469,ROSEACRES CARE HOME LIMITED," 3,214.29 ",14/05/2018
Delivery Units,Adults and Communities,Other Agencies - Third Party P,90076470,ROSEACRES CARE HOME LIMITED," 2,369.79 ",14/05/2018
Delivery Units,Adults and Communities,Other Agencies - Third Party P,90076472,ROSEACRES CARE HOME LIMITED," 2,460.17 ",14/05/2018
Delivery Units,Adults and Communities,Other Agencies - Third Party P,90076473,ROSEACRES CARE HOME LIMITED," 3,214.29 ",14/05/2018
Delivery Units,Adults and Communities,Other Agencies - Third Party P,90076474,ROSEACRES CARE HOME LIMITED," 3,214.29 ",14/05/2018
Delivery Units,Adults and Communities,Other Agencies - Third Party P,90076476,ROSEACRES CARE HOME LIMITED," 2,988.53 ",14/05/2018
Delivery Units,Adults and Communities,Other Agencies - Third Party P,90076478,ROSEACRES CARE HOME LIMITED,"2,460.30",14/05/2018
Delivery Units,Adults and Communities,Other Agencies - Third Party P,90076479,ROSEACRES CARE HOME LIMITED," 3,214.29 ",14/05/2018
Delivery Units,Adults and Communities,Other Agencies - Third Party P,90076481,ROSEACRES CARE HOME LIMITED,"3,214.29",14/05/2018
Delivery Units,Adults and Communities,Other Agencies - Third Party P,90076482,ROSEACRES CARE HOME LIMITED,"2,460.30",14/05/2018
Delivery Units,Adults and Communities,Other Agencies - Third Party P,90076483,ROSEACRES CARE HOME LIMITED," 2,460.30 ",14/05/2018
Delivery Units,Adults and Communities,Other Agencies - Third Party P,90076486,ROSEACRES CARE HOME LIMITED," 2,260.03 ",14/05/2018
Delivery Units,Adults and Communities,Other Agencies - Third Party P,90076487,ROSEACRES CARE HOME LIMITED,"2,460.30",14/05/2018
Delivery Units,Adults and Communities,Other Agencies - Third Party P,90076488,ROSEACRES CARE HOME LIMITED,"2,460.30",14/05/2018
Delivery Units,Adults and Communities,Other Agencies - Third Party P,90076082,SAFFRONS RESIDENTIAL CARE HOME,"3,562.85",15/05/2018
Delivery Units,Adults and Communities,Other Agencies - Third Party P,90076914,SPRINGDENE, 214.29 ,14/05/2018
Delivery Units,Adults and Communities,Other Agencies - Third Party P,90076913,SPRINGVIEW,"3,000.00",14/05/2018
Delivery Units,Adults and Communities,Other Agencies - Third Party P,90079332,SWANBOROUGH HOUSE,"3,722.44",23/05/2018
Delivery Units,Adults and Communities,Other Agencies - Third Party P,90079333,SWANBOROUGH HOUSE,"3,722.44",23/05/2018
Delivery Units,Adults and Communities,Other Agencies - Third Party P,90079334,SWANBOROUGH HOUSE,"3,722.44",23/05/2018
Delivery Units,Adults and Communities,Other Agencies - Third Party P,90078951,SYDMAR LODGE,"2,420.30",21/05/2018
Delivery Units,Adults and Communities,Other Agencies - Third Party P,90078952,SYDMAR LODGE,"2,456.40",21/05/2018
Delivery Units,Adults and Communities,Other Agencies - Third Party P,90078953,SYDMAR LODGE," 2,456.40 ",21/05/2018
Delivery Units,Adults and Communities,Other Agencies - Third Party P,90078954,SYDMAR LODGE," 2,456.40 ",21/05/2018
Delivery Units,Adults and Communities,Other Agencies - Third Party P,90078955,SYDMAR LODGE," 3,143.40 ",21/05/2018
Delivery Units,Adults and Communities,Other Agencies - Third Party P,90078956,SYDMAR LODGE,"2,455.95",21/05/2018
Delivery Units,Adults and Communities,Other Agencies - Third Party P,90077797,TENTERDEN HOUSE,"3,957.50",17/05/2018
Delivery Units,Adults and Communities,Other Agencies - Third Party P,90081112,TENTERDEN HOUSE," 3,957.50 ",30/05/2018
Delivery Units,Adults and Communities,Direct Transfer Payments to So,90074934,WIRECARD - ADULT SERVICES,480.80,01/05/2018
Delivery Units,Adults and Communities,Direct Transfer Payments to So,90080668,WIRECARD - ADULT SERVICES, 280.00 ,30/05/2018
Delivery Units,Adults and Communities,Direct Transfer Payments to So,90079877,WIRECARD - ADULT SERVICES,462.00,25/05/2018
Delivery Units,Adults and Communities,Direct Transfer Payments to So,90080274,WIRECARD - ADULT SERVICES," 10,584.00 ",25/05/2018
Delivery Units,Adults and Communities,Direct Transfer Payments to So,90080797,WIRECARD - ADULT SERVICES, 209.21 ,30/05/2018
Delivery Units,Adults and Communities,Direct Transfer Payments to So,90080270,WIRECARD - ADULT SERVICES," 1,118.64 ",25/05/2018
Delivery Units,Adults and Communities,Direct Transfer Payments to So,90080518,REDACTED - PERSONAL DATA, 420.72 ,25/05/2018
Delivery Units,Adults and Communities,Direct Transfer Payments to So,90080500,REDACTED - PERSONAL DATA,420.72,25/05/2018
Delivery Units,Adults and Communities,Direct Transfer Payments to So,90080799,REDACTED - PERSONAL DATA, 781.32 ,30/05/2018
Delivery Units,Adults and Communities,Direct Transfer Payments to So,90080283,REDACTED - PERSONAL DATA, 576.00 ,25/05/2018
Delivery Units,Adults and Communities,Direct Transfer Payments to So,90080391,REDACTED - PERSONAL DATA," 1,174.83 ",25/05/2018
Delivery Units,Adults and Communities,Direct Transfer Payments to So,90079888,REDACTED - PERSONAL DATA,360.60,25/05/2018
Delivery Units,Adults and Communities,Direct Transfer Payments to So,90080467,REDACTED - PERSONAL DATA,"2,298.44",25/05/2018
Delivery Units,Adults and Communities,Direct Transfer Payments to So,90074974,REDACTED - PERSONAL DATA, 697.80 ,01/05/2018
Delivery Units,Adults and Communities,Direct Transfer Payments to So,90080711,REDACTED - PERSONAL DATA, 239.25 ,30/05/2018
Delivery Units,Adults and Communities,Direct Transfer Payments to So,90075014,REDACTED - PERSONAL DATA,348.00,01/05/2018
Delivery Units,Adults and Communities,Direct Transfer Payments to So,90080738,REDACTED - PERSONAL DATA,347.20,30/05/2018
Delivery Units,Adults and Communities,Direct Transfer Payments to So,90074843,REDACTED - PERSONAL DATA, 837.68 ,01/05/2018
Delivery Units,Adults and Communities,Direct Transfer Payments to So,90080721,REDACTED - PERSONAL DATA, 280.00 ,30/05/2018
Delivery Units,Adults and Communities,Direct Transfer Payments to So,90080409,REDACTED - PERSONAL DATA,"1,560.72",25/05/2018
Delivery Units,Adults and Communities,Direct Transfer Payments to So,90076730,REDACTED - PERSONAL DATA,"1,560.72",14/05/2018
Delivery Units,Adults and Communities,Direct Transfer Payments to So,90076367,REDACTED - PERSONAL DATA, 160.00 ,25/05/2018
Delivery Units,Adults and Communities,Direct Transfer Payments to So,90080219,REDACTED - PERSONAL DATA,160.00,25/05/2018
Delivery Units,Adults and Communities,Direct Transfer Payments to So,90075037,REDACTED - PERSONAL DATA," 1,185.32 ",01/05/2018
Delivery Units,Adults and Communities,Direct Transfer Payments to So,90080608,REDACTED - PERSONAL DATA,"1,185.32",30/05/2018
Delivery Units,Adults and Communities,Direct Transfer Payments to So,90074888,REDACTED - PERSONAL DATA,"1,005.12",01/05/2018
Delivery Units,Adults and Communities,Direct Transfer Payments to So,90080279,REDACTED - PERSONAL DATA," 1,058.74 ",25/05/2018
Delivery Units,Adults and Communities,Direct Transfer Payments to So,90075026,REDACTED - PERSONAL DATA,(306.77),01/05/2018
Delivery Units,Adults and Communities,Direct Transfer Payments to So,90080597,REDACTED - PERSONAL DATA," 1,000.00 ",30/05/2018
Delivery Units,Adults and Communities,Direct Transfer Payments to So,90075030,REDACTED - PERSONAL DATA, 825.44 ,01/05/2018
Delivery Units,Adults and Communities,Direct Transfer Payments to So,90080601,REDACTED - PERSONAL DATA, 825.44 ,30/05/2018
Delivery Units,Adults and Communities,Direct Transfer Payments to So,90080305,REDACTED - PERSONAL DATA,975.36,25/05/2018
Delivery Units,Adults and Communities,Direct Transfer Payments to So,90080203,REDACTED - PERSONAL DATA,975.36,25/05/2018
Delivery Units,Adults and Communities,Direct Transfer Payments to So,90080440,REDACTED - PERSONAL DATA,"1,346.24",25/05/2018
Delivery Units,Adults and Communities,Direct Transfer Payments to So,90080419,REDACTED - PERSONAL DATA," 1,346.24 ",25/05/2018
Delivery Units,Adults and Communities,Direct Transfer Payments to So,90076362,REDACTED - PERSONAL DATA, 451.92 ,14/05/2018
Delivery Units,Adults and Communities,Direct Transfer Payments to So,90080477,REDACTED - PERSONAL DATA, 451.92 ,25/05/2018
Delivery Units,Adults and Communities,Direct Transfer Payments to So,90080208,REDACTED - PERSONAL DATA, 144.24 ,25/05/2018
Delivery Units,Adults and Communities,Direct Transfer Payments to So,90074800,REDACTED - PERSONAL DATA, 961.60 ,01/05/2018
Delivery Units,Adults and Communities,Direct Transfer Payments to So,90080584,REDACTED - PERSONAL DATA, 160.00 ,30/05/2018
Delivery Units,Adults and Communities,Direct Transfer Payments to So,90075013,REDACTED - PERSONAL DATA,440.00,01/05/2018
Delivery Units,Adults and Communities,Direct Transfer Payments to So,90075110,REDACTED - PERSONAL DATA,473.92,01/05/2018
Delivery Units,Adults and Communities,Direct Transfer Payments to So,90074809,REDACTED - PERSONAL DATA, 442.88 ,01/05/2018
Delivery Units,Adults and Communities,Direct Transfer Payments to So,90080592,REDACTED - PERSONAL DATA,985.64,30/05/2018
Delivery Units,Adults and Communities,Direct Transfer Payments to So,90080358,REDACTED - PERSONAL DATA,589.00,25/05/2018
Delivery Units,Adults and Communities,Direct Transfer Payments to So,90079836,REDACTED - PERSONAL DATA,589.00,25/05/2018
Delivery Units,Adults and Communities,Direct Transfer Payments to So,90074856,REDACTED - PERSONAL DATA, 917.80 ,01/05/2018
Delivery Units,Adults and Communities,Direct Transfer Payments to So,90080335,REDACTED - PERSONAL DATA, 917.80 ,25/05/2018
Delivery Units,Adults and Communities,Direct Transfer Payments to So,90074830,REDACTED - PERSONAL DATA, 202.20 ,01/05/2018
Delivery Units,Adults and Communities,Direct Transfer Payments to So,90080554,REDACTED - PERSONAL DATA, 202.20 ,30/05/2018
Delivery Units,Adults and Communities,Direct Transfer Payments to So,90075031,REDACTED - PERSONAL DATA,"1,525.44",01/05/2018
Delivery Units,Adults and Communities,Direct Transfer Payments to So,90080602,REDACTED - PERSONAL DATA,295.68,30/05/2018
Delivery Units,Adults and Communities,Direct Transfer Payments to So,90081042,REDACTED - PERSONAL DATA, 801.00 ,30/05/2018
Delivery Units,Adults and Communities,Direct Transfer Payments to So,90079902,REDACTED - PERSONAL DATA, 801.00 ,25/05/2018
Delivery Units,Adults and Communities,Direct Transfer Payments to So,90075033,REDACTED - PERSONAL DATA,456.76,01/05/2018
Delivery Units,Adults and Communities,Direct Transfer Payments to So,90080604,REDACTED - PERSONAL DATA,456.76,30/05/2018
Delivery Units,Adults and Communities,Direct Transfer Payments to So,90080356,REDACTED - PERSONAL DATA,"4,093.84",25/05/2018
Delivery Units,Adults and Communities,Direct Transfer Payments to So,90074948,REDACTED - PERSONAL DATA," 4,093.84 ",01/05/2018
Delivery Units,Adults and Communities,Direct Transfer Payments to So,90080682,REDACTED - PERSONAL DATA,"2,180.00",30/05/2018
Delivery Units,Adults and Communities,Direct Transfer Payments to So,90075050,REDACTED - PERSONAL DATA, 687.12 ,01/05/2018
Delivery Units,Adults and Communities,Direct Transfer Payments to So,90080765,REDACTED - PERSONAL DATA, 347.20 ,30/05/2018
Delivery Units,Adults and Communities,Direct Transfer Payments to So,90074861,REDACTED - PERSONAL DATA, 347.20 ,01/05/2018
Delivery Units,Adults and Communities,Direct Transfer Payments to So,90080737,REDACTED - PERSONAL DATA, 240.00 ,30/05/2018
Delivery Units,Adults and Communities,Direct Transfer Payments to So,90079900,REDACTED - PERSONAL DATA,775.04,25/05/2018
Delivery Units,Adults and Communities,Direct Transfer Payments to So,90080981,REDACTED - PERSONAL DATA, 775.04 ,30/05/2018
Delivery Units,Adults and Communities,Direct Transfer Payments to So,90075132,REDACTED - PERSONAL DATA," 1,300.24 ",01/05/2018
Delivery Units,Adults and Communities,Direct Transfer Payments to So,90075133,REDACTED - PERSONAL DATA,"1,300.24",01/05/2018
Delivery Units,Adults and Communities,Direct Transfer Payments to So,90079803,REDACTED - PERSONAL DATA,"1,545.48",25/05/2018
Delivery Units,Adults and Communities,Direct Transfer Payments to So,90080489,REDACTED - PERSONAL DATA," 1,545.48 ",25/05/2018
Delivery Units,Adults and Communities,Direct Transfer Payments to So,90075304,REDACTED - PERSONAL DATA,"2,852.68",03/05/2018
Delivery Units,Adults and Communities,Direct Transfer Payments to So,90075306,REDACTED - PERSONAL DATA,"1,766.96",03/05/2018
Delivery Units,Adults and Communities,Direct Transfer Payments to So,90080508,REDACTED - PERSONAL DATA,"6,232.57",25/05/2018
Delivery Units,Adults and Communities,Direct Transfer Payments to So,90075005,REDACTED - PERSONAL DATA,30.62,01/05/2018
Delivery Units,Adults and Communities,Direct Transfer Payments to So,90080695,REDACTED - PERSONAL DATA,"1,248.16",30/05/2018
Delivery Units,Adults and Communities,Direct Transfer Payments to So,90074970,REDACTED - PERSONAL DATA," 1,346.24 ",01/05/2018
Delivery Units,Adults and Communities,Direct Transfer Payments to So,90076365,REDACTED - PERSONAL DATA,"3,517.02",14/05/2018
Delivery Units,Adults and Communities,Direct Transfer Payments to So,90080707,REDACTED - PERSONAL DATA,589.68,30/05/2018
Delivery Units,Adults and Communities,Direct Transfer Payments to So,90080458,REDACTED - PERSONAL DATA,589.68,25/05/2018
Delivery Units,Adults and Communities,Direct Transfer Payments to So,90080472,REDACTED - PERSONAL DATA, 889.48 ,25/05/2018
Delivery Units,Adults and Communities,Direct Transfer Payments to So,90074976,REDACTED - PERSONAL DATA, 889.48 ,01/05/2018
Delivery Units,Adults and Communities,Direct Transfer Payments to So,90080713,REDACTED - PERSONAL DATA, 470.40 ,30/05/2018
Delivery Units,Adults and Communities,Direct Transfer Payments to So,90080740,REDACTED - PERSONAL DATA, 160.83 ,30/05/2018
Delivery Units,Adults and Communities,Direct Transfer Payments to So,90074899,REDACTED - PERSONAL DATA,643.60,01/05/2018
Delivery Units,Adults and Communities,Direct Transfer Payments to So,90080663,REDACTED - PERSONAL DATA, 514.88 ,30/05/2018
Delivery Units,Adults and Communities,Direct Transfer Payments to So,90075020,REDACTED - PERSONAL DATA, 321.80 ,01/05/2018
Delivery Units,Adults and Communities,Direct Transfer Payments to So,90080702,REDACTED - PERSONAL DATA,136.00,30/05/2018
Delivery Units,Adults and Communities,Direct Transfer Payments to So,90080486,REDACTED - PERSONAL DATA, 136.00 ,25/05/2018
Delivery Units,Adults and Communities,Direct Transfer Payments to So,90075052,REDACTED - PERSONAL DATA," 2,258.20 ",01/05/2018
Delivery Units,Adults and Communities,Direct Transfer Payments to So,90080767,REDACTED - PERSONAL DATA,"1,035.24",30/05/2018
Delivery Units,Adults and Communities,Direct Transfer Payments to So,90080424,REDACTED - PERSONAL DATA," 1,035.24 ",25/05/2018
Delivery Units,Adults and Communities,Direct Transfer Payments to So,90080469,REDACTED - PERSONAL DATA, 390.00 ,25/05/2018
Delivery Units,Adults and Communities,Direct Transfer Payments to So,90080525,REDACTED - PERSONAL DATA,390.00,25/05/2018
Delivery Units,Adults and Communities,Direct Transfer Payments to So,90080448,REDACTED - PERSONAL DATA, 279.12 ,25/05/2018
Delivery Units,Adults and Communities,Direct Transfer Payments to So,90075012,REDACTED - PERSONAL DATA,901.04,01/05/2018
Delivery Units,Adults and Communities,Direct Transfer Payments to So,90080701,REDACTED - PERSONAL DATA,901.04,30/05/2018
Delivery Units,Adults and Communities,Direct Transfer Payments to So,90080428,REDACTED - PERSONAL DATA," 2,436.00 ",25/05/2018
Delivery Units,Adults and Communities,Direct Transfer Payments to So,90076361,REDACTED - PERSONAL DATA, 870.00 ,14/05/2018
Delivery Units,Adults and Communities,Direct Transfer Payments to So,90075045,REDACTED - PERSONAL DATA," 1,113.44 ",01/05/2018
Delivery Units,Adults and Communities,Direct Transfer Payments to So,90080692,REDACTED - PERSONAL DATA, 218.24 ,30/05/2018
Delivery Units,Adults and Communities,Direct Transfer Payments to So,90080480,REDACTED - PERSONAL DATA,"1,438.32",25/05/2018
Delivery Units,Adults and Communities,Direct Transfer Payments to So,90075010,REDACTED - PERSONAL DATA," 1,438.32 ",01/05/2018
Delivery Units,Adults and Communities,Direct Transfer Payments to So,90080699,REDACTED - PERSONAL DATA," 2,092.96 ",30/05/2018
Delivery Units,Adults and Communities,Direct Transfer Payments to So,90080426,REDACTED - PERSONAL DATA," 2,828.57 ",25/05/2018
Delivery Units,Adults and Communities,Direct Transfer Payments to So,90080375,REDACTED - PERSONAL DATA, 208.68 ,25/05/2018
Delivery Units,Adults and Communities,Direct Transfer Payments to So,90078611,REDACTED - PERSONAL DATA,208.68,21/05/2018
Delivery Units,Adults and Communities,Direct Transfer Payments to So,90080487,REDACTED - PERSONAL DATA,772.32,25/05/2018
Delivery Units,Adults and Communities,Direct Transfer Payments to So,90077584,REDACTED - PERSONAL DATA, 966.84 ,15/05/2018
Delivery Units,Adults and Communities,Direct Transfer Payments to So,90074878,REDACTED - PERSONAL DATA, 966.84 ,01/05/2018
Delivery Units,Adults and Communities,Direct Transfer Payments to So,90080641,REDACTED - PERSONAL DATA," 1,550.84 ",30/05/2018
Delivery Units,Adults and Communities,Direct Transfer Payments to So,90080418,REDACTED - PERSONAL DATA," 1,869.00 ",25/05/2018
Delivery Units,Adults and Communities,Direct Transfer Payments to So,90080504,REDACTED - PERSONAL DATA," 2,554.83 ",25/05/2018
Delivery Units,Adults and Communities,Direct Transfer Payments to So,90080806,REDACTED - PERSONAL DATA, 917.12 ,30/05/2018
Delivery Units,Adults and Communities,Direct Transfer Payments to So,90076360,REDACTED - PERSONAL DATA," 2,972.76 ",30/05/2018
Delivery Units,Adults and Communities,Direct Transfer Payments to So,90075002,REDACTED - PERSONAL DATA, 207.60 ,01/05/2018
Delivery Units,Adults and Communities,Direct Transfer Payments to So,90080694,REDACTED - PERSONAL DATA, 207.60 ,30/05/2018
Delivery Units,Adults and Communities,Direct Transfer Payments to So,90080526,REDACTED - PERSONAL DATA, 900.00 ,25/05/2018
Delivery Units,Adults and Communities,Direct Transfer Payments to So,90080355,REDACTED - PERSONAL DATA,473.60,25/05/2018
Delivery Units,Adults and Communities,Direct Transfer Payments to So,90075009,REDACTED - PERSONAL DATA, 381.60 ,01/05/2018
Delivery Units,Adults and Communities,Direct Transfer Payments to So,90080402,REDACTED - PERSONAL DATA,220.20,25/05/2018
Delivery Units,Adults and Communities,Direct Transfer Payments to So,90075003,REDACTED - PERSONAL DATA,775.04,01/05/2018
Delivery Units,Adults and Communities,Direct Transfer Payments to So,90081008,REDACTED - PERSONAL DATA, 775.04 ,30/05/2018
Delivery Units,Adults and Communities,Direct Transfer Payments to So,90074894,REDACTED - PERSONAL DATA,"1,164.24",01/05/2018
Delivery Units,Adults and Communities,Direct Transfer Payments to So,90080656,REDACTED - PERSONAL DATA, 563.16 ,30/05/2018
Delivery Units,Adults and Communities,Direct Transfer Payments to So,90074875,REDACTED - PERSONAL DATA,"3,113.60",01/05/2018
Delivery Units,Adults and Communities,Direct Transfer Payments to So,90080639,REDACTED - PERSONAL DATA,649.08,30/05/2018
Delivery Units,Adults and Communities,Direct Transfer Payments to So,90080243,REDACTED - PERSONAL DATA,392.00,25/05/2018
Delivery Units,Adults and Communities,Direct Transfer Payments to So,90080496,REDACTED - PERSONAL DATA, 392.00 ,25/05/2018
Delivery Units,Adults and Communities,Direct Transfer Payments to So,90076080,REDACTED - PERSONAL DATA," 1,312.64 ",08/05/2018
Delivery Units,Adults and Communities,Direct Transfer Payments to So,90080954,REDACTED - PERSONAL DATA," 1,312.64 ",30/05/2018
Delivery Units,Adults and Communities,Direct Transfer Payments to So,90080955,REDACTED - PERSONAL DATA, 504.00 ,30/05/2018
Delivery Units,Adults and Communities,Direct Transfer Payments to So,90080257,REDACTED - PERSONAL DATA,504.00,25/05/2018
Delivery Units,Adults and Communities,Direct Transfer Payments to So,90080432,REDACTED - PERSONAL DATA,480.80,25/05/2018
Delivery Units,Adults and Communities,Direct Transfer Payments to So,90080314,REDACTED - PERSONAL DATA," 1,802.08 ",25/05/2018
Delivery Units,Adults and Communities,Direct Transfer Payments to So,90080406,REDACTED - PERSONAL DATA," 3,197.56 ",25/05/2018
Delivery Units,Adults and Communities,Direct Transfer Payments to So,90074959,REDACTED - PERSONAL DATA,721.64,01/05/2018
Delivery Units,Adults and Communities,Direct Transfer Payments to So,90080368,REDACTED - PERSONAL DATA,"(2,234.11)",25/05/2018
Delivery Units,Adults and Communities,Direct Transfer Payments to So,90074975,REDACTED - PERSONAL DATA, 409.08 ,01/05/2018
Delivery Units,Adults and Communities,Direct Transfer Payments to So,90080712,REDACTED - PERSONAL DATA,"1,351.56",30/05/2018
Delivery Units,Adults and Communities,Direct Transfer Payments to So,90074986,REDACTED - PERSONAL DATA," 2,066.00 ",01/05/2018
Delivery Units,Adults and Communities,Direct Transfer Payments to So,90080747,REDACTED - PERSONAL DATA,968.80,30/05/2018
Delivery Units,Adults and Communities,Direct Transfer Payments to So,90074988,REDACTED - PERSONAL DATA,588.24,01/05/2018
Delivery Units,Adults and Communities,Direct Transfer Payments to So,90080748,REDACTED - PERSONAL DATA,588.24,30/05/2018
Delivery Units,Adults and Communities,Direct Transfer Payments to So,90079917,REDACTED - PERSONAL DATA," 2,518.48 ",25/05/2018
Delivery Units,Adults and Communities,Direct Transfer Payments to So,90081036,REDACTED - PERSONAL DATA," 2,518.48 ",30/05/2018
Delivery Units,Adults and Communities,Direct Transfer Payments to So,90075042,REDACTED - PERSONAL DATA,"2,211.80",01/05/2018
Delivery Units,Adults and Communities,Direct Transfer Payments to So,90080689,REDACTED - PERSONAL DATA,"2,211.80",30/05/2018
Delivery Units,Adults and Communities,Direct Transfer Payments to So,90080265,REDACTED - PERSONAL DATA," 1,582.00 ",25/05/2018
Delivery Units,Adults and Communities,Direct Transfer Payments to So,90080464,REDACTED - PERSONAL DATA,"1,582.00",25/05/2018
Delivery Units,Adults and Communities,Direct Transfer Payments to So,90080303,REDACTED - PERSONAL DATA," 1,514.52 ",25/05/2018
Delivery Units,Adults and Communities,Direct Transfer Payments to So,90079921,REDACTED - PERSONAL DATA, 193.08 ,25/05/2018
Delivery Units,Adults and Communities,Direct Transfer Payments to So,90080304,REDACTED - PERSONAL DATA, 944.40 ,25/05/2018
Delivery Units,Adults and Communities,Direct Transfer Payments to So,90078457,REDACTED - PERSONAL DATA,944.40,21/05/2018
Delivery Units,Adults and Communities,Direct Transfer Payments to So,90078462,REDACTED - PERSONAL DATA,"1,187.20",21/05/2018
Delivery Units,Adults and Communities,Direct Transfer Payments to So,90080492,REDACTED - PERSONAL DATA,"1,092.00",25/05/2018
Delivery Units,Adults and Communities,Direct Transfer Payments to So,90080520,REDACTED - PERSONAL DATA," 1,827.00 ",25/05/2018
Delivery Units,Adults and Communities,Direct Transfer Payments to So,90074954,REDACTED - PERSONAL DATA,"1,104.00",01/05/2018
Delivery Units,Adults and Communities,Direct Transfer Payments to So,90080753,REDACTED - PERSONAL DATA,917.28,30/05/2018
Delivery Units,Adults and Communities,Direct Transfer Payments to So,90075112,REDACTED - PERSONAL DATA," 1,871.79 ",01/05/2018
Delivery Units,Adults and Communities,Direct Transfer Payments to So,90080776,REDACTED - PERSONAL DATA," 1,367.67 ",30/05/2018
Delivery Units,Adults and Communities,Direct Transfer Payments to So,90080407,REDACTED - PERSONAL DATA,960.00,25/05/2018
Delivery Units,Adults and Communities,Direct Transfer Payments to So,90074926,REDACTED - PERSONAL DATA,333.84,01/05/2018
Delivery Units,Adults and Communities,Direct Transfer Payments to So,90080566,REDACTED - PERSONAL DATA, 926.68 ,30/05/2018
Delivery Units,Adults and Communities,Direct Transfer Payments to So,90080171,REDACTED - PERSONAL DATA,926.68,25/05/2018
Delivery Units,Adults and Communities,Direct Transfer Payments to So,90074973,REDACTED - PERSONAL DATA,"2,019.36",01/05/2018
Delivery Units,Adults and Communities,Direct Transfer Payments to So,90080710,REDACTED - PERSONAL DATA,"2,019.36",30/05/2018
Delivery Units,Adults and Communities,Direct Transfer Payments to So,90074960,REDACTED - PERSONAL DATA,700.00,01/05/2018
Delivery Units,Adults and Communities,Direct Transfer Payments to So,90080369,REDACTED - PERSONAL DATA,"1,238.92",25/05/2018
Delivery Units,Adults and Communities,Direct Transfer Payments to So,90079805,REDACTED - PERSONAL DATA," 1,238.92 ",25/05/2018
Delivery Units,Adults and Communities,Direct Transfer Payments to So,90080491,REDACTED - PERSONAL DATA,"2,005.04",25/05/2018
Delivery Units,Adults and Communities,Direct Transfer Payments to So,90080228,REDACTED - PERSONAL DATA," 2,200.00 ",25/05/2018
Delivery Units,Adults and Communities,Direct Transfer Payments to So,90078461,REDACTED - PERSONAL DATA,"2,200.00",21/05/2018
Delivery Units,Adults and Communities,Direct Transfer Payments to So,90074939,REDACTED - PERSONAL DATA," 3,444.00 ",01/05/2018
Delivery Units,Adults and Communities,Direct Transfer Payments to So,90080673,REDACTED - PERSONAL DATA,"3,444.00",30/05/2018
Delivery Units,Adults and Communities,Direct Transfer Payments to So,90079910,REDACTED - PERSONAL DATA,732.64,25/05/2018
Delivery Units,Adults and Communities,Direct Transfer Payments to So,90074820,REDACTED - PERSONAL DATA," 3,173.00 ",01/05/2018
Delivery Units,Adults and Communities,Direct Transfer Payments to So,90080546,REDACTED - PERSONAL DATA,700.00,30/05/2018
Delivery Units,Adults and Communities,Direct Transfer Payments to So,90080288,REDACTED - PERSONAL DATA, 541.37 ,25/05/2018
Delivery Units,Adults and Communities,Direct Transfer Payments to So,90074982,REDACTED - PERSONAL DATA,"2,031.88",01/05/2018
Delivery Units,Adults and Communities,Direct Transfer Payments to So,90080744,REDACTED - PERSONAL DATA,"2,031.88",30/05/2018
Delivery Units,Adults and Communities,Direct Transfer Payments to So,90074826,REDACTED - PERSONAL DATA,"2,931.20",01/05/2018
Delivery Units,Adults and Communities,Direct Transfer Payments to So,90080552,REDACTED - PERSONAL DATA, 925.40 ,30/05/2018
Delivery Units,Adults and Communities,Direct Transfer Payments to So,90080749,REDACTED - PERSONAL DATA, 925.40 ,30/05/2018
Delivery Units,Adults and Communities,Direct Transfer Payments to So,90079808,REDACTED - PERSONAL DATA,770.40,25/05/2018
Delivery Units,Adults and Communities,Direct Transfer Payments to So,90075006,REDACTED - PERSONAL DATA," 2,686.00 ",01/05/2018
Delivery Units,Adults and Communities,Direct Transfer Payments to So,90080696,REDACTED - PERSONAL DATA,"2,686.00",30/05/2018
Delivery Units,Adults and Communities,Direct Transfer Payments to So,90080183,REDACTED - PERSONAL DATA,502.40,25/05/2018
Delivery Units,Adults and Communities,Direct Transfer Payments to So,90079879,REDACTED - PERSONAL DATA,502.40,25/05/2018
Delivery Units,Adults and Communities,Direct Transfer Payments to So,90079893,REDACTED - PERSONAL DATA," 2,520.00 ",25/05/2018
Delivery Units,Adults and Communities,Direct Transfer Payments to So,90080435,REDACTED - PERSONAL DATA, 913.52 ,25/05/2018
Delivery Units,Adults and Communities,Direct Transfer Payments to So,90075029,REDACTED - PERSONAL DATA, 231.40 ,01/05/2018
Delivery Units,Adults and Communities,Direct Transfer Payments to So,90080600,REDACTED - PERSONAL DATA, 231.40 ,30/05/2018
Delivery Units,Adults and Communities,Direct Transfer Payments to So,90080443,REDACTED - PERSONAL DATA,"1,730.88",25/05/2018
Delivery Units,Adults and Communities,Direct Transfer Payments to So,90079947,REDACTED - PERSONAL DATA,"3,834.44",25/05/2018
Delivery Units,Adults and Communities,Direct Transfer Payments to So,90079970,REDACTED - PERSONAL DATA,360.00,25/05/2018
Delivery Units,Adults and Communities,Direct Transfer Payments to So,90079972,REDACTED - PERSONAL DATA," 3,260.00 ",25/05/2018
Delivery Units,Adults and Communities,Direct Transfer Payments to So,90080045,REDACTED - PERSONAL DATA,336.56,25/05/2018
Delivery Units,Adults and Communities,Direct Transfer Payments to So,90080798,REDACTED - PERSONAL DATA,336.56,30/05/2018
Delivery Units,Adults and Communities,Direct Transfer Payments to So,90081030,REDACTED - PERSONAL DATA,"1,063.72",30/05/2018
Delivery Units,Adults and Communities,Fees and Charges,90080040,REDACTED - PERSONAL DATA,-78.36 ,25/05/2018
Delivery Units,Adults and Communities,Fees and Charges,90079973,REDACTED - PERSONAL DATA,(547.20),25/05/2018
Delivery Units,Adults and Communities,Fees and Charges,90081051,REDACTED - PERSONAL DATA,260.20,30/05/2018
Delivery Units,Adults and Communities,Fees and Charges,90080805,REDACTED - PERSONAL DATA,"-4,294.52 ",30/05/2018
Delivery Units,Adults and Communities,Fees and Charges,90079960,REDACTED - PERSONAL DATA,(63.84),25/05/2018
Delivery Units,Adults and Communities,Fees and Charges,90080023,REDACTED - PERSONAL DATA,(58.20),25/05/2018
Delivery Units,Adults and Communities,Fees and Charges,90079958,REDACTED - PERSONAL DATA,-132.24 ,25/05/2018
Delivery Units,Adults and Communities,Fees and Charges,90075130,REDACTED - PERSONAL DATA, 0.16 ,01/05/2018
Delivery Units,Adults and Communities,Fees and Charges,90077209,REDACTED - PERSONAL DATA,(883.72),15/05/2018
